Body Name,Service Label,Service Division Label,Organisational Unit,Expenditure Category,Date,Capital and Revenue,Supplier name,Total
West Sussex County Council,Planning & Development Services,Community Development,Other Charges,Electricity,10/05/2021,Revenue Expenditure ,Kent County Council,14519.06
West Sussex County Council,Planning & Development Services,Community Development,Operations And Maintenance,Reactive Maintenance,05/05/2021,Revenue Expenditure ,Latchmore Roofing Contractors Ltd,1000
West Sussex County Council,Planning & Development Services,Community Development,Other Charges,Electricity,07/05/2021,Revenue Expenditure ,Kent County Council,545.52
West Sussex County Council,Adult Social Care,Property Maintenance,1 Sheepfold Avenue (Kerry Hill),M&E Callout (Eng),25/05/2021,Revenue Expenditure ,Sse Contracting Limited,1546.75
West Sussex County Council,Support Service And Management Costs,Property Maintenance,"Flat 17, Gilwynes Crt_Po21 3Sq",Reactive Maintenance,27/05/2021,Revenue Expenditure ,Hump It Lump It Dump It,1075
West Sussex County Council,Support Service And Management Costs,Property Maintenance,Additional Cleaning,Cleaning Contracts,25/05/2021,Revenue Expenditure ,Churchill Contract Services Ltd,1283.39
West Sussex County Council,Support Service And Management Costs,Property Maintenance,W&P,Office Equipment,04/05/2021,Revenue Expenditure ,P Card Royal Bank Of Scotland Plc,712.56
West Sussex County Council,Support Service And Management Costs,Property Maintenance,Annual Window Cleaning Contract,Cleaning Contracts,05/05/2021,Revenue Expenditure ,Churchill Contract Services Ltd,3155.04
West Sussex County Council,Support Service And Management Costs,Property Maintenance,Annual Building Clean Contract,Cleaning Contracts,05/05/2021,Revenue Expenditure ,Churchill Contract Services Ltd,113575.98
West Sussex County Council,Support Service And Management Costs,Property Maintenance,Supply & Maint Of Plants,Office Equipment,05/05/2021,Revenue Expenditure ,Green Team Interiors Ltd,2590.8
West Sussex County Council,Support Service And Management Costs,Property Maintenance,Clinical Waste,Refuse Collection,25/05/2021,Revenue Expenditure ,Phs Group Ltd,1497.17
West Sussex County Council,Support Service And Management Costs,Property Maintenance,Shredding,Refuse Collection,21/05/2021,Revenue Expenditure ,Assured Security Shredding Ltd,1296
West Sussex County Council,Support Service And Management Costs,Property Maintenance,Shredding,Refuse Collection,20/05/2021,Revenue Expenditure ,Assured Security Shredding Ltd,1489
West Sussex County Council,Education Services,School Maintenance,Rose Green Infants Chimney Investigation,Professional Service,18/05/2021,Revenue Expenditure ,Faithful & Gould,3080.42
West Sussex County Council,Support Service And Management Costs,Property Maintenance,Hatches Estate Uprn 913,Reactive Maintenance,05/05/2021,Revenue Expenditure ,R B Construction Group Ltd,1625.18
West Sussex County Council,Support Service And Management Costs,Property Maintenance,Dell Quay Cottage - Uprn 820001,Reactive Maintenance,21/05/2021,Revenue Expenditure ,Grubb And Banks Building Services L,4528
West Sussex County Council,Support Service And Management Costs,Property Maintenance,Herbert Shiner Main(Non-Sch) Uprn 412001,M&E Callout (Eng),05/05/2021,Revenue Expenditure ,Sse Contracting Limited,748.56
West Sussex County Council,Cultural & Related Services,Property Maintenance,Halnaker Windmill Uprn 694001,M&E Callout (Eng),05/05/2021,Revenue Expenditure ,Sse Contracting Limited,2243.8
West Sussex County Council,Support Service And Management Costs,Property Maintenance,Brick Kiln Farm-Deta Uprn 893001,M&E Callout (Eng),05/05/2021,Revenue Expenditure ,Sse Contracting Limited,1707
West Sussex County Council,Support Service And Management Costs,Property Maintenance,Vcnt37 Richmond Rd,M&E Callout (Eng),05/05/2021,Revenue Expenditure ,Sse Contracting Limited,210.53
West Sussex County Council,Support Service And Management Costs,Property Maintenance,Vcnt37 Richmond Rd,M&E Servicing (Eng),05/05/2021,Revenue Expenditure ,Sse Contracting Limited,176.39
West Sussex County Council,Children Social Care,Property Maintenance,Find It Out Worthing Uprn 1224001,M&E Callout (Eng),25/05/2021,Revenue Expenditure ,Sse Contracting Limited,421.09
West Sussex County Council,Children Social Care,Property Maintenance,Adur Finding Out Centre Uprn 397001,M&E Callout (Eng),25/05/2021,Revenue Expenditure ,Sse Contracting Limited,100.95
West Sussex County Council,Children Social Care,Property Maintenance,Quayside Youth Ctr-Complex Uprn 826001,M&E Servicing (Eng),05/05/2021,Revenue Expenditure ,Sse Contracting Limited,153.63
West Sussex County Council,Children Social Care,Property Maintenance,Midhurst Youth C_New Build Uprn 1203001,M&E Servicing (Eng),25/05/2021,Revenue Expenditure ,Sse Contracting Limited,187.77
West Sussex County Council,Children Social Care,Property Maintenance,Langley Green Comm Ctr Yout Uprn 1179001,M&E Callout (Eng),25/05/2021,Revenue Expenditure ,Sse Contracting Limited,457.48
West Sussex County Council,Children Social Care,Property Maintenance,Langley Green Comm Ctr Yout Uprn 1179001,M&E Callout (Eng),05/05/2021,Revenue Expenditure ,Sse Contracting Limited,186.2
West Sussex County Council,Children Social Care,Property Maintenance,Horsham Youth Ctr & Boysclub Uprn 592001,M&E Callout (Eng),05/05/2021,Revenue Expenditure ,Sse Contracting Limited,248.98
West Sussex County Council,Children Social Care,Property Maintenance,Glynn Owen Y C Uprn 760001,M&E Servicing (Eng),25/05/2021,Revenue Expenditure ,Sse Contracting Limited,199.15
West Sussex County Council,Children Social Care,Property Maintenance,Secure Unit_Beechfield Uprn 17001,M&E Callout (Eng),25/05/2021,Revenue Expenditure ,Sse Contracting Limited,111.97
West Sussex County Council,Children Social Care,Property Maintenance,Orchard House Uprn 26001,M&E Callout (Eng),25/05/2021,Revenue Expenditure ,Sse Contracting Limited,597.45
West Sussex County Council,Children Social Care,Property Maintenance,Orchard House Uprn 26001,M&E Callout (Eng),25/05/2021,Revenue Expenditure ,Sse Contracting Limited,221.91
West Sussex County Council,Children Social Care,Property Maintenance,Orchard House Uprn 26001,M&E Servicing (Eng),25/05/2021,Revenue Expenditure ,Sse Contracting Limited,253.79
West Sussex County Council,Children Social Care,Property Maintenance,Orchard House Uprn 26001,M&E Callout (Eng),25/05/2021,Revenue Expenditure ,Sse Contracting Limited,261.74
West Sussex County Council,Children Social Care,Property Maintenance,Orchard House Uprn 26001,M&E Callout (Eng),25/05/2021,Revenue Expenditure ,Sse Contracting Limited,130.87
West Sussex County Council,Children Social Care,Property Maintenance,Orchard House Uprn 26001,M&E Callout (Eng),05/05/2021,Revenue Expenditure ,Sse Contracting Limited,155.71
West Sussex County Council,Children Social Care,Property Maintenance,Orchard House Uprn 26001,M&E Callout (Eng),05/05/2021,Revenue Expenditure ,Sse Contracting Limited,125.18
West Sussex County Council,Children Social Care,Property Maintenance,Orchard House Uprn 26001,M&E Callout (Eng),05/05/2021,Revenue Expenditure ,Sse Contracting Limited,155.91
West Sussex County Council,Children Social Care,Property Maintenance,Orchard House Uprn 26001,M&E Servicing (Eng),05/05/2021,Revenue Expenditure ,Sse Contracting Limited,352.78
West Sussex County Council,Children Social Care,Property Maintenance,High Trees Uprn 142001,M&E Servicing (Eng),25/05/2021,Revenue Expenditure ,Sse Contracting Limited,210.28
West Sussex County Council,Children Social Care,Property Maintenance,High Trees Uprn 142001,M&E Servicing (Eng),25/05/2021,Revenue Expenditure ,Sse Contracting Limited,109.82
West Sussex County Council,Children Social Care,Property Maintenance,High Trees Uprn 142001,M&E Callout (Eng),05/05/2021,Revenue Expenditure ,Sse Contracting Limited,100.95
West Sussex County Council,Children Social Care,Property Maintenance,18 Teasel Close Uprn 781001,M&E Callout (Eng),25/05/2021,Revenue Expenditure ,Sse Contracting Limited,516.49
West Sussex County Council,Support Service And Management Costs,Property Maintenance,Thomas A Becket-C/T House Uprn 520001,Reactive Maintenance,20/05/2021,Revenue Expenditure ,Oglieve & Chapman,1890
West Sussex County Council,Support Service And Management Costs,Property Maintenance,Oathall - Caretakers House Uprn 742001,M&E Callout (Eng),05/05/2021,Revenue Expenditure ,Sse Contracting Limited,265.92
West Sussex County Council,Support Service And Management Costs,Property Maintenance,Littlehampton Comm Off'S_Riv Uprn 85001,M&E Servicing (Eng),25/05/2021,Revenue Expenditure ,Sse Contracting Limited,165.01
West Sussex County Council,Support Service And Management Costs,Property Maintenance,"House No. 2, Littlegreen Uprn 1215001",M&E Callout (Eng),25/05/2021,Revenue Expenditure ,Sse Contracting Limited,499.62
West Sussex County Council,Support Service And Management Costs,Property Maintenance,Herbert Shiner C/T House Uprn 1230001,M&E Callout (Eng),05/05/2021,Revenue Expenditure ,Sse Contracting Limited,200
West Sussex County Council,Adult Social Care,Property Maintenance,Hammonds Uprn 396001,M&E Callout (Eng),25/05/2021,Revenue Expenditure ,Sse Contracting Limited,369.89
West Sussex County Council,Adult Social Care,Property Maintenance,Hammonds Uprn 396001,M&E Callout (Eng),25/05/2021,Revenue Expenditure ,Sse Contracting Limited,137.66
West Sussex County Council,Adult Social Care,Property Maintenance,Hammonds Uprn 396001,M&E Servicing (Eng),25/05/2021,Revenue Expenditure ,Sse Contracting Limited,201.74
West Sussex County Council,Adult Social Care,Property Maintenance,Hammonds Uprn 396001,M&E Callout (Eng),25/05/2021,Revenue Expenditure ,Sse Contracting Limited,303.47
West Sussex County Council,Adult Social Care,Property Maintenance,Hammonds Uprn 396001,M&E Callout (Eng),05/05/2021,Revenue Expenditure ,Sse Contracting Limited,191.64
West Sussex County Council,Adult Social Care,Property Maintenance,Hammonds Uprn 396001,M&E Callout (Eng),05/05/2021,Revenue Expenditure ,Sse Contracting Limited,221.91
West Sussex County Council,Adult Social Care,Property Maintenance,Hammonds Uprn 396001,M&E Servicing (Eng),05/05/2021,Revenue Expenditure ,Sse Contracting Limited,268.14
West Sussex County Council,Adult Social Care,Property Maintenance,Hammonds Uprn 396001,M&E Servicing (Eng),05/05/2021,Revenue Expenditure ,Sse Contracting Limited,1037.2
West Sussex County Council,Support Service And Management Costs,Property Maintenance,19 The Gardens - Cot Uprn 1213001,M&E Callout (Eng),05/05/2021,Revenue Expenditure ,Sse Contracting Limited,238.62
West Sussex County Council,Adult Social Care,Property Maintenance,Tozer House Uprn 483001,Reactive Maintenance,25/05/2021,Revenue Expenditure ,Sse Contracting Limited,275.17
West Sussex County Council,Adult Social Care,Property Maintenance,Stanhope Lodge Uprn 152001,Reactive Maintenance,25/05/2021,Revenue Expenditure ,Sse Contracting Limited,1006.47
West Sussex County Council,Adult Social Care,Property Maintenance,Stanhope Lodge Uprn 152001,Reactive Maintenance,05/05/2021,Revenue Expenditure ,Sse Contracting Limited,936.8
West Sussex County Council,Adult Social Care,Property Maintenance,Stanhope Lodge Uprn 152001,Reactive Maintenance,05/05/2021,Revenue Expenditure ,Sse Contracting Limited,576.4
West Sussex County Council,Adult Social Care,Property Maintenance,Stanhope Lodge Uprn 152001,Reactive Maintenance,05/05/2021,Revenue Expenditure ,Sse Contracting Limited,875.46
West Sussex County Council,Adult Social Care,Property Maintenance,Stanhope Lodge Uprn 152001,Reactive Maintenance,05/05/2021,Revenue Expenditure ,Sse Contracting Limited,184.93
West Sussex County Council,Adult Social Care,Property Maintenance,Stanhope Lodge Uprn 152001,Reactive Maintenance,13/05/2021,Revenue Expenditure ,Empire Environmental Services Ltd,1070
West Sussex County Council,Adult Social Care,Property Maintenance,New Tyne Resource Ce Uprn 171001,Reactive Maintenance,12/05/2021,Revenue Expenditure ,Empire Environmental Services Ltd,950
West Sussex County Council,Adult Social Care,Property Maintenance,Ball Tree Croft Uprn 185001,Reactive Maintenance,25/05/2021,Revenue Expenditure ,Sse Contracting Limited,360.18
West Sussex County Council,Adult Social Care,Property Maintenance,Chestnut Day Care Centre Uprn 389001,M&E Callout (Eng),25/05/2021,Revenue Expenditure ,Sse Contracting Limited,113.8
West Sussex County Council,Adult Social Care,Property Maintenance,Chestnut Day Care Centre Uprn 389001,M&E Callout (Eng),25/05/2021,Revenue Expenditure ,Sse Contracting Limited,299.6
West Sussex County Council,Adult Social Care,Property Maintenance,Chestnut Day Care Centre Uprn 389001,M&E Callout (Eng),05/05/2021,Revenue Expenditure ,Sse Contracting Limited,118.07
West Sussex County Council,Adult Social Care,Property Maintenance,Tozer House Uprn 483001,M&E Callout (Eng),25/05/2021,Revenue Expenditure ,Sse Contracting Limited,136.06
West Sussex County Council,Adult Social Care,Property Maintenance,Tozer House Uprn 483001,M&E Servicing (Eng),05/05/2021,Revenue Expenditure ,Sse Contracting Limited,161.98
West Sussex County Council,Adult Social Care,Property Maintenance,The Pines Uprn 229001,M&E Callout (Eng),05/05/2021,Revenue Expenditure ,Sse Contracting Limited,385.02
West Sussex County Council,Adult Social Care,Property Maintenance,The Pines Uprn 229001,M&E Callout (Eng),05/05/2021,Revenue Expenditure ,Sse Contracting Limited,173.07
West Sussex County Council,Adult Social Care,Property Maintenance,Stanhope Lodge Uprn 152001,M&E Callout (Eng),25/05/2021,Revenue Expenditure ,Sse Contracting Limited,292.84
West Sussex County Council,Adult Social Care,Property Maintenance,Stanhope Lodge Uprn 152001,M&E Callout (Eng),05/05/2021,Revenue Expenditure ,Sse Contracting Limited,805.14
West Sussex County Council,Adult Social Care,Property Maintenance,Stanhope Lodge Uprn 152001,M&E Callout (Eng),05/05/2021,Revenue Expenditure ,Sse Contracting Limited,106.15
West Sussex County Council,Adult Social Care,Property Maintenance,Stanhope Lodge Uprn 152001,M&E Callout (Eng),05/05/2021,Revenue Expenditure ,Sse Contracting Limited,107.56
West Sussex County Council,Adult Social Care,Property Maintenance,Stanhope Lodge Uprn 152001,M&E Callout (Eng),05/05/2021,Revenue Expenditure ,Sse Contracting Limited,167.86
West Sussex County Council,Adult Social Care,Property Maintenance,Stanhope Lodge Uprn 152001,M&E Callout (Eng),05/05/2021,Revenue Expenditure ,Sse Contracting Limited,353.41
West Sussex County Council,Adult Social Care,Property Maintenance,Stanhope Lodge Uprn 152001,M&E Servicing (Eng),05/05/2021,Revenue Expenditure ,Sse Contracting Limited,128
West Sussex County Council,Support Service And Management Costs,Property Maintenance,Point Scope West Sus Uprn 165001,M&E Servicing (Eng),25/05/2021,Revenue Expenditure ,Sse Contracting Limited,1402.02
West Sussex County Council,Support Service And Management Costs,Property Maintenance,Point Scope West Sus Uprn 165001,M&E Callout (Eng),25/05/2021,Revenue Expenditure ,Sse Contracting Limited,904.71
West Sussex County Council,Adult Social Care,Property Maintenance,New Tyne Resource Ce Uprn 171001,M&E Callout (Eng),25/05/2021,Revenue Expenditure ,Sse Contracting Limited,205.32
West Sussex County Council,Adult Social Care,Property Maintenance,New Tyne Resource Ce Uprn 171001,M&E Callout (Eng),05/05/2021,Revenue Expenditure ,Sse Contracting Limited,210.53
West Sussex County Council,Adult Social Care,Property Maintenance,New Tyne Resource Ce Uprn 171001,M&E Callout (Eng),05/05/2021,Revenue Expenditure ,Sse Contracting Limited,125.18
West Sussex County Council,Adult Social Care,Property Maintenance,Marjorie Cobby House Uprn 29002,M&E Servicing (Eng),25/05/2021,Revenue Expenditure ,Sse Contracting Limited,118.85
West Sussex County Council,Adult Social Care,Property Maintenance,Marjorie Cobby House Uprn 29002,M&E Callout (Eng),25/05/2021,Revenue Expenditure ,Sse Contracting Limited,191.64
West Sussex County Council,Adult Social Care,Property Maintenance,Marjorie Cobby House Uprn 29002,M&E Callout (Eng),25/05/2021,Revenue Expenditure ,Sse Contracting Limited,739.7
West Sussex County Council,Adult Social Care,Property Maintenance,Marjorie Cobby House Uprn 29002,M&E Callout (Eng),25/05/2021,Revenue Expenditure ,Sse Contracting Limited,479.1
West Sussex County Council,Adult Social Care,Property Maintenance,Marjorie Cobby House Uprn 29002,M&E Callout (Eng),25/05/2021,Revenue Expenditure ,Sse Contracting Limited,154.37
West Sussex County Council,Adult Social Care,Property Maintenance,Lease_Judith Adams Dcc Uprn 800001,M&E Servicing (Eng),25/05/2021,Revenue Expenditure ,Sse Contracting Limited,204.84
West Sussex County Council,Adult Social Care,Property Maintenance,Hobbsfield Uprn 124001,M&E Callout (Eng),05/05/2021,Revenue Expenditure ,Sse Contracting Limited,308.17
West Sussex County Council,Adult Social Care,Property Maintenance,Hobbsfield Uprn 124001,M&E Servicing (Eng),05/05/2021,Revenue Expenditure ,Sse Contracting Limited,179.37
West Sussex County Council,Adult Social Care,Property Maintenance,Coastal Enterprises Uprn 187001,M&E Callout (Eng),25/05/2021,Revenue Expenditure ,Sse Contracting Limited,102.99
West Sussex County Council,Adult Social Care,Property Maintenance,Burnside Centre Uprn 490001,M&E Callout (Eng),25/05/2021,Revenue Expenditure ,Sse Contracting Limited,206.26
West Sussex County Council,Adult Social Care,Property Maintenance,Burnside Centre Uprn 490001,M&E Callout (Eng),05/05/2021,Revenue Expenditure ,Sse Contracting Limited,233.29
West Sussex County Council,Adult Social Care,Property Maintenance,Burnside Centre Uprn 490001,M&E Servicing (Eng),05/05/2021,Revenue Expenditure ,Sse Contracting Limited,211.19
West Sussex County Council,Adult Social Care,Property Maintenance,Burnside Centre Uprn 490001,M&E Servicing (Eng),05/05/2021,Revenue Expenditure ,Sse Contracting Limited,822.83
West Sussex County Council,Adult Social Care,Property Maintenance,Bluebell Lodge Uprn 90633001,M&E Servicing (Eng),25/05/2021,Revenue Expenditure ,Sse Contracting Limited,253.79
West Sussex County Council,Adult Social Care,Property Maintenance,Ball Tree Croft Uprn 185001,M&E Callout (Eng),25/05/2021,Revenue Expenditure ,Sse Contracting Limited,211.08
West Sussex County Council,Adult Social Care,Property Maintenance,Ball Tree Croft Uprn 185001,M&E Servicing (Eng),25/05/2021,Revenue Expenditure ,Sse Contracting Limited,645.47
West Sussex County Council,Adult Social Care,Property Maintenance,Ball Tree Croft Uprn 185001,M&E Servicing (Eng),25/05/2021,Revenue Expenditure ,Sse Contracting Limited,206.18
West Sussex County Council,Adult Social Care,Property Maintenance,Ball Tree Croft Uprn 185001,M&E Callout (Eng),05/05/2021,Revenue Expenditure ,Sse Contracting Limited,256.05
West Sussex County Council,Adult Social Care,Property Maintenance,Ball Tree Croft Uprn 185001,M&E Callout (Eng),05/05/2021,Revenue Expenditure ,Sse Contracting Limited,128.49
West Sussex County Council,Adult Social Care,Property Maintenance,Ball Tree Croft Uprn 185001,M&E Callout (Eng),05/05/2021,Revenue Expenditure ,Sse Contracting Limited,169.28
West Sussex County Council,Support Service And Management Costs,Property Maintenance,Littlehampton County Uprn 732001,Reactive Maintenance,14/05/2021,Revenue Expenditure ,Knight Fencing Ltd,2496.16
West Sussex County Council,Central Services To The Public,Property Maintenance,Edes House Uprn 46001,Reactive Maintenance,06/05/2021,Revenue Expenditure ,Falcon Homes (Sussex) Ltd,750
West Sussex County Council,Support Service And Management Costs,Property Maintenance,Durban House Uprn 1054001,Reactive Maintenance,19/05/2021,Revenue Expenditure ,Falcon Homes (Sussex) Ltd,530
West Sussex County Council,Support Service And Management Costs,Property Maintenance,County Hall North Uprn 1123001,Reactive Maintenance,28/05/2021,Revenue Expenditure ,G Griffiths Building Contractor,633.44
West Sussex County Council,Support Service And Management Costs,Property Maintenance,County Hall Chichester Uprn 716002,Reactive Maintenance,26/05/2021,Revenue Expenditure ,Falcon Homes (Sussex) Ltd,830
West Sussex County Council,Support Service And Management Costs,Property Maintenance,County Building Uprn 580003,Reactive Maintenance,19/05/2021,Revenue Expenditure ,G Griffiths Building Contractor,1761.73
West Sussex County Council,Support Service And Management Costs,Property Maintenance,Power Place_23 Terminus Rd Uprn 1081001,M&E Callout (Eng),25/05/2021,Revenue Expenditure ,Sse Contracting Limited,203.1
West Sussex County Council,Support Service And Management Costs,Property Maintenance,Power Place_23 Terminus Rd Uprn 1081001,M&E Callout (Eng),25/05/2021,Revenue Expenditure ,Sse Contracting Limited,305.43
West Sussex County Council,Support Service And Management Costs,Property Maintenance,Littlehampton County Uprn 732001,M&E Callout (Eng),25/05/2021,Revenue Expenditure ,Sse Contracting Limited,1115.24
West Sussex County Council,Support Service And Management Costs,Property Maintenance,Littlehampton County Uprn 732001,M&E Servicing (Eng),25/05/2021,Revenue Expenditure ,Sse Contracting Limited,176.39
West Sussex County Council,Support Service And Management Costs,Property Maintenance,Littlehampton County Uprn 732001,M&E Callout (Eng),05/05/2021,Revenue Expenditure ,Sse Contracting Limited,1957.36
West Sussex County Council,Support Service And Management Costs,Property Maintenance,Littlehampton County Uprn 732001,M&E Servicing (Eng),05/05/2021,Revenue Expenditure ,Sse Contracting Limited,226.21
West Sussex County Council,Support Service And Management Costs,Property Maintenance,Durban House Uprn 1054001,M&E Callout (Eng),25/05/2021,Revenue Expenditure ,Sse Contracting Limited,1848.86
West Sussex County Council,Support Service And Management Costs,Property Maintenance,Durban House Uprn 1054001,M&E Callout (Eng),25/05/2021,Revenue Expenditure ,Sse Contracting Limited,1528.73
West Sussex County Council,Support Service And Management Costs,Property Maintenance,Durban House Uprn 1054001,M&E Callout (Eng),25/05/2021,Revenue Expenditure ,Sse Contracting Limited,1029.1
West Sussex County Council,Support Service And Management Costs,Property Maintenance,Durban House Uprn 1054001,M&E Servicing (Eng),25/05/2021,Revenue Expenditure ,Sse Contracting Limited,1832.7
West Sussex County Council,Support Service And Management Costs,Property Maintenance,Durban House Uprn 1054001,M&E Callout (Eng),05/05/2021,Revenue Expenditure ,Sse Contracting Limited,496.81
West Sussex County Council,Support Service And Management Costs,Property Maintenance,Durban House Uprn 1054001,M&E Callout (Eng),05/05/2021,Revenue Expenditure ,Sse Contracting Limited,250.36
West Sussex County Council,Support Service And Management Costs,Property Maintenance,Crawley County Building Uprn 580002,M&E Callout (Eng),25/05/2021,Revenue Expenditure ,Sse Contracting Limited,118.07
West Sussex County Council,Support Service And Management Costs,Property Maintenance,Crawley County Building Uprn 580002,M&E Callout (Eng),05/05/2021,Revenue Expenditure ,Sse Contracting Limited,125.46
West Sussex County Council,Support Service And Management Costs,Property Maintenance,Crawley County Building Uprn 580002,M&E Callout (Eng),05/05/2021,Revenue Expenditure ,Sse Contracting Limited,391.76
West Sussex County Council,Cultural & Related Services,Archives,County Record Office Uprn 41001,M&E Servicing (Eng),25/05/2021,Revenue Expenditure ,Sse Contracting Limited,828.46
West Sussex County Council,Support Service And Management Costs,Property Maintenance,County Hall North Uprn 1123001,M&E Callout (Eng),25/05/2021,Revenue Expenditure ,Sse Contracting Limited,174.97
West Sussex County Council,Support Service And Management Costs,Property Maintenance,County Hall North Uprn 1123001,M&E Servicing (Eng),25/05/2021,Revenue Expenditure ,Sse Contracting Limited,678.51
West Sussex County Council,Support Service And Management Costs,Property Maintenance,County Hall North Uprn 1123001,M&E Callout (Eng),25/05/2021,Revenue Expenditure ,Sse Contracting Limited,304.32
West Sussex County Council,Support Service And Management Costs,Property Maintenance,County Hall North Uprn 1123001,M&E Callout (Eng),25/05/2021,Revenue Expenditure ,Sse Contracting Limited,278.81
West Sussex County Council,Support Service And Management Costs,Property Maintenance,County Hall North Uprn 1123001,M&E Servicing (Eng),25/05/2021,Revenue Expenditure ,Sse Contracting Limited,147.94
West Sussex County Council,Support Service And Management Costs,Property Maintenance,County Hall North Uprn 1123001,M&E Callout (Eng),05/05/2021,Revenue Expenditure ,Sse Contracting Limited,174.37
West Sussex County Council,Support Service And Management Costs,Property Maintenance,County Hall North Uprn 1123001,M&E Callout (Eng),05/05/2021,Revenue Expenditure ,Sse Contracting Limited,226.69
West Sussex County Council,Support Service And Management Costs,Property Maintenance,County Hall Chichester Uprn 716002,M&E Callout (Eng),25/05/2021,Revenue Expenditure ,Sse Contracting Limited,2040.81
West Sussex County Council,Support Service And Management Costs,Property Maintenance,County Hall Chichester Uprn 716002,M&E Callout (Eng),25/05/2021,Revenue Expenditure ,Sse Contracting Limited,1228.81
West Sussex County Council,Support Service And Management Costs,Property Maintenance,County Hall Chichester Uprn 716002,M&E Callout (Eng),25/05/2021,Revenue Expenditure ,Sse Contracting Limited,1476.11
West Sussex County Council,Support Service And Management Costs,Property Maintenance,County Hall Chichester Uprn 716002,M&E Servicing (Eng),25/05/2021,Revenue Expenditure ,Sse Contracting Limited,290.19
West Sussex County Council,Support Service And Management Costs,Property Maintenance,County Hall Chichester Uprn 716002,M&E Callout (Eng),25/05/2021,Revenue Expenditure ,Sse Contracting Limited,116.76
West Sussex County Council,Support Service And Management Costs,Property Maintenance,County Hall Chichester Uprn 716002,M&E Callout (Eng),25/05/2021,Revenue Expenditure ,Sse Contracting Limited,1252.68
West Sussex County Council,Support Service And Management Costs,Property Maintenance,County Hall Chichester Uprn 716002,M&E Callout (Eng),25/05/2021,Revenue Expenditure ,Sse Contracting Limited,1853.83
West Sussex County Council,Support Service And Management Costs,Property Maintenance,County Hall Chichester Uprn 716002,M&E Callout (Eng),25/05/2021,Revenue Expenditure ,Sse Contracting Limited,416.51
West Sussex County Council,Support Service And Management Costs,Property Maintenance,County Hall Chichester Uprn 716002,M&E Callout (Eng),25/05/2021,Revenue Expenditure ,Sse Contracting Limited,734.2
West Sussex County Council,Support Service And Management Costs,Property Maintenance,County Hall Chichester Uprn 716002,M&E Callout (Eng),05/05/2021,Revenue Expenditure ,Sse Contracting Limited,591.76
West Sussex County Council,Support Service And Management Costs,Property Maintenance,County Hall Chichester Uprn 716002,M&E Callout (Eng),05/05/2021,Revenue Expenditure ,Sse Contracting Limited,2607.68
West Sussex County Council,Support Service And Management Costs,Property Maintenance,County Hall Chichester Uprn 716002,M&E Callout (Eng),05/05/2021,Revenue Expenditure ,Sse Contracting Limited,1714.33
West Sussex County Council,Support Service And Management Costs,Property Maintenance,County Hall Chichester Uprn 716002,M&E Callout (Eng),05/05/2021,Revenue Expenditure ,Sse Contracting Limited,1685.95
West Sussex County Council,Support Service And Management Costs,Property Maintenance,County Hall Chichester Uprn 716002,M&E Servicing (Eng),05/05/2021,Revenue Expenditure ,Sse Contracting Limited,286.09
West Sussex County Council,Support Service And Management Costs,Property Maintenance,County Hall Chichester Uprn 716002,M&E Servicing (Eng),05/05/2021,Revenue Expenditure ,Sse Contracting Limited,960.09
West Sussex County Council,Support Service And Management Costs,Property Maintenance,County Hall Chichester Uprn 716002,M&E Servicing (Eng),05/05/2021,Revenue Expenditure ,Sse Contracting Limited,1024
West Sussex County Council,Support Service And Management Costs,Property Maintenance,County Hall Chichester Uprn 716002,M&E Servicing (Eng),05/05/2021,Revenue Expenditure ,Sse Contracting Limited,1024
West Sussex County Council,Support Service And Management Costs,Property Maintenance,Centenary House Uprn 1017001,M&E Servicing (Eng),25/05/2021,Revenue Expenditure ,Sse Contracting Limited,2066.65
West Sussex County Council,Support Service And Management Costs,Property Maintenance,Centenary House Uprn 1017001,M&E Servicing (Eng),25/05/2021,Revenue Expenditure ,Sse Contracting Limited,341.4
West Sussex County Council,Housing Services,Property Maintenance,New Withy Park Caravan Uprn 01387,M&E Callout (Eng),05/05/2021,Revenue Expenditure ,Sse Contracting Limited,2071.16
West Sussex County Council,Housing Services,Property Maintenance,New Fairplace Hill Caravan Park Uprn 123,Reactive Maintenance,25/05/2021,Revenue Expenditure ,Sse Contracting Limited,168.42
West Sussex County Council,Housing Services,Property Maintenance,West Sussex Transit Site Uprn 1232001,M&E Callout (Eng),25/05/2021,Revenue Expenditure ,Sse Contracting Limited,648.17
West Sussex County Council,Housing Services,Property Maintenance,West Sussex Transit Site Uprn 1232001,M&E Callout (Eng),25/05/2021,Revenue Expenditure ,Sse Contracting Limited,380.24
West Sussex County Council,Housing Services,Property Maintenance,West Sussex Transit Site Uprn 1232001,M&E Callout (Eng),25/05/2021,Revenue Expenditure ,Sse Contracting Limited,408.07
West Sussex County Council,Housing Services,Property Maintenance,West Sussex Transit Site Uprn 1232001,M&E Callout (Eng),25/05/2021,Revenue Expenditure ,Sse Contracting Limited,688.29
West Sussex County Council,Housing Services,Property Maintenance,West Sussex Transit Site Uprn 1232001,M&E Callout (Eng),05/05/2021,Revenue Expenditure ,Sse Contracting Limited,559.63
West Sussex County Council,Housing Services,Property Maintenance,West Sussex Transit Site Uprn 1232001,M&E Servicing (Eng),05/05/2021,Revenue Expenditure ,Sse Contracting Limited,338.38
West Sussex County Council,Housing Services,Property Maintenance,Westbourne Caravan Park Uprn 857001,M&E Callout (Eng),25/05/2021,Revenue Expenditure ,Sse Contracting Limited,547.92
West Sussex County Council,Housing Services,Property Maintenance,Westbourne Caravan Park Uprn 857001,M&E Callout (Eng),25/05/2021,Revenue Expenditure ,Sse Contracting Limited,716.23
West Sussex County Council,Housing Services,Property Maintenance,Westbourne Caravan Park Uprn 857001,M&E Callout (Eng),05/05/2021,Revenue Expenditure ,Sse Contracting Limited,458.88
West Sussex County Council,Housing Services,Property Maintenance,Westbourne Caravan Park Uprn 857001,M&E Servicing (Eng),05/05/2021,Revenue Expenditure ,Sse Contracting Limited,599.51
West Sussex County Council,Housing Services,Property Maintenance,Walstead Caravan Park Uprn 856001,M&E Callout (Eng),25/05/2021,Revenue Expenditure ,Sse Contracting Limited,333.08
West Sussex County Council,Housing Services,Property Maintenance,Walstead Caravan Park Uprn 856001,M&E Callout (Eng),25/05/2021,Revenue Expenditure ,Sse Contracting Limited,312.04
West Sussex County Council,Housing Services,Property Maintenance,Ryebank Gypsy Site Uprn 841001,M&E Callout (Eng),25/05/2021,Revenue Expenditure ,Sse Contracting Limited,254.83
West Sussex County Council,Housing Services,Property Maintenance,Ryebank Gypsy Site Uprn 841001,M&E Callout (Eng),25/05/2021,Revenue Expenditure ,Sse Contracting Limited,125.18
West Sussex County Council,Housing Services,Property Maintenance,Ryebank Gypsy Site Uprn 841001,M&E Callout (Eng),05/05/2021,Revenue Expenditure ,Sse Contracting Limited,295.88
West Sussex County Council,Housing Services,Property Maintenance,Ryebank Gypsy Site Uprn 841001,M&E Callout (Eng),05/05/2021,Revenue Expenditure ,Sse Contracting Limited,143.73
West Sussex County Council,Housing Services,Property Maintenance,Ryebank Gypsy Site Uprn 841001,M&E Callout (Eng),05/05/2021,Revenue Expenditure ,Sse Contracting Limited,125.18
West Sussex County Council,Housing Services,Property Maintenance,New Fairplace Hill Caravan Park Uprn 123,M&E Callout (Eng),25/05/2021,Revenue Expenditure ,Sse Contracting Limited,640.13
West Sussex County Council,Housing Services,Property Maintenance,New Fairplace Hill Caravan Park Uprn 123,M&E Callout (Eng),25/05/2021,Revenue Expenditure ,Sse Contracting Limited,1066.88
West Sussex County Council,Housing Services,Property Maintenance,New Fairplace Hill Caravan Park Uprn 123,M&E Callout (Eng),25/05/2021,Revenue Expenditure ,Sse Contracting Limited,844.96
West Sussex County Council,Housing Services,Property Maintenance,New Fairplace Hill Caravan Park Uprn 123,M&E Callout (Eng),25/05/2021,Revenue Expenditure ,Sse Contracting Limited,640.13
West Sussex County Council,Housing Services,Property Maintenance,New Fairplace Hill Caravan Park Uprn 123,M&E Callout (Eng),25/05/2021,Revenue Expenditure ,Sse Contracting Limited,640.13
West Sussex County Council,Housing Services,Property Maintenance,New Fairplace Hill Caravan Park Uprn 123,M&E Callout (Eng),25/05/2021,Revenue Expenditure ,Sse Contracting Limited,812.58
West Sussex County Council,Housing Services,Property Maintenance,New Fairplace Hill Caravan Park Uprn 123,M&E Callout (Eng),25/05/2021,Revenue Expenditure ,Sse Contracting Limited,517.25
West Sussex County Council,Housing Services,Property Maintenance,New Fairplace Hill Caravan Park Uprn 123,M&E Callout (Eng),25/05/2021,Revenue Expenditure ,Sse Contracting Limited,293.68
West Sussex County Council,Housing Services,Property Maintenance,New Fairplace Hill Caravan Park Uprn 123,M&E Callout (Eng),25/05/2021,Revenue Expenditure ,Sse Contracting Limited,348.75
West Sussex County Council,Housing Services,Property Maintenance,New Fairplace Hill Caravan Park Uprn 123,M&E Callout (Eng),25/05/2021,Revenue Expenditure ,Sse Contracting Limited,256.97
West Sussex County Council,Housing Services,Property Maintenance,New Fairplace Hill Caravan Park Uprn 123,M&E Servicing (Eng),25/05/2021,Revenue Expenditure ,Sse Contracting Limited,125.18
West Sussex County Council,Housing Services,Property Maintenance,Easthampnett Caravan Park Uprn 839001,M&E Callout (Eng),25/05/2021,Revenue Expenditure ,Sse Contracting Limited,554.76
West Sussex County Council,Housing Services,Property Maintenance,Easthampnett Caravan Park Uprn 839001,M&E Servicing (Eng),25/05/2021,Revenue Expenditure ,Sse Contracting Limited,125.18
West Sussex County Council,Housing Services,Property Maintenance,Cousins Copse Caravan Park Uprn 853001,M&E Servicing (Eng),25/05/2021,Revenue Expenditure ,Sse Contracting Limited,125.18
West Sussex County Council,Housing Services,Property Maintenance,Adversane Caravan Park Uprn 946001,M&E Servicing (Eng),25/05/2021,Revenue Expenditure ,Sse Contracting Limited,125.18
West Sussex County Council,Highways & Transport Services,Property Maintenance,Drayton Depot Uprn 752001,M&E Callout (Eng),05/05/2021,Revenue Expenditure ,Sse Contracting Limited,340.84
West Sussex County Council,Highways & Transport Services,Property Maintenance,Clapham Works Depot Uprn 749001,M&E Callout (Eng),05/05/2021,Revenue Expenditure ,Sse Contracting Limited,105.54
West Sussex County Council,Highways & Transport Services,Property Maintenance,Clapham Works Depot Uprn 749001,M&E Callout (Eng),05/05/2021,Revenue Expenditure ,Sse Contracting Limited,119.31
West Sussex County Council,Highways & Transport Services,Property Maintenance,Clapham Works Depot Uprn 749001,M&E Callout (Eng),05/05/2021,Revenue Expenditure ,Sse Contracting Limited,260.01
West Sussex County Council,Highways & Transport Services,Property Maintenance,Broadbridge Heath Wrks Depot Uprn 751001,M&E Callout (Eng),25/05/2021,Revenue Expenditure ,Sse Contracting Limited,739.7
West Sussex County Council,Children Social Care,Property Maintenance,Kingston Buci Cfc- Uprn 354002,Reactive Maintenance,25/05/2021,Revenue Expenditure ,Sse Contracting Limited,955.45
West Sussex County Council,Children Social Care,Property Maintenance,Bognor Regis (Tree House) - Uprn 393001,Reactive Maintenance,21/05/2021,Revenue Expenditure ,Spindler Builders E&P Ltd,645
West Sussex County Council,Children Social Care,Property Maintenance,Tree House Cfc - Uprn 1131001,M&E Servicing (Eng),25/05/2021,Revenue Expenditure ,Sse Contracting Limited,101.1
West Sussex County Council,Children Social Care,Property Maintenance,Southbourne Cfc - Uprn 1200001,M&E Callout (Eng),05/05/2021,Revenue Expenditure ,Sse Contracting Limited,125.18
West Sussex County Council,Children Social Care,Property Maintenance,Selsey Cfc - Uprn 1135001,M&E Callout (Eng),25/05/2021,Revenue Expenditure ,Sse Contracting Limited,381.23
West Sussex County Council,Children Social Care,Property Maintenance,Selsey Cfc - Uprn 1135001,M&E Callout (Eng),05/05/2021,Revenue Expenditure ,Sse Contracting Limited,370.1
West Sussex County Council,Children Social Care,Property Maintenance,Pound Hill Cfc - Uprn 1171001,M&E Callout (Eng),05/05/2021,Revenue Expenditure ,Sse Contracting Limited,280.78
West Sussex County Council,Children Social Care,Property Maintenance,Petworth Cfc - Uprn 1121001,M&E Servicing (Eng),25/05/2021,Revenue Expenditure ,Sse Contracting Limited,125.18
West Sussex County Council,Children Social Care,Property Maintenance,Needles Cfc - Uprn 471001,M&E Servicing (Eng),25/05/2021,Revenue Expenditure ,Sse Contracting Limited,253.79
West Sussex County Council,Children Social Care,Property Maintenance,Needles Cfc - Uprn 471001,M&E Servicing (Eng),05/05/2021,Revenue Expenditure ,Sse Contracting Limited,386.92
West Sussex County Council,Children Social Care,Property Maintenance,Maidenbower Cfc - Uprn 1165001,M&E Servicing (Eng),25/05/2021,Revenue Expenditure ,Sse Contracting Limited,549.67
West Sussex County Council,Children Social Care,Property Maintenance,Little Footsteps Cfc - Uprn 228001,M&E Servicing (Eng),25/05/2021,Revenue Expenditure ,Sse Contracting Limited,449.62
West Sussex County Council,Children Social Care,Property Maintenance,Langley Green Cfc - Uprn 1170001,M&E Callout (Eng),25/05/2021,Revenue Expenditure ,Sse Contracting Limited,132.29
West Sussex County Council,Children Social Care,Property Maintenance,Lancing Cfc- Uprn 522002,M&E Callout (Eng),05/05/2021,Revenue Expenditure ,Sse Contracting Limited,997.62
West Sussex County Council,Children Social Care,Property Maintenance,Kingston Buci Cfc- Uprn 354002,M&E Servicing (Eng),25/05/2021,Revenue Expenditure ,Sse Contracting Limited,256.05
West Sussex County Council,Children Social Care,Property Maintenance,Kingston Buci Cfc- Uprn 354002,M&E Callout (Eng),05/05/2021,Revenue Expenditure ,Sse Contracting Limited,469.34
West Sussex County Council,Children Social Care,Property Maintenance,Kingston Buci Cfc- Uprn 354002,M&E Servicing (Eng),05/05/2021,Revenue Expenditure ,Sse Contracting Limited,645.47
West Sussex County Council,Children Social Care,Property Maintenance,Haywards Heath Cfc- Uprn 1127001,M&E Callout (Eng),05/05/2021,Revenue Expenditure ,Sse Contracting Limited,324.46
West Sussex County Council,Children Social Care,Property Maintenance,Gattons Cfc- Uprn 1164001,M&E Servicing (Eng),25/05/2021,Revenue Expenditure ,Sse Contracting Limited,549.67
West Sussex County Council,Children Social Care,Property Maintenance,Footprintscfc Crescent Rd - Uprn 1066001,M&E Servicing (Eng),25/05/2021,Revenue Expenditure ,Sse Contracting Limited,103.65
West Sussex County Council,Children Social Care,Property Maintenance,Felpham Cfc - Uprn 1139001,M&E Servicing (Eng),05/05/2021,Revenue Expenditure ,Sse Contracting Limited,173.71
West Sussex County Council,Children Social Care,Property Maintenance,East Grinstead Urban Cfc - Uprn 1124001,M&E Callout (Eng),05/05/2021,Revenue Expenditure ,Sse Contracting Limited,173.7
West Sussex County Council,Children Social Care,Property Maintenance,Durrington Cfc - Uprn 1122001,M&E Servicing (Eng),25/05/2021,Revenue Expenditure ,Sse Contracting Limited,199.15
West Sussex County Council,Children Social Care,Property Maintenance,Billingshurst Cfc - Uprn 1111001,M&E Servicing (Eng),25/05/2021,Revenue Expenditure ,Sse Contracting Limited,147.94
West Sussex County Council,Children Social Care,Property Maintenance,Billingshurst Cfc - Uprn 1111001,M&E Callout (Eng),05/05/2021,Revenue Expenditure ,Sse Contracting Limited,339.23
West Sussex County Council,Children Social Care,Property Maintenance,Bewbush Cfc - Uprn 1067002,M&E Servicing (Eng),25/05/2021,Revenue Expenditure ,Sse Contracting Limited,129.32
West Sussex County Council,Cultural & Related Services,Library Service,Petworth Library Uprn 61001,Reactive Maintenance,21/05/2021,Revenue Expenditure ,Knight Fencing Ltd,1144.59
West Sussex County Council,Cultural & Related Services,Library Service,Henfield Library Uprn 72001,Reactive Maintenance,05/05/2021,Revenue Expenditure ,Sse Contracting Limited,227.03
West Sussex County Council,Cultural & Related Services,Library Service,Bognor Regis Library Uprn 48001,Reactive Maintenance,12/05/2021,Revenue Expenditure ,Spindler Builders E&P Ltd,850
West Sussex County Council,Cultural & Related Services,Library Service,Willowhale Library Uprn 45001,M&E Servicing (Eng),25/05/2021,Revenue Expenditure ,Sse Contracting Limited,253.79
West Sussex County Council,Cultural & Related Services,Library Service,Selsey Library Uprn 42001,M&E Callout (Eng),05/05/2021,Revenue Expenditure ,Sse Contracting Limited,546.24
West Sussex County Council,Cultural & Related Services,Library Service,Petworth Library Uprn 61001,M&E Servicing (Eng),25/05/2021,Revenue Expenditure ,Sse Contracting Limited,147.94
West Sussex County Council,Cultural & Related Services,Library Service,Littlehampton Library Uprn 59001,M&E Callout (Eng),25/05/2021,Revenue Expenditure ,Sse Contracting Limited,349.9
West Sussex County Council,Cultural & Related Services,Library Service,Littlehampton Library Uprn 59001,M&E Callout (Eng),05/05/2021,Revenue Expenditure ,Sse Contracting Limited,600.48
West Sussex County Council,Cultural & Related Services,Library Service,Littlehampton Library Uprn 59001,M&E Callout (Eng),05/05/2021,Revenue Expenditure ,Sse Contracting Limited,169.28
West Sussex County Council,Cultural & Related Services,Library Service,Lancing Library Uprn 65001,M&E Callout (Eng),25/05/2021,Revenue Expenditure ,Sse Contracting Limited,1351.94
West Sussex County Council,Cultural & Related Services,Library Service,Horsham Library Uprn 144001,M&E Callout (Eng),25/05/2021,Revenue Expenditure ,Sse Contracting Limited,1046.96
West Sussex County Council,Cultural & Related Services,Library Service,Horsham Library Uprn 144001,M&E Callout (Eng),25/05/2021,Revenue Expenditure ,Sse Contracting Limited,949.41
West Sussex County Council,Cultural & Related Services,Library Service,Henfield Library Uprn 72001,M&E Callout (Eng),25/05/2021,Revenue Expenditure ,Sse Contracting Limited,156.69
West Sussex County Council,Cultural & Related Services,Library Service,Haywards Heath Library Uprn 66001,M&E Callout (Eng),25/05/2021,Revenue Expenditure ,Sse Contracting Limited,254.16
West Sussex County Council,Cultural & Related Services,Library Service,Hassocks Library Uprn 73001,M&E Callout (Eng),05/05/2021,Revenue Expenditure ,Sse Contracting Limited,975.84
West Sussex County Council,Cultural & Related Services,Library Service,Goring Library Uprn 75001,M&E Callout (Eng),25/05/2021,Revenue Expenditure ,Sse Contracting Limited,685.19
West Sussex County Council,Cultural & Related Services,Library Service,East Grinstead Library Uprn 49001,M&E Callout (Eng),25/05/2021,Revenue Expenditure ,Sse Contracting Limited,184.14
West Sussex County Council,Cultural & Related Services,Library Service,East Grinstead Library Uprn 49001,M&E Callout (Eng),25/05/2021,Revenue Expenditure ,Sse Contracting Limited,295.88
West Sussex County Council,Cultural & Related Services,Library Service,East Grinstead Library Uprn 49001,M&E Callout (Eng),25/05/2021,Revenue Expenditure ,Sse Contracting Limited,128.49
West Sussex County Council,Cultural & Related Services,Library Service,East Grinstead Library Uprn 49001,M&E Callout (Eng),05/05/2021,Revenue Expenditure ,Sse Contracting Limited,182.11
West Sussex County Council,Cultural & Related Services,Library Service,Durrington Library Uprn 68001,M&E Callout (Eng),25/05/2021,Revenue Expenditure ,Sse Contracting Limited,273.12
West Sussex County Council,Cultural & Related Services,Library Service,Crawley Library Uprn 1130001,M&E Callout (Eng),25/05/2021,Revenue Expenditure ,Sse Contracting Limited,169.28
West Sussex County Council,Cultural & Related Services,Library Service,Crawley Library Uprn 1130001,M&E Servicing (Eng),25/05/2021,Revenue Expenditure ,Sse Contracting Limited,257.87
West Sussex County Council,Cultural & Related Services,Library Service,Crawley Library Uprn 1130001,M&E Callout (Eng),05/05/2021,Revenue Expenditure ,Sse Contracting Limited,259.46
West Sussex County Council,Cultural & Related Services,Library Service,Crawley Library Uprn 1130001,M&E Callout (Eng),05/05/2021,Revenue Expenditure ,Sse Contracting Limited,614.52
West Sussex County Council,Cultural & Related Services,Library Service,Crawley Library Uprn 1130001,M&E Callout (Eng),05/05/2021,Revenue Expenditure ,Sse Contracting Limited,208.14
West Sussex County Council,Cultural & Related Services,Library Service,Crawley Library Uprn 1130001,M&E Servicing (Eng),05/05/2021,Revenue Expenditure ,Sse Contracting Limited,819.36
West Sussex County Council,Cultural & Related Services,Library Service,Crawley Library Uprn 1130001,M&E Servicing (Eng),05/05/2021,Revenue Expenditure ,Sse Contracting Limited,529.17
West Sussex County Council,Cultural & Related Services,Library Service,Chichester Library Uprn 969001,M&E Callout (Eng),25/05/2021,Revenue Expenditure ,Sse Contracting Limited,330.51
West Sussex County Council,Cultural & Related Services,Library Service,Chichester Library Uprn 969001,M&E Callout (Eng),05/05/2021,Revenue Expenditure ,Sse Contracting Limited,123.89
West Sussex County Council,Cultural & Related Services,Library Service,Chichester Library Uprn 969001,M&E Servicing (Eng),05/05/2021,Revenue Expenditure ,Sse Contracting Limited,409.68
West Sussex County Council,Cultural & Related Services,Library Service,Bognor Regis Library Uprn 48001,M&E Servicing (Eng),05/05/2021,Revenue Expenditure ,Sse Contracting Limited,116.87
West Sussex County Council,Cultural & Related Services,Library Service,Billingshurst Library Uprn 58001,M&E Servicing (Eng),25/05/2021,Revenue Expenditure ,Sse Contracting Limited,147.94
West Sussex County Council,Fire & Rescue Services,Property Maintenance,Worthing Fire Station Uprn 235001,Reactive Maintenance,20/05/2021,Revenue Expenditure ,Oglieve & Chapman,750
West Sussex County Council,Fire & Rescue Services,Property Maintenance,Shoreham Fire Station Uprn 234001,Reactive Maintenance,25/05/2021,Revenue Expenditure ,Sse Contracting Limited,443.15
West Sussex County Council,Fire & Rescue Services,Property Maintenance,Henfield Fire Station Uprn 163001,Reactive Maintenance,25/05/2021,Revenue Expenditure ,Sse Contracting Limited,110.96
West Sussex County Council,Fire & Rescue Services,Property Maintenance,East Grinstead Fire Station Uprn 19001,Reactive Maintenance,04/05/2021,Revenue Expenditure ,Sse Contracting Limited,5132
West Sussex County Council,Fire & Rescue Services,Property Maintenance,East Grinstead Fire Station Uprn 19001,Reactive Maintenance,25/05/2021,Revenue Expenditure ,Sse Contracting Limited,272.21
West Sussex County Council,Fire & Rescue Services,Property Maintenance,Burgess Hill Fire Station Uprn 55001,Reactive Maintenance,25/05/2021,Revenue Expenditure ,Sse Contracting Limited,379.52
West Sussex County Council,Fire & Rescue Services,Property Maintenance,Worthing Fire Station Uprn 235001,M&E Servicing (Eng),05/05/2021,Revenue Expenditure ,Sse Contracting Limited,128
West Sussex County Council,Fire & Rescue Services,Property Maintenance,Worthing Fire Station Uprn 235001,M&E Servicing (Eng),05/05/2021,Revenue Expenditure ,Sse Contracting Limited,504.38
West Sussex County Council,Fire & Rescue Services,Property Maintenance,Turners Hill Fire Station Uprn 18001,M&E Callout (Eng),25/05/2021,Revenue Expenditure ,Sse Contracting Limited,323.19
West Sussex County Council,Fire & Rescue Services,Property Maintenance,Turners Hill Fire Station Uprn 18001,M&E Servicing (Eng),05/05/2021,Revenue Expenditure ,Sse Contracting Limited,301.7
West Sussex County Council,Fire & Rescue Services,Property Maintenance,Steyning Fire Station Uprn 189001,M&E Callout (Eng),25/05/2021,Revenue Expenditure ,Sse Contracting Limited,389.31
West Sussex County Council,Fire & Rescue Services,Property Maintenance,Shoreham Fire Station Uprn 234001,M&E Callout (Eng),25/05/2021,Revenue Expenditure ,Sse Contracting Limited,100.95
West Sussex County Council,Fire & Rescue Services,Property Maintenance,Shoreham Fire Station Uprn 234001,M&E Callout (Eng),25/05/2021,Revenue Expenditure ,Sse Contracting Limited,372.13
West Sussex County Council,Fire & Rescue Services,Property Maintenance,Shoreham Fire Station Uprn 234001,M&E Callout (Eng),25/05/2021,Revenue Expenditure ,Sse Contracting Limited,586.73
West Sussex County Council,Fire & Rescue Services,Property Maintenance,Shoreham Fire Station Uprn 234001,M&E Callout (Eng),25/05/2021,Revenue Expenditure ,Sse Contracting Limited,1063.24
West Sussex County Council,Fire & Rescue Services,Property Maintenance,Shoreham Fire Station Uprn 234001,M&E Callout (Eng),25/05/2021,Revenue Expenditure ,Sse Contracting Limited,875.69
West Sussex County Council,Fire & Rescue Services,Property Maintenance,Shoreham Fire Station Uprn 234001,M&E Callout (Eng),05/05/2021,Revenue Expenditure ,Sse Contracting Limited,206.83
West Sussex County Council,Fire & Rescue Services,Property Maintenance,Petworth Fire Station Uprn 403001,M&E Callout (Eng),05/05/2021,Revenue Expenditure ,Sse Contracting Limited,139.41
West Sussex County Council,Fire & Rescue Services,Property Maintenance,Petworth Fire Station Uprn 403001,M&E Callout (Eng),05/05/2021,Revenue Expenditure ,Sse Contracting Limited,1265.23
West Sussex County Council,Fire & Rescue Services,Property Maintenance,Petworth Fire Station Uprn 403001,M&E Servicing (Eng),05/05/2021,Revenue Expenditure ,Sse Contracting Limited,549.67
West Sussex County Council,Fire & Rescue Services,Property Maintenance,Partridge Green Fire Station Uprn 191001,M&E Callout (Eng),05/05/2021,Revenue Expenditure ,Sse Contracting Limited,330.14
West Sussex County Council,Fire & Rescue Services,Property Maintenance,Partridge Green Fire Station Uprn 191001,M&E Servicing (Eng),05/05/2021,Revenue Expenditure ,Sse Contracting Limited,347.42
West Sussex County Council,Fire & Rescue Services,Property Maintenance,Partridge Green Fire Station Uprn 191001,M&E Servicing (Eng),05/05/2021,Revenue Expenditure ,Sse Contracting Limited,113.8
West Sussex County Council,Fire & Rescue Services,Property Maintenance,Midhurst Fire Station Uprn 401001,M&E Callout (Eng),05/05/2021,Revenue Expenditure ,Sse Contracting Limited,110.13
West Sussex County Council,Fire & Rescue Services,Property Maintenance,Midhurst Fire Station Uprn 401001,M&E Servicing (Eng),05/05/2021,Revenue Expenditure ,Sse Contracting Limited,138.84
West Sussex County Council,Fire & Rescue Services,Property Maintenance,Littlehampton Fire Station Uprn 51001,M&E Callout (Eng),05/05/2021,Revenue Expenditure ,Sse Contracting Limited,1088.92
West Sussex County Council,Fire & Rescue Services,Property Maintenance,Lancing Fire Station Uprn 162001,M&E Callout (Eng),25/05/2021,Revenue Expenditure ,Sse Contracting Limited,962.75
West Sussex County Council,Fire & Rescue Services,Property Maintenance,Lancing Fire Station Uprn 162001,M&E Servicing (Eng),25/05/2021,Revenue Expenditure ,Sse Contracting Limited,603.41
West Sussex County Council,Fire & Rescue Services,Property Maintenance,Lancing Fire Station Uprn 162001,M&E Servicing (Eng),25/05/2021,Revenue Expenditure ,Sse Contracting Limited,113.8
West Sussex County Council,Fire & Rescue Services,Property Maintenance,Lancing Fire Station Uprn 162001,M&E Callout (Eng),05/05/2021,Revenue Expenditure ,Sse Contracting Limited,129.65
West Sussex County Council,Fire & Rescue Services,Property Maintenance,Hurstpierpoint Fire Station Uprn 10001,M&E Callout (Eng),25/05/2021,Revenue Expenditure ,Sse Contracting Limited,546.24
West Sussex County Council,Fire & Rescue Services,Property Maintenance,Horley Fire Station Uprn 138001,M&E Servicing (Eng),05/05/2021,Revenue Expenditure ,Sse Contracting Limited,113.8
West Sussex County Council,Fire & Rescue Services,Property Maintenance,Henfield Fire Station Uprn 163001,M&E Callout (Eng),25/05/2021,Revenue Expenditure ,Sse Contracting Limited,299.4
West Sussex County Council,Fire & Rescue Services,Property Maintenance,Haywards Heath Fire Station Uprn 54001,M&E Callout (Eng),25/05/2021,Revenue Expenditure ,Sse Contracting Limited,933.16
West Sussex County Council,Fire & Rescue Services,Property Maintenance,Haywards Heath Fire Station Uprn 54001,M&E Servicing (Eng),05/05/2021,Revenue Expenditure ,Sse Contracting Limited,293.72
West Sussex County Council,Fire & Rescue Services,Property Maintenance,Haywards Heath Fire Station Uprn 54001,M&E Servicing (Eng),05/05/2021,Revenue Expenditure ,Sse Contracting Limited,725.38
West Sussex County Council,Fire & Rescue Services,Property Maintenance,East Grinstead Fire Station Uprn 19001,M&E Callout (Eng),25/05/2021,Revenue Expenditure ,Sse Contracting Limited,801.57
West Sussex County Council,Fire & Rescue Services,Property Maintenance,Crawley Fire Station Uprn 99001,M&E Callout (Eng),05/05/2021,Revenue Expenditure ,Sse Contracting Limited,1231
West Sussex County Council,Fire & Rescue Services,Property Maintenance,Crawley Fire Station Uprn 99001,M&E Callout (Eng),05/05/2021,Revenue Expenditure ,Sse Contracting Limited,284.5
West Sussex County Council,Fire & Rescue Services,Property Maintenance,Chichester Fire Station Uprn 552001,M&E Callout (Eng),25/05/2021,Revenue Expenditure ,Sse Contracting Limited,1035.58
West Sussex County Council,Fire & Rescue Services,Property Maintenance,Chichester Fire Station Uprn 552001,M&E Callout (Eng),05/05/2021,Revenue Expenditure ,Sse Contracting Limited,449.23
West Sussex County Council,Fire & Rescue Services,Property Maintenance,Burgess Hill Fire Station Uprn 55001,M&E Servicing (Eng),05/05/2021,Revenue Expenditure ,Sse Contracting Limited,113.8
West Sussex County Council,Fire & Rescue Services,Property Maintenance,Bognor Fire Station Uprn 378001,M&E Callout (Eng),25/05/2021,Revenue Expenditure ,Sse Contracting Limited,299.36
West Sussex County Council,Fire & Rescue Services,Property Maintenance,Bognor Fire Station Uprn 378001,M&E Callout (Eng),05/05/2021,Revenue Expenditure ,Sse Contracting Limited,420.61
West Sussex County Council,Support Service And Management Costs,Property Maintenance,Worthing Hub_Various Afm Works,Furniture & Fittings,04/05/2021,Revenue Expenditure ,P Card Royal Bank Of Scotland Plc,618.61
West Sussex County Council,Support Service And Management Costs,Property Maintenance,Chichester Hub_Various Afm Works,Reactive Maintenance,28/05/2021,Revenue Expenditure ,Falcon Homes (Sussex) Ltd,3837
West Sussex County Council,Support Service And Management Costs,Property Maintenance,Horsham_Various Hub_Afm Works,Reactive Maintenance,07/05/2021,Revenue Expenditure ,Falcon Homes (Sussex) Ltd,25000
West Sussex County Council,Support Service And Management Costs,Property Maintenance,Horsham Hub_Electrical Inspection And Te,M&E Servicing (Eng),05/05/2021,Revenue Expenditure ,Sse Contracting Limited,169.35
West Sussex County Council,Support Service And Management Costs,Property Maintenance,Reg 14 Glazing Survey/Remedials,Building Maintenance,14/05/2021,Revenue Expenditure ,Sun-X (Uk) Ltd,635
West Sussex County Council,Support Service And Management Costs,Property Maintenance,Reg 14 Glazing Survey/Remedials,Building Maintenance,14/05/2021,Revenue Expenditure ,Sun-X (Uk) Ltd,830
West Sussex County Council,Support Service And Management Costs,Property Maintenance,Reg 14 Glazing Survey/Remedials,Building Maintenance,14/05/2021,Revenue Expenditure ,Sun-X (Uk) Ltd,630
West Sussex County Council,Support Service And Management Costs,Property Maintenance,Reg 14 Glazing Survey/Remedials,Building Maintenance,14/05/2021,Revenue Expenditure ,Sun-X (Uk) Ltd,1155
West Sussex County Council,Support Service And Management Costs,Property Maintenance,Reg 14 Glazing Survey/Remedials,Building Maintenance,14/05/2021,Revenue Expenditure ,Sun-X (Uk) Ltd,2730
West Sussex County Council,Support Service And Management Costs,Property Maintenance,Reg 14 Glazing Survey/Remedials,Building Maintenance,14/05/2021,Revenue Expenditure ,Sun-X (Uk) Ltd,555
West Sussex County Council,Support Service And Management Costs,Property Maintenance,Reg 14 Glazing Survey/Remedials,Building Maintenance,18/05/2021,Revenue Expenditure ,Sun-X (Uk) Ltd,1585
West Sussex County Council,Support Service And Management Costs,Property Maintenance,Reg 14 Glazing Survey/Remedials,Building Maintenance,25/05/2021,Revenue Expenditure ,Sun-X (Uk) Ltd,675
West Sussex County Council,Support Service And Management Costs,Property Maintenance,Pollution Control,Reactive Maintenance,25/05/2021,Revenue Expenditure ,Cleansing Service Group Ltd,839.45
West Sussex County Council,Support Service And Management Costs,Property Maintenance,Pollution Control,Reactive Maintenance,25/05/2021,Revenue Expenditure ,Cleansing Service Group Ltd,573.45
West Sussex County Council,Support Service And Management Costs,Property Maintenance,Pollution Control,Reactive Maintenance,18/05/2021,Revenue Expenditure ,Cleansing Service Group Ltd,1200
West Sussex County Council,Support Service And Management Costs,Property Maintenance,Gilgen Doors_Call Out,Reactive Maintenance,28/05/2021,Revenue Expenditure ,Gduk Door Solutions Limited,798
West Sussex County Council,Additional Costs Arising From Covid 19,Covid 19 Costs,Facilities Management,Cleaning Contracts,17/05/2021,Revenue Expenditure ,Churchill Contract Services Ltd,986.37
West Sussex County Council,Additional Costs Arising From Covid 19,Covid 19 Costs,Ppe Storage,Delegated Maintenanc,04/05/2021,Revenue Expenditure ,Howell Transport & Haulage Ltd,687.5
West Sussex County Council,Additional Costs Arising From Covid 19,Covid 19 Costs,Facilities Management,Cleaning Contracts,04/05/2021,Revenue Expenditure ,Churchill Contract Services Ltd,549.91
West Sussex County Council,Additional Costs Arising From Covid 19,Covid 19 Costs,Facilities Management,Cleaning Contracts,04/05/2021,Revenue Expenditure ,Churchill Contract Services Ltd,704.14
West Sussex County Council,Additional Costs Arising From Covid 19,Covid 19 Costs,Facilities Management,Cleaning Contracts,04/05/2021,Revenue Expenditure ,Churchill Contract Services Ltd,1126.62
West Sussex County Council,Additional Costs Arising From Covid 19,Covid 19 Costs,Facilities Management,Cleaning Contracts,04/05/2021,Revenue Expenditure ,Churchill Contract Services Ltd,481.69
West Sussex County Council,Additional Costs Arising From Covid 19,Covid 19 Costs,Facilities Management,Programmed Maint.,06/05/2021,Revenue Expenditure ,Falcon Homes (Sussex) Ltd,2215
West Sussex County Council,Additional Costs Arising From Covid 19,Covid 19 Costs,Facilities Management,Cleaning Contracts,28/05/2021,Revenue Expenditure ,Churchill Contract Services Ltd,789.89
West Sussex County Council,Additional Costs Arising From Covid 19,Covid 19 Costs,Facilities Management,Cleaning Contracts,28/05/2021,Revenue Expenditure ,Churchill Contract Services Ltd,440.75
West Sussex County Council,Additional Costs Arising From Covid 19,Covid 19 Costs,Facilities Management,Cleaning Contracts,28/05/2021,Revenue Expenditure ,Churchill Contract Services Ltd,506.98
West Sussex County Council,Additional Costs Arising From Covid 19,Covid 19 Costs,Facilities Management,Cleaning Contracts,28/05/2021,Revenue Expenditure ,Churchill Contract Services Ltd,563.31
West Sussex County Council,Additional Costs Arising From Covid 19,Covid 19 Costs,Facilities Management,Reactive Maintenance,26/05/2021,Revenue Expenditure ,Blue Building Contractors Ltd,21178
West Sussex County Council,Additional Costs Arising From Covid 19,Covid 19 Costs,Inf Cont 21/22 - Payments To Care Homes,Long Term care,28/05/2021,Revenue Expenditure ,The Dignity Group Ltd,7752
West Sussex County Council,Additional Costs Arising From Covid 19,Covid 19 Costs,Inf Cont 21/22 - Payments To Care Homes,Long Term care,28/05/2021,Revenue Expenditure ,Baytrees Homes Ltd,12240
West Sussex County Council,Additional Costs Arising From Covid 19,Covid 19 Costs,Inf Cont 21/22 - Payments To Care Homes,Long Term care,28/05/2021,Revenue Expenditure ,Elderet Limited :Woodbine Manor,11832
West Sussex County Council,Additional Costs Arising From Covid 19,Covid 19 Costs,Inf Cont 21/22 - Payments To Care Homes,Long Term care,28/05/2021,Revenue Expenditure ,Woodlands House,5712
West Sussex County Council,Additional Costs Arising From Covid 19,Covid 19 Costs,Inf Cont 21/22 - Payments To Care Homes,Long Term care,28/05/2021,Revenue Expenditure ,L'Hampton & Rust'Ton Hous Soc,25296
West Sussex County Council,Additional Costs Arising From Covid 19,Covid 19 Costs,Inf Cont 21/22 - Payments To Care Homes,Long Term care,28/05/2021,Revenue Expenditure ,Order Of John Care Trust,9792
West Sussex County Council,Additional Costs Arising From Covid 19,Covid 19 Costs,Inf Cont 21/22 - Payments To Care Homes,Long Term care,28/05/2021,Revenue Expenditure ,Drumconner Homes Ltd,24480
West Sussex County Council,Additional Costs Arising From Covid 19,Covid 19 Costs,Inf Cont 21/22 - Payments To Care Homes,Long Term care,28/05/2021,Revenue Expenditure ,Heaton House Residential Hme,5712
West Sussex County Council,Additional Costs Arising From Covid 19,Covid 19 Costs,Inf Cont 21/22 - Payments To Care Homes,Long Term care,28/05/2021,Revenue Expenditure ,L'Arche,2448
West Sussex County Council,Additional Costs Arising From Covid 19,Covid 19 Costs,Inf Cont 21/22 - Payments To Care Homes,Long Term care,28/05/2021,Revenue Expenditure ,L'Arche,2448
West Sussex County Council,Additional Costs Arising From Covid 19,Covid 19 Costs,Inf Cont 21/22 - Payments To Care Homes,Long Term care,28/05/2021,Revenue Expenditure ,L'Arche,2040
West Sussex County Council,Additional Costs Arising From Covid 19,Covid 19 Costs,Inf Cont 21/22 - Payments To Care Homes,Long Term care,28/05/2021,Revenue Expenditure ,Touchstones Care Ltd,7752
West Sussex County Council,Additional Costs Arising From Covid 19,Covid 19 Costs,Inf Cont 21/22 - Payments To Care Homes,Long Term care,28/05/2021,Revenue Expenditure ,Queen Alexandra Hospital Home,24480
West Sussex County Council,Additional Costs Arising From Covid 19,Covid 19 Costs,Inf Cont 21/22 - Payments To Care Homes,Long Term care,28/05/2021,Revenue Expenditure ,Yew Tree Nursing Home,16320
West Sussex County Council,Additional Costs Arising From Covid 19,Covid 19 Costs,Inf Cont 21/22 - Payments To Care Homes,Long Term care,28/05/2021,Revenue Expenditure ,Truscott Manor,15912
West Sussex County Council,Additional Costs Arising From Covid 19,Covid 19 Costs,Inf Cont 21/22 - Payments To Care Homes,Long Term care,28/05/2021,Revenue Expenditure ,Villa Adastra,16320
West Sussex County Council,Additional Costs Arising From Covid 19,Covid 19 Costs,Inf Cont 21/22 - Payments To Care Homes,Long Term care,28/05/2021,Revenue Expenditure ,Kargini Care Services Ltd,8160
West Sussex County Council,Additional Costs Arising From Covid 19,Covid 19 Costs,Inf Cont 21/22 - Payments To Care Homes,Long Term care,28/05/2021,Revenue Expenditure ,Westholme Clinic Ltd,22440
West Sussex County Council,Additional Costs Arising From Covid 19,Covid 19 Costs,Inf Cont 21/22 - Payments To Care Homes,Long Term care,28/05/2021,Revenue Expenditure ,Avon House (Cobham Care Limited),10608
West Sussex County Council,Additional Costs Arising From Covid 19,Covid 19 Costs,Inf Cont 21/22 - Payments To Care Homes,Long Term care,28/05/2021,Revenue Expenditure ,Techcrown Ltd,16320
West Sussex County Council,Additional Costs Arising From Covid 19,Covid 19 Costs,Inf Cont 21/22 - Payments To Care Homes,Long Term care,28/05/2021,Revenue Expenditure ,Koinonia Christian Care,15912
West Sussex County Council,Additional Costs Arising From Covid 19,Covid 19 Costs,Inf Cont 21/22 - Payments To Care Homes,Long Term care,28/05/2021,Revenue Expenditure ,Lobswood House,10608
West Sussex County Council,Additional Costs Arising From Covid 19,Covid 19 Costs,Inf Cont 21/22 - Payments To Care Homes,Long Term care,28/05/2021,Revenue Expenditure ,Hitchens Mr M J,8976
West Sussex County Council,Additional Costs Arising From Covid 19,Covid 19 Costs,Inf Cont 21/22 - Payments To Care Homes,Long Term care,28/05/2021,Revenue Expenditure ,Burlington,16320
West Sussex County Council,Additional Costs Arising From Covid 19,Covid 19 Costs,Inf Cont 21/22 - Payments To Care Homes,Long Term care,28/05/2021,Revenue Expenditure ,Newcare Homes Ltd,16728
West Sussex County Council,Additional Costs Arising From Covid 19,Covid 19 Costs,Inf Cont 21/22 - Payments To Care Homes,Long Term care,28/05/2021,Revenue Expenditure ,Cadogan Care Ltd,14280
West Sussex County Council,Additional Costs Arising From Covid 19,Covid 19 Costs,Inf Cont 21/22 - Payments To Care Homes,Long Term care,28/05/2021,Revenue Expenditure ,Petworth Cottage Nurs & Conv H,13056
West Sussex County Council,Additional Costs Arising From Covid 19,Covid 19 Costs,Inf Cont 21/22 - Payments To Care Homes,Long Term care,28/05/2021,Revenue Expenditure ,Albany House,7344
West Sussex County Council,Additional Costs Arising From Covid 19,Covid 19 Costs,Inf Cont 21/22 - Payments To Care Homes,Long Term care,28/05/2021,Revenue Expenditure ,Follett Care Limited,11424
West Sussex County Council,Additional Costs Arising From Covid 19,Covid 19 Costs,Inf Cont 21/22 - Payments To Care Homes,Long Term care,28/05/2021,Revenue Expenditure ,Westermain Ltd,10200
West Sussex County Council,Additional Costs Arising From Covid 19,Covid 19 Costs,Inf Cont 21/22 - Payments To Care Homes,Long Term care,28/05/2021,Revenue Expenditure ,Brockenhurst,15504
West Sussex County Council,Additional Costs Arising From Covid 19,Covid 19 Costs,Inf Cont 21/22 - Payments To Care Homes,Long Term care,28/05/2021,Revenue Expenditure ,Mr A Hill And Mrs J Hill,6936
West Sussex County Council,Additional Costs Arising From Covid 19,Covid 19 Costs,Inf Cont 21/22 - Payments To Care Homes,Long Term care,28/05/2021,Revenue Expenditure ,Administrator Of Silver Court 06516,17136
West Sussex County Council,Additional Costs Arising From Covid 19,Covid 19 Costs,Inf Cont 21/22 - Payments To Care Homes,Long Term care,28/05/2021,Revenue Expenditure ,Sound Homes Ltd,7344
West Sussex County Council,Additional Costs Arising From Covid 19,Covid 19 Costs,Inf Cont 21/22 - Payments To Care Homes,Long Term care,28/05/2021,Revenue Expenditure ,Lindfield Christian Care Home,11016
West Sussex County Council,Additional Costs Arising From Covid 19,Covid 19 Costs,Inf Cont 21/22 - Payments To Care Homes,Long Term care,28/05/2021,Revenue Expenditure ,Springfield Health Services Ltd,17952
West Sussex County Council,Additional Costs Arising From Covid 19,Covid 19 Costs,Inf Cont 21/22 - Payments To Care Homes,Long Term care,28/05/2021,Revenue Expenditure ,Colville Care Ltd,11424
West Sussex County Council,Additional Costs Arising From Covid 19,Covid 19 Costs,Inf Cont 21/22 - Payments To Care Homes,Long Term care,28/05/2021,Revenue Expenditure ,Duckyls Farm Centre,4080
West Sussex County Council,Additional Costs Arising From Covid 19,Covid 19 Costs,Inf Cont 21/22 - Payments To Care Homes,Long Term care,28/05/2021,Revenue Expenditure ,Oaklodge Nursing Home,12648
West Sussex County Council,Additional Costs Arising From Covid 19,Covid 19 Costs,Inf Cont 21/22 - Payments To Care Homes,Long Term care,28/05/2021,Revenue Expenditure ,Ashcroft Care Services,2040
West Sussex County Council,Additional Costs Arising From Covid 19,Covid 19 Costs,Inf Cont 21/22 - Payments To Care Homes,Long Term care,28/05/2021,Revenue Expenditure ,Pavoni Mr And Mrs Ra,7344
West Sussex County Council,Additional Costs Arising From Covid 19,Covid 19 Costs,Inf Cont 21/22 - Payments To Care Homes,Long Term care,28/05/2021,Revenue Expenditure ,Kent Mrs E T/A Oban House,12240
West Sussex County Council,Additional Costs Arising From Covid 19,Covid 19 Costs,Inf Cont 21/22 - Payments To Care Homes,Long Term care,28/05/2021,Revenue Expenditure ,St Michaels'S Care Home Ltd,14280
West Sussex County Council,Additional Costs Arising From Covid 19,Covid 19 Costs,Inf Cont 21/22 - Payments To Care Homes,Long Term care,28/05/2021,Revenue Expenditure ,Barnham Manor,13464
West Sussex County Council,Additional Costs Arising From Covid 19,Covid 19 Costs,Inf Cont 21/22 - Payments To Care Homes,Long Term care,28/05/2021,Revenue Expenditure ,J Day & S Snelling,3264
West Sussex County Council,Additional Costs Arising From Covid 19,Covid 19 Costs,Inf Cont 21/22 - Payments To Care Homes,Long Term care,28/05/2021,Revenue Expenditure ,Ashcroft Care Services,2040
West Sussex County Council,Additional Costs Arising From Covid 19,Covid 19 Costs,Inf Cont 21/22 - Payments To Care Homes,Long Term care,28/05/2021,Revenue Expenditure ,Dovecote View Limited,13872
West Sussex County Council,Additional Costs Arising From Covid 19,Covid 19 Costs,Inf Cont 21/22 - Payments To Care Homes,Long Term care,28/05/2021,Revenue Expenditure ,Assured Care Services Ltd,13056
West Sussex County Council,Additional Costs Arising From Covid 19,Covid 19 Costs,Inf Cont 21/22 - Payments To Care Homes,Long Term care,28/05/2021,Revenue Expenditure ,Bushby Care Ltd,10608
West Sussex County Council,Additional Costs Arising From Covid 19,Covid 19 Costs,Inf Cont 21/22 - Payments To Care Homes,Long Term care,28/05/2021,Revenue Expenditure ,Melrose Care Home,10608
West Sussex County Council,Additional Costs Arising From Covid 19,Covid 19 Costs,Inf Cont 21/22 - Payments To Care Homes,Long Term care,28/05/2021,Revenue Expenditure ,Arundel Care Services Ltd,2856
West Sussex County Council,Additional Costs Arising From Covid 19,Covid 19 Costs,Inf Cont 21/22 - Payments To Care Homes,Long Term care,28/05/2021,Revenue Expenditure ,Arundel Care Services Ltd,2448
West Sussex County Council,Additional Costs Arising From Covid 19,Covid 19 Costs,Inf Cont 21/22 - Payments To Care Homes,Long Term care,28/05/2021,Revenue Expenditure ,Arundel Care Services Ltd,2448
West Sussex County Council,Additional Costs Arising From Covid 19,Covid 19 Costs,Inf Cont 21/22 - Payments To Care Homes,Long Term care,28/05/2021,Revenue Expenditure ,Avon Manor (Cobham Care Ltd),11424
West Sussex County Council,Additional Costs Arising From Covid 19,Covid 19 Costs,Inf Cont 21/22 - Payments To Care Homes,Long Term care,28/05/2021,Revenue Expenditure ,Deepdene Care Ltd,14280
West Sussex County Council,Additional Costs Arising From Covid 19,Covid 19 Costs,Inf Cont 21/22 - Payments To Care Homes,Long Term care,28/05/2021,Revenue Expenditure ,Dr Kalkat & Mr Nijjar,7344
West Sussex County Council,Additional Costs Arising From Covid 19,Covid 19 Costs,Inf Cont 21/22 - Payments To Care Homes,Long Term care,28/05/2021,Revenue Expenditure ,Care South,31416
West Sussex County Council,Additional Costs Arising From Covid 19,Covid 19 Costs,Inf Cont 21/22 - Payments To Care Homes,Long Term care,28/05/2021,Revenue Expenditure ,Hazelwood Care Ltd,8160
West Sussex County Council,Additional Costs Arising From Covid 19,Covid 19 Costs,Inf Cont 21/22 - Payments To Care Homes,Long Term care,28/05/2021,Revenue Expenditure ,Meadowcroft Care Limited,8160
West Sussex County Council,Additional Costs Arising From Covid 19,Covid 19 Costs,Inf Cont 21/22 - Payments To Care Homes,Long Term care,28/05/2021,Revenue Expenditure ,Excel Care Homes Ltd T/A Aniska Lod,19992
West Sussex County Council,Additional Costs Arising From Covid 19,Covid 19 Costs,Inf Cont 21/22 - Payments To Care Homes,Long Term care,28/05/2021,Revenue Expenditure ,The Bill House,15504
West Sussex County Council,Additional Costs Arising From Covid 19,Covid 19 Costs,Inf Cont 21/22 - Payments To Care Homes,Long Term care,28/05/2021,Revenue Expenditure ,First Care Uk Ltd,8160
West Sussex County Council,Additional Costs Arising From Covid 19,Covid 19 Costs,Inf Cont 21/22 - Payments To Care Homes,Long Term care,28/05/2021,Revenue Expenditure ,Amberley Lodge Care Home Ltd,6936
West Sussex County Council,Additional Costs Arising From Covid 19,Covid 19 Costs,Inf Cont 21/22 - Payments To Care Homes,Long Term care,28/05/2021,Revenue Expenditure ,Cantonfield Ltd,5304
West Sussex County Council,Additional Costs Arising From Covid 19,Covid 19 Costs,Inf Cont 21/22 - Payments To Care Homes,Long Term care,28/05/2021,Revenue Expenditure ,Cheerhealth (Selsey) Ltd,15096
West Sussex County Council,Additional Costs Arising From Covid 19,Covid 19 Costs,Inf Cont 21/22 - Payments To Care Homes,Long Term care,28/05/2021,Revenue Expenditure ,Autumn Lodge Ltd,7752
West Sussex County Council,Additional Costs Arising From Covid 19,Covid 19 Costs,Inf Cont 21/22 - Payments To Care Homes,Long Term care,28/05/2021,Revenue Expenditure ,Summerlands Care Ltd,12648
West Sussex County Council,Additional Costs Arising From Covid 19,Covid 19 Costs,Inf Cont 21/22 - Payments To Care Homes,Long Term care,28/05/2021,Revenue Expenditure ,Radiant Care Ltd,11832
West Sussex County Council,Additional Costs Arising From Covid 19,Covid 19 Costs,Inf Cont 21/22 - Payments To Care Homes,Long Term care,28/05/2021,Revenue Expenditure ,Keychange Charity,12240
West Sussex County Council,Additional Costs Arising From Covid 19,Covid 19 Costs,Inf Cont 21/22 - Payments To Care Homes,Long Term care,28/05/2021,Revenue Expenditure ,Keychange Charity,11832
West Sussex County Council,Additional Costs Arising From Covid 19,Covid 19 Costs,Inf Cont 21/22 - Payments To Care Homes,Long Term care,28/05/2021,Revenue Expenditure ,Russettings Care Ltd,18360
West Sussex County Council,Additional Costs Arising From Covid 19,Covid 19 Costs,Inf Cont 21/22 - Payments To Care Homes,Long Term care,28/05/2021,Revenue Expenditure ,Ashdown Lodge Care Home Limited,5304
West Sussex County Council,Additional Costs Arising From Covid 19,Covid 19 Costs,Inf Cont 21/22 - Payments To Care Homes,Long Term care,28/05/2021,Revenue Expenditure ,Chalcraft Hall Care Home,8160
West Sussex County Council,Additional Costs Arising From Covid 19,Covid 19 Costs,Inf Cont 21/22 - Payments To Care Homes,Long Term care,28/05/2021,Revenue Expenditure ,Seagry Care Limited,6936
West Sussex County Council,Additional Costs Arising From Covid 19,Covid 19 Costs,Inf Cont 21/22 - Payments To Care Homes,Long Term care,28/05/2021,Revenue Expenditure ,S Arjuna,11016
West Sussex County Council,Additional Costs Arising From Covid 19,Covid 19 Costs,Inf Cont 21/22 - Payments To Care Homes,Long Term care,28/05/2021,Revenue Expenditure ,Mypath Ltd,7344
West Sussex County Council,Additional Costs Arising From Covid 19,Covid 19 Costs,Inf Cont 21/22 - Payments To Care Homes,Long Term care,28/05/2021,Revenue Expenditure ,Alexander House Care Limited,9384
West Sussex County Council,Additional Costs Arising From Covid 19,Covid 19 Costs,Inf Cont 21/22 - Payments To Care Homes,Long Term care,28/05/2021,Revenue Expenditure ,Mantra Care Homes Ltd,10608
West Sussex County Council,Additional Costs Arising From Covid 19,Covid 19 Costs,Inf Cont 21/22 - Payments To Care Homes,Long Term care,28/05/2021,Revenue Expenditure ,Nara Healthcare Limited,9792
West Sussex County Council,Additional Costs Arising From Covid 19,Covid 19 Costs,Inf Cont 21/22 - Payments To Care Homes,Long Term care,28/05/2021,Revenue Expenditure ,Mr Nayanapriya Mahendra Kuruppliara,5712
West Sussex County Council,Additional Costs Arising From Covid 19,Covid 19 Costs,Inf Cont 21/22 - Payments To Care Homes,Long Term care,28/05/2021,Revenue Expenditure ,The Disabilities Trust,9384
West Sussex County Council,Additional Costs Arising From Covid 19,Covid 19 Costs,Inf Cont 21/22 - Payments To Care Homes,Long Term care,28/05/2021,Revenue Expenditure ,Platinum Homecare (Sc) Ltd,5712
West Sussex County Council,Additional Costs Arising From Covid 19,Covid 19 Costs,Inf Cont 21/22 - Payments To Care Homes,Long Term care,28/05/2021,Revenue Expenditure ,Fulford Care Home Ltd,30192
West Sussex County Council,Additional Costs Arising From Covid 19,Covid 19 Costs,Inf Cont 21/22 - Payments To Care Homes,Long Term care,28/05/2021,Revenue Expenditure ,Terry'S Cross Trust,4896
West Sussex County Council,Additional Costs Arising From Covid 19,Covid 19 Costs,Inf Cont 21/22 - Payments To Care Homes,Long Term care,28/05/2021,Revenue Expenditure ,Heathfield (Horsham) Ltd,14688
West Sussex County Council,Additional Costs Arising From Covid 19,Covid 19 Costs,Inf Cont 21/22 - Payments To Care Homes,Long Term care,28/05/2021,Revenue Expenditure ,Larchwood Care Homes (South) Limite,21216
West Sussex County Council,Additional Costs Arising From Covid 19,Covid 19 Costs,Inf Cont 21/22 - Payments To Care Homes,Long Term care,28/05/2021,Revenue Expenditure ,Qh St Mary'S Ltd,10200
West Sussex County Council,Additional Costs Arising From Covid 19,Covid 19 Costs,Inf Cont 21/22 - Payments To Care Homes,Long Term care,28/05/2021,Revenue Expenditure ,Outreach 3 Way,8976
West Sussex County Council,Additional Costs Arising From Covid 19,Covid 19 Costs,Inf Cont 21/22 - Payments To Care Homes,Long Term care,28/05/2021,Revenue Expenditure ,The Beeches Worthing Limited,16320
West Sussex County Council,Additional Costs Arising From Covid 19,Covid 19 Costs,Inf Cont 21/22 - Payments To Care Homes,Long Term care,28/05/2021,Revenue Expenditure ,South Coast Nursing Homes Ltd,21624
West Sussex County Council,Additional Costs Arising From Covid 19,Covid 19 Costs,Inf Cont 21/22 - Payments To Care Homes,Long Term care,28/05/2021,Revenue Expenditure ,Oakland Court Ltd,15096
West Sussex County Council,Additional Costs Arising From Covid 19,Covid 19 Costs,Inf Cont 21/22 - Payments To Care Homes,Long Term care,28/05/2021,Revenue Expenditure ,Littlefair Care Home Limited,16728
West Sussex County Council,Additional Costs Arising From Covid 19,Covid 19 Costs,Inf Cont 21/22 - Payments To Care Homes,Long Term care,28/05/2021,Revenue Expenditure ,South Coast Nursing Homes Ltd,10200
West Sussex County Council,Additional Costs Arising From Covid 19,Covid 19 Costs,Inf Cont 21/22 - Payments To Care Homes,Long Term care,28/05/2021,Revenue Expenditure ,Sussex Housing And Care,14280
West Sussex County Council,Additional Costs Arising From Covid 19,Covid 19 Costs,Inf Cont 21/22 - Payments To Care Homes,Long Term care,28/05/2021,Revenue Expenditure ,Medicrest Ltd,20400
West Sussex County Council,Additional Costs Arising From Covid 19,Covid 19 Costs,Inf Cont 21/22 - Payments To Care Homes,Long Term care,28/05/2021,Revenue Expenditure ,Guild Care,24888
West Sussex County Council,Additional Costs Arising From Covid 19,Covid 19 Costs,Inf Cont 21/22 - Payments To Care Homes,Long Term care,28/05/2021,Revenue Expenditure ,Guild Care,27336
West Sussex County Council,Additional Costs Arising From Covid 19,Covid 19 Costs,Inf Cont 21/22 - Payments To Care Homes,Long Term care,28/05/2021,Revenue Expenditure ,Guild Care,22032
West Sussex County Council,Additional Costs Arising From Covid 19,Covid 19 Costs,Inf Cont 21/22 - Payments To Care Homes,Long Term care,28/05/2021,Revenue Expenditure ,South Coast Nursing Homes Ltd,12240
West Sussex County Council,Additional Costs Arising From Covid 19,Covid 19 Costs,Inf Cont 21/22 - Payments To Care Homes,Long Term care,28/05/2021,Revenue Expenditure ,South Coast Nursing Homes Ltd.,18768
West Sussex County Council,Additional Costs Arising From Covid 19,Covid 19 Costs,Inf Cont 21/22 - Payments To Care Homes,Long Term care,28/05/2021,Revenue Expenditure ,South Coast Nursing Homes Ltd,13056
West Sussex County Council,Additional Costs Arising From Covid 19,Covid 19 Costs,Inf Cont 21/22 - Payments To Care Homes,Long Term care,28/05/2021,Revenue Expenditure ,Consensus Support,4080
West Sussex County Council,Additional Costs Arising From Covid 19,Covid 19 Costs,Inf Cont 21/22 - Payments To Care Homes,Long Term care,28/05/2021,Revenue Expenditure ,Consensus Support,4080
West Sussex County Council,Additional Costs Arising From Covid 19,Covid 19 Costs,Inf Cont 21/22 - Payments To Care Homes,Long Term care,28/05/2021,Revenue Expenditure ,Outreach 3 Way,2856
West Sussex County Council,Additional Costs Arising From Covid 19,Covid 19 Costs,Inf Cont 21/22 - Payments To Care Homes,Long Term care,28/05/2021,Revenue Expenditure ,Outreach 3 Way,2448
West Sussex County Council,Additional Costs Arising From Covid 19,Covid 19 Costs,Inf Cont 21/22 - Payments To Care Homes,Long Term care,28/05/2021,Revenue Expenditure ,Disabilities Trust,1632
West Sussex County Council,Additional Costs Arising From Covid 19,Covid 19 Costs,Inf Cont 21/22 - Payments To Care Homes,Long Term care,28/05/2021,Revenue Expenditure ,Disabilities Trust,10200
West Sussex County Council,Additional Costs Arising From Covid 19,Covid 19 Costs,Inf Cont 21/22 - Payments To Care Homes,Long Term care,28/05/2021,Revenue Expenditure ,Disabilities Trust,1632
West Sussex County Council,Additional Costs Arising From Covid 19,Covid 19 Costs,Inf Cont 21/22 - Payments To Care Homes,Long Term care,28/05/2021,Revenue Expenditure ,Disabilities Trust,1632
West Sussex County Council,Additional Costs Arising From Covid 19,Covid 19 Costs,Inf Cont 21/22 - Payments To Care Homes,Long Term care,28/05/2021,Revenue Expenditure ,Homebeech Ltd,17136
West Sussex County Council,Additional Costs Arising From Covid 19,Covid 19 Costs,Inf Cont 21/22 - Payments To Care Homes,Long Term care,28/05/2021,Revenue Expenditure ,Homebeech Ltd,26928
West Sussex County Council,Additional Costs Arising From Covid 19,Covid 19 Costs,Inf Cont 21/22 - Payments To Care Homes,Long Term care,28/05/2021,Revenue Expenditure ,Homebeech Ltd,16320
West Sussex County Council,Additional Costs Arising From Covid 19,Covid 19 Costs,Inf Cont 21/22 - Payments To Care Homes,Long Term care,28/05/2021,Revenue Expenditure ,Ashton Care,15096
West Sussex County Council,Additional Costs Arising From Covid 19,Covid 19 Costs,Inf Cont 21/22 - Payments To Care Homes,Long Term care,28/05/2021,Revenue Expenditure ,Ashton Care,11832
West Sussex County Council,Additional Costs Arising From Covid 19,Covid 19 Costs,Inf Cont 21/22 - Payments To Care Homes,Long Term care,28/05/2021,Revenue Expenditure ,Ashton Care,8976
West Sussex County Council,Additional Costs Arising From Covid 19,Covid 19 Costs,Inf Cont 21/22 - Payments To Care Homes,Long Term care,28/05/2021,Revenue Expenditure ,Voyage Ltd,1632
West Sussex County Council,Additional Costs Arising From Covid 19,Covid 19 Costs,Inf Cont 21/22 - Payments To Care Homes,Long Term care,28/05/2021,Revenue Expenditure ,Voyage Ltd,1632
West Sussex County Council,Additional Costs Arising From Covid 19,Covid 19 Costs,Inf Cont 21/22 - Payments To Care Homes,Long Term care,28/05/2021,Revenue Expenditure ,Voyage Ltd,1632
West Sussex County Council,Additional Costs Arising From Covid 19,Covid 19 Costs,Inf Cont 21/22 - Payments To Care Homes,Long Term care,28/05/2021,Revenue Expenditure ,Sussex Grange Ltd,8160
West Sussex County Council,Additional Costs Arising From Covid 19,Covid 19 Costs,Inf Cont 21/22 - Payments To Care Homes,Long Term care,28/05/2021,Revenue Expenditure ,Caring Homes Group Limited,19584
West Sussex County Council,Additional Costs Arising From Covid 19,Covid 19 Costs,Inf Cont 21/22 - Payments To Care Homes,Long Term care,28/05/2021,Revenue Expenditure ,Lifetimecare Uk Ltd,20400
West Sussex County Council,Additional Costs Arising From Covid 19,Covid 19 Costs,Inf Cont 21/22 - Payments To Care Homes,Long Term care,28/05/2021,Revenue Expenditure ,Shaw Healthcare (West Sussex ) Ltd,24480
West Sussex County Council,Additional Costs Arising From Covid 19,Covid 19 Costs,Inf Cont 21/22 - Payments To Care Homes,Long Term care,28/05/2021,Revenue Expenditure ,Shaw Healthcare (West Sussex ) Ltd,24480
West Sussex County Council,Additional Costs Arising From Covid 19,Covid 19 Costs,Inf Cont 21/22 - Payments To Care Homes,Long Term care,28/05/2021,Revenue Expenditure ,Shaw Healthcare (West Sussex ) Ltd,36720
West Sussex County Council,Additional Costs Arising From Covid 19,Covid 19 Costs,Inf Cont 21/22 - Payments To Care Homes,Long Term care,28/05/2021,Revenue Expenditure ,Shaw Healthcare (West Sussex ) Ltd,24480
West Sussex County Council,Additional Costs Arising From Covid 19,Covid 19 Costs,Inf Cont 21/22 - Payments To Care Homes,Long Term care,28/05/2021,Revenue Expenditure ,Shaw Healthcare (West Sussex ) Ltd,24480
West Sussex County Council,Additional Costs Arising From Covid 19,Covid 19 Costs,Inf Cont 21/22 - Payments To Care Homes,Long Term care,28/05/2021,Revenue Expenditure ,Shaw Healthcare (West Sussex ) Ltd,16320
West Sussex County Council,Additional Costs Arising From Covid 19,Covid 19 Costs,Inf Cont 21/22 - Payments To Care Homes,Long Term care,28/05/2021,Revenue Expenditure ,Shaw Healthcare (West Sussex ) Ltd,24480
West Sussex County Council,Additional Costs Arising From Covid 19,Covid 19 Costs,Inf Cont 21/22 - Payments To Care Homes,Long Term care,28/05/2021,Revenue Expenditure ,Shaw Healthcare (West Sussex ) Ltd,28560
West Sussex County Council,Additional Costs Arising From Covid 19,Covid 19 Costs,Inf Cont 21/22 - Payments To Care Homes,Long Term care,28/05/2021,Revenue Expenditure ,Shaw Healthcare (West Sussex ) Ltd,24480
West Sussex County Council,Additional Costs Arising From Covid 19,Covid 19 Costs,Inf Cont 21/22 - Payments To Care Homes,Long Term care,28/05/2021,Revenue Expenditure ,Shaw Healthcare (West Sussex ) Ltd,28560
West Sussex County Council,Additional Costs Arising From Covid 19,Covid 19 Costs,Inf Cont 21/22 - Payments To Care Homes,Long Term care,28/05/2021,Revenue Expenditure ,Shaw Healthcare (West Sussex ) Ltd,32640
West Sussex County Council,Additional Costs Arising From Covid 19,Covid 19 Costs,Inf Cont 21/22 - Payments To Care Homes,Long Term care,28/05/2021,Revenue Expenditure ,Shaw Healthcare (West Sussex ) Ltd,16320
West Sussex County Council,Additional Costs Arising From Covid 19,Covid 19 Costs,Inf Cont 21/22 - Payments To Care Homes,Long Term care,28/05/2021,Revenue Expenditure ,Asa Care Limited,8160
West Sussex County Council,Additional Costs Arising From Covid 19,Covid 19 Costs,Inf Cont 21/22 - Payments To Care Homes,Long Term care,28/05/2021,Revenue Expenditure ,Beeharry Mr R,9792
West Sussex County Council,Additional Costs Arising From Covid 19,Covid 19 Costs,Inf Cont 21/22 - Payments To Care Homes,Long Term care,28/05/2021,Revenue Expenditure ,Walstead Place Residential Home Ltd,18360
West Sussex County Council,Additional Costs Arising From Covid 19,Covid 19 Costs,Inf Cont 21/22 - Payments To Care Homes,Long Term care,28/05/2021,Revenue Expenditure ,The Regard Partnership Ltd,1632
West Sussex County Council,Additional Costs Arising From Covid 19,Covid 19 Costs,Inf Cont 21/22 - Payments To Care Homes,Long Term care,28/05/2021,Revenue Expenditure ,The Regard Partnership Ltd,4488
West Sussex County Council,Additional Costs Arising From Covid 19,Covid 19 Costs,Inf Cont 21/22 - Payments To Care Homes,Long Term care,28/05/2021,Revenue Expenditure ,The Regard Partnership Ltd,3672
West Sussex County Council,Additional Costs Arising From Covid 19,Covid 19 Costs,Inf Cont 21/22 - Payments To Care Homes,Long Term care,28/05/2021,Revenue Expenditure ,Balcombe Care Home Ltd,15504
West Sussex County Council,Additional Costs Arising From Covid 19,Covid 19 Costs,Inf Cont 21/22 - Payments To Care Homes,Long Term care,28/05/2021,Revenue Expenditure ,Elysium Healthcare Limited,4080
West Sussex County Council,Additional Costs Arising From Covid 19,Covid 19 Costs,Inf Cont 21/22 - Payments To Care Homes,Long Term care,28/05/2021,Revenue Expenditure ,Livability,8568
West Sussex County Council,Additional Costs Arising From Covid 19,Covid 19 Costs,Inf Cont 21/22 - Payments To Care Homes,Long Term care,28/05/2021,Revenue Expenditure ,Royal Bay Ltd,14280
West Sussex County Council,Additional Costs Arising From Covid 19,Covid 19 Costs,Inf Cont 21/22 - Payments To Care Homes,Long Term care,28/05/2021,Revenue Expenditure ,Dolphin Homes Ltd,4080
West Sussex County Council,Additional Costs Arising From Covid 19,Covid 19 Costs,Inf Cont 21/22 - Payments To Care Homes,Long Term care,28/05/2021,Revenue Expenditure ,Ashtonleigh Homes Ltd,12648
West Sussex County Council,Additional Costs Arising From Covid 19,Covid 19 Costs,Inf Cont 21/22 - Payments To Care Homes,Long Term care,28/05/2021,Revenue Expenditure ,Ashtonleigh Homes Ltd,22032
West Sussex County Council,Additional Costs Arising From Covid 19,Covid 19 Costs,Inf Cont 21/22 - Payments To Care Homes,Long Term care,28/05/2021,Revenue Expenditure ,South Coast Nursing Homes Ltd,26520
West Sussex County Council,Additional Costs Arising From Covid 19,Covid 19 Costs,Inf Cont 21/22 - Payments To Care Homes,Long Term care,28/05/2021,Revenue Expenditure ,Pathway Healthcare Ltd,2448
West Sussex County Council,Additional Costs Arising From Covid 19,Covid 19 Costs,Inf Cont 21/22 - Payments To Care Homes,Long Term care,28/05/2021,Revenue Expenditure ,Avon House (Balcombe) Ltd,7752
West Sussex County Council,Additional Costs Arising From Covid 19,Covid 19 Costs,Inf Cont 21/22 - Payments To Care Homes,Long Term care,28/05/2021,Revenue Expenditure ,Westhampnett House,13056
West Sussex County Council,Additional Costs Arising From Covid 19,Covid 19 Costs,Inf Cont 21/22 - Payments To Care Homes,Long Term care,28/05/2021,Revenue Expenditure ,Whyke Lodge,9384
West Sussex County Council,Additional Costs Arising From Covid 19,Covid 19 Costs,Inf Cont 21/22 - Payments To Care Homes,Long Term care,28/05/2021,Revenue Expenditure ,Ashton Care Homes Limited,40800
West Sussex County Council,Additional Costs Arising From Covid 19,Covid 19 Costs,Inf Cont 21/22 - Payments To Care Homes,Long Term care,28/05/2021,Revenue Expenditure ,Wolfe House Limited,7344
West Sussex County Council,Additional Costs Arising From Covid 19,Covid 19 Costs,Inf Cont 21/22 - Payments To Care Homes,Long Term care,28/05/2021,Revenue Expenditure ,Aspens Charities Ltd,2448
West Sussex County Council,Additional Costs Arising From Covid 19,Covid 19 Costs,Inf Cont 21/22 - Payments To Care Homes,Long Term care,28/05/2021,Revenue Expenditure ,Aspen Place Ltd,21216
West Sussex County Council,Additional Costs Arising From Covid 19,Covid 19 Costs,Inf Cont 21/22 - Payments To Care Homes,Long Term care,28/05/2021,Revenue Expenditure ,Kings Court Care Ltd,15504
West Sussex County Council,Additional Costs Arising From Covid 19,Covid 19 Costs,Inf Cont 21/22 - Payments To Care Homes,Long Term care,28/05/2021,Revenue Expenditure ,Autism Consultants Ltd,2040
West Sussex County Council,Additional Costs Arising From Covid 19,Covid 19 Costs,Inf Cont 21/22 - Payments To Care Homes,Long Term care,28/05/2021,Revenue Expenditure ,Autism Consultants Ltd,5712
West Sussex County Council,Additional Costs Arising From Covid 19,Covid 19 Costs,Inf Cont 21/22 - Payments To Care Homes,Long Term care,28/05/2021,Revenue Expenditure ,Woodcote Care Ltd,15504
West Sussex County Council,Additional Costs Arising From Covid 19,Covid 19 Costs,Inf Cont 21/22 - Payments To Care Homes,Long Term care,28/05/2021,Revenue Expenditure ,C C Care Home Ltd,11424
West Sussex County Council,Additional Costs Arising From Covid 19,Covid 19 Costs,Inf Cont 21/22 - Payments To Care Homes,Long Term care,28/05/2021,Revenue Expenditure ,Compassionate Care Home Ltd,8160
West Sussex County Council,Additional Costs Arising From Covid 19,Covid 19 Costs,Inf Cont 21/22 - Payments To Care Homes,Long Term care,28/05/2021,Revenue Expenditure ,Hc-One Oval Limited,19992
West Sussex County Council,Additional Costs Arising From Covid 19,Covid 19 Costs,Inf Cont 21/22 - Payments To Care Homes,Long Term care,28/05/2021,Revenue Expenditure ,Kenley Care Ltd,13464
West Sussex County Council,Additional Costs Arising From Covid 19,Covid 19 Costs,Inf Cont 21/22 - Payments To Care Homes,Long Term care,28/05/2021,Revenue Expenditure ,Dsl Care Limited,18360
West Sussex County Council,Additional Costs Arising From Covid 19,Covid 19 Costs,Inf Cont 21/22 - Payments To Care Homes,Long Term care,28/05/2021,Revenue Expenditure ,Caring Homes (Broadbridge) Ltd,28560
West Sussex County Council,Additional Costs Arising From Covid 19,Covid 19 Costs,Inf Cont 21/22 - Payments To Care Homes,Homecare: Spot Purch,28/05/2021,Revenue Expenditure ,Guild Care,28858.15
West Sussex County Council,Additional Costs Arising From Covid 19,Covid 19 Costs,Inf Cont 21/22 - Payments To Care Homes,Homecare: Spot Purch,28/05/2021,Revenue Expenditure ,Assist Care Group Ltd,40097.64
West Sussex County Council,Additional Costs Arising From Covid 19,Covid 19 Costs,Inf Cont 21/22 - Payments To Care Homes,Homecare: Spot Purch,28/05/2021,Revenue Expenditure ,Horsham & Crawley Care Ltd,31288.31
West Sussex County Council,Additional Costs Arising From Covid 19,Covid 19 Costs,Inf Cont 21/22 - Payments To Care Homes,Homecare: Spot Purch,28/05/2021,Revenue Expenditure ,Regal Home Care Ltd,22782.75
West Sussex County Council,Additional Costs Arising From Covid 19,Covid 19 Costs,Inf Cont 21/22 - Payments To Care Homes,Homecare: Spot Purch,28/05/2021,Revenue Expenditure ,Acorn Care Services Ltd,5771.63
West Sussex County Council,Additional Costs Arising From Covid 19,Covid 19 Costs,Inf Cont 21/22 - Payments To Care Homes,Homecare: Spot Purch,28/05/2021,Revenue Expenditure ,Classic Care Services Ltd,15188.5
West Sussex County Council,Additional Costs Arising From Covid 19,Covid 19 Costs,Inf Cont 21/22 - Payments To Care Homes,Homecare: Spot Purch,28/05/2021,Revenue Expenditure ,Platinum Homecare South Coast Ltd,15188.5
West Sussex County Council,Additional Costs Arising From Covid 19,Covid 19 Costs,Inf Cont 21/22 - Payments To Care Homes,Homecare: Spot Purch,28/05/2021,Revenue Expenditure ,Acre Care Ltd,14580.96
West Sussex County Council,Additional Costs Arising From Covid 19,Covid 19 Costs,Inf Cont 21/22 - Payments To Care Homes,Homecare: Spot Purch,28/05/2021,Revenue Expenditure ,Everyday Recruitment Agency Ltd,12150.8
West Sussex County Council,Additional Costs Arising From Covid 19,Covid 19 Costs,Inf Cont 21/22 - Payments To Care Homes,Homecare: Spot Purch,28/05/2021,Revenue Expenditure ,Sussex Grange Home Care,12150.8
West Sussex County Council,Additional Costs Arising From Covid 19,Covid 19 Costs,Inf Cont 21/22 - Payments To Care Homes,Homecare: Spot Purch,28/05/2021,Revenue Expenditure ,Caremark  Ltd,58931.38
West Sussex County Council,Additional Costs Arising From Covid 19,Covid 19 Costs,Inf Cont 21/22 - Payments To Care Homes,Homecare: Spot Purch,28/05/2021,Revenue Expenditure ,Agincare Limited,31288.31
West Sussex County Council,Additional Costs Arising From Covid 19,Covid 19 Costs,Inf Cont 21/22 - Payments To Care Homes,Homecare: Spot Purch,28/05/2021,Revenue Expenditure ,Choice Care 4U Services Ltd,21871.44
West Sussex County Council,Additional Costs Arising From Covid 19,Covid 19 Costs,Inf Cont 21/22 - Payments To Care Homes,Homecare: Spot Purch,28/05/2021,Revenue Expenditure ,Carewise Ltd,24909.14
West Sussex County Council,Additional Costs Arising From Covid 19,Covid 19 Costs,Inf Cont 21/22 - Payments To Care Homes,Homecare: Spot Purch,28/05/2021,Revenue Expenditure ,Kardinal Healthcare Ltd,29161.92
West Sussex County Council,Additional Costs Arising From Covid 19,Covid 19 Costs,Inf Cont 21/22 - Payments To Care Homes,Homecare: Spot Purch,28/05/2021,Revenue Expenditure ,Firstcol Services Ltd,37059.94
West Sussex County Council,Additional Costs Arising From Covid 19,Covid 19 Costs,Inf Cont 21/22 - Payments To Care Homes,Homecare: Spot Purch,28/05/2021,Revenue Expenditure ,Brooker Care Ltd,7594.25
West Sussex County Council,Additional Costs Arising From Covid 19,Covid 19 Costs,Inf Cont 21/22 - Payments To Care Homes,Homecare: Spot Purch,28/05/2021,Revenue Expenditure ,Premier Nursing Ltd,7290.48
West Sussex County Council,Additional Costs Arising From Covid 19,Covid 19 Costs,Inf Cont 21/22 - Payments To Care Homes,Homecare: Spot Purch,28/05/2021,Revenue Expenditure ,Caremark (Worthing),46476.81
West Sussex County Council,Additional Costs Arising From Covid 19,Covid 19 Costs,Inf Cont 21/22 - Payments To Care Homes,Homecare: Spot Purch,28/05/2021,Revenue Expenditure ,All Care Gb Ltd,41616.49
West Sussex County Council,Additional Costs Arising From Covid 19,Covid 19 Costs,Inf Cont 21/22 - Payments To Care Homes,Homecare: Spot Purch,28/05/2021,Revenue Expenditure ,All Care Gb Ltd,17922.43
West Sussex County Council,Additional Costs Arising From Covid 19,Covid 19 Costs,Inf Cont 21/22 - Payments To Care Homes,Homecare: Spot Purch,28/05/2021,Revenue Expenditure ,Bespoke Home Care Ltd,13973.42
West Sussex County Council,Additional Costs Arising From Covid 19,Covid 19 Costs,Inf Cont 21/22 - Payments To Care Homes,Homecare: Spot Purch,28/05/2021,Revenue Expenditure ,Essex Cares Limited,28250.61
West Sussex County Council,Additional Costs Arising From Covid 19,Covid 19 Costs,Inf Cont 21/22 - Payments To Care Homes,Homecare: Spot Purch,28/05/2021,Revenue Expenditure ,Coastal Home Care Hove Ltd,11847.03
West Sussex County Council,Additional Costs Arising From Covid 19,Covid 19 Costs,Inf Cont 21/22 - Payments To Care Homes,Homecare: Spot Purch,28/05/2021,Revenue Expenditure ,Alina Homecare Ltd,31288.31
West Sussex County Council,Additional Costs Arising From Covid 19,Covid 19 Costs,Inf Cont 21/22 - Payments To Care Homes,Homecare: Spot Purch,28/05/2021,Revenue Expenditure ,Alina Homecare Ltd,17314.89
West Sussex County Council,Additional Costs Arising From Covid 19,Covid 19 Costs,Inf Cont 21/22 - Payments To Care Homes,Homecare: Spot Purch,28/05/2021,Revenue Expenditure ,The Home Service Care Agency Ltd,9720.64
West Sussex County Council,Additional Costs Arising From Covid 19,Covid 19 Costs,Inf Cont 21/22 - Payments To Care Homes,Homecare: Spot Purch,28/05/2021,Revenue Expenditure ,Home Instead,26124.22
West Sussex County Council,Additional Costs Arising From Covid 19,Covid 19 Costs,Inf Cont 21/22 - Payments To Care Homes,Homecare: Spot Purch,28/05/2021,Revenue Expenditure ,Greenhurst Care Ltd,6075.4
West Sussex County Council,Additional Costs Arising From Covid 19,Covid 19 Costs,Inf Cont 21/22 - Payments To Care Homes,Homecare: Spot Purch,28/05/2021,Revenue Expenditure ,Elite Choice Home Care Limited,11543.26
West Sussex County Council,Additional Costs Arising From Covid 19,Covid 19 Costs,Inf Cont 21/22 - Payments To Care Homes,Homecare: Spot Purch,28/05/2021,Revenue Expenditure ,Caremark Chichester,36148.63
West Sussex County Council,Additional Costs Arising From Covid 19,Covid 19 Costs,Inf Cont 21/22 - Payments To Care Homes,Homecare: Spot Purch,28/05/2021,Revenue Expenditure ,Artius Care Ltd,22478.98
West Sussex County Council,Additional Costs Arising From Covid 19,Covid 19 Costs,Inf Cont 21/22 - Payments To Care Homes,Homecare: Spot Purch,28/05/2021,Revenue Expenditure ,Olive Home Care & Support Ltd,11239.49
West Sussex County Council,Additional Costs Arising From Covid 19,Covid 19 Costs,Inf Cont 21/22 - Payments To Care Homes,Homecare: Spot Purch,28/05/2021,Revenue Expenditure ,Angelcare Southern Limited,30680.77
West Sussex County Council,Additional Costs Arising From Covid 19,Covid 19 Costs,Inf Cont 21/22 - Payments To Care Homes,Homecare: Spot Purch,28/05/2021,Revenue Expenditure ,Right At Home Worthing & Shoreham D,9416.87
West Sussex County Council,Additional Costs Arising From Covid 19,Covid 19 Costs,Inf Cont 21/22 - Payments To Care Homes,Homecare: Spot Purch,28/05/2021,Revenue Expenditure ,Good Oaks Home Care Mid Sussex,15188.5
West Sussex County Council,Additional Costs Arising From Covid 19,Covid 19 Costs,Inf Cont 21/22 - Payments To Care Homes,Homecare: Spot Purch,28/05/2021,Revenue Expenditure ,Compare Care Limited,7594.25
West Sussex County Council,Additional Costs Arising From Covid 19,Covid 19 Costs,Inf Cont 21/22 - Payments To Care Homes,Homecare: Spot Purch,28/05/2021,Revenue Expenditure ,Carers Trust East Midlands,9113.1
West Sussex County Council,Additional Costs Arising From Covid 19,Covid 19 Costs,Inf Cont 21/22 - Payments To Care Homes,Homecare: Spot Purch,28/05/2021,Revenue Expenditure ,My Homecare,10935.72
West Sussex County Council,Additional Costs Arising From Covid 19,Covid 19 Costs,Inf Cont 21/22 - Payments To Care Homes,Homecare: Spot Purch,28/05/2021,Revenue Expenditure ,Sisterly Care Ltd,17922.43
West Sussex County Council,Additional Costs Arising From Covid 19,Covid 19 Costs,Inf Cont 21/22 - Payments To Care Homes,Homecare: Spot Purch,28/05/2021,Revenue Expenditure ,Caremark (Arun),33110.93
West Sussex County Council,Additional Costs Arising From Covid 19,Covid 19 Costs,Inf Cont 21/22 - Payments To Care Homes,Homecare: Spot Purch,28/05/2021,Revenue Expenditure ,Vhm Care Limited,3037.7
West Sussex County Council,Additional Costs Arising From Covid 19,Covid 19 Costs,Inf Cont 21/22 - Payments To Care Homes,Homecare: Spot Purch,28/05/2021,Revenue Expenditure ,Caremark  Ltd,6986.71
West Sussex County Council,Additional Costs Arising From Covid 19,Covid 19 Costs,Inf Cont 21/22 - Payments To Care Homes,Homecare: Spot Purch,28/05/2021,Revenue Expenditure ,Caremark  Ltd,12150.8
West Sussex County Council,Additional Costs Arising From Covid 19,Covid 19 Costs,Inf Cont 21/22 - Payments To Care Homes,Homecare: Spot Purch,28/05/2021,Revenue Expenditure ,Caremark  Ltd,10024.41
West Sussex County Council,Additional Costs Arising From Covid 19,Covid 19 Costs,Inf Cont 21/22 - Payments To Care Homes,Homecare: Spot Purch,28/05/2021,Revenue Expenditure ,All Care Gb Ltd,9113.1
West Sussex County Council,Additional Costs Arising From Covid 19,Covid 19 Costs,Inf Cont 21/22 - Payments To Care Homes,Homecare: Spot Purch,28/05/2021,Revenue Expenditure ,Alina Homecare Ltd,19745.05
West Sussex County Council,Additional Costs Arising From Covid 19,Covid 19 Costs,Inf Cont 21/22 - Payments To Care Homes,Homecare: Spot Purch,28/05/2021,Revenue Expenditure ,Peabody South East Limited,12150.8
West Sussex County Council,Additional Costs Arising From Covid 19,Covid 19 Costs,Inf Cont 21/22 - Payments To Care Homes,Supported Living,28/05/2021,Revenue Expenditure ,Richmond Fellowship,734.8
West Sussex County Council,Additional Costs Arising From Covid 19,Covid 19 Costs,Inf Cont 21/22 - Payments To Care Homes,Supported Living,28/05/2021,Revenue Expenditure ,St Richard Of Chichester Christian,4041.4
West Sussex County Council,Additional Costs Arising From Covid 19,Covid 19 Costs,Inf Cont 21/22 - Payments To Care Homes,Supported Living,28/05/2021,Revenue Expenditure ,Bognor Housing Trust,2296.25
West Sussex County Council,Additional Costs Arising From Covid 19,Covid 19 Costs,Inf Cont 21/22 - Payments To Care Homes,Supported Living,28/05/2021,Revenue Expenditure ,Ymca Downslink Group,10011.65
West Sussex County Council,Additional Costs Arising From Covid 19,Covid 19 Costs,Inf Cont 21/22 - Payments To Care Homes,Supported Living,28/05/2021,Revenue Expenditure ,Peabody South East Limited,3122.9
West Sussex County Council,Additional Costs Arising From Covid 19,Covid 19 Costs,Inf Cont 21/22 - Payments To Care Homes,Day Care Provision,28/05/2021,Revenue Expenditure ,The Apuldram Centre,13574.72
West Sussex County Council,Additional Costs Arising From Covid 19,Covid 19 Costs,Inf Cont 21/22 - Payments To Care Homes,Day Care Provision,28/05/2021,Revenue Expenditure ,Ferring Country Centre Ltd,30600.64
West Sussex County Council,Additional Costs Arising From Covid 19,Covid 19 Costs,Inf Cont 21/22 - Payments To Care Homes,Day Care Provision,28/05/2021,Revenue Expenditure ,Outreach 3 Way,19786.88
West Sussex County Council,Additional Costs Arising From Covid 19,Covid 19 Costs,Inf Cont 21/22 - Payments To Care Homes,Day Care Provision,28/05/2021,Revenue Expenditure ,Pericles,4601.6
West Sussex County Council,Additional Costs Arising From Covid 19,Covid 19 Costs,Inf Cont 21/22 - Payments To Care Homes,Day Care Provision,28/05/2021,Revenue Expenditure ,Guild Care,12654.4
West Sussex County Council,Additional Costs Arising From Covid 19,Covid 19 Costs,Inf Cont 21/22 - Payments To Care Homes,Day Care Provision,28/05/2021,Revenue Expenditure ,The Aldingbourne Trust,4141.44
West Sussex County Council,Additional Costs Arising From Covid 19,Covid 19 Costs,Inf Cont 21/22 - Payments To Care Homes,Day Care Provision,28/05/2021,Revenue Expenditure ,The Aldingbourne Trust,28529.92
West Sussex County Council,Additional Costs Arising From Covid 19,Covid 19 Costs,Inf Cont 21/22 - Payments To Care Homes,Day Care Provision,28/05/2021,Revenue Expenditure ,Oaktree Farm Care Limited,9433.28
West Sussex County Council,Additional Costs Arising From Covid 19,Covid 19 Costs,Inf Cont 21/22 - Payments To Care Homes,Day Care Provision,28/05/2021,Revenue Expenditure ,Superstar Arts Cio,5061.76
West Sussex County Council,Additional Costs Arising From Covid 19,Covid 19 Costs,Inf Cont 21/22 - Payments To Care Homes,Long Term care,28/05/2021,Revenue Expenditure ,Turning Tides Homelessness,11424
West Sussex County Council,Additional Costs Arising From Covid 19,Covid 19 Costs,Inf Cont 21/22 - Payments To Care Homes,Long Term care,28/05/2021,Revenue Expenditure ,Guild Care,7350
West Sussex County Council,Additional Costs Arising From Covid 19,Covid 19 Costs,Inf Cont 21/22 - Payments To Care Homes,Long Term care,28/05/2021,Revenue Expenditure ,Henfield Haven Cio,1500
West Sussex County Council,Additional Costs Arising From Covid 19,Covid 19 Costs,Inf Cont 21/22 - Payments To Care Homes,Supported Living,28/05/2021,Revenue Expenditure ,The Apuldram Centre,9113.1
West Sussex County Council,Additional Costs Arising From Covid 19,Covid 19 Costs,Inf Cont 21/22 - Payments To Care Homes,Supported Living,28/05/2021,Revenue Expenditure ,Outreach 3 Way,6075.4
West Sussex County Council,Additional Costs Arising From Covid 19,Covid 19 Costs,Inf Cont 21/22 - Payments To Care Homes,Supported Living,28/05/2021,Revenue Expenditure ,Outreach 3 Way,6682.94
West Sussex County Council,Additional Costs Arising From Covid 19,Covid 19 Costs,Inf Cont 21/22 - Payments To Care Homes,Supported Living,28/05/2021,Revenue Expenditure ,Arundel Domiciliary Care Services L,14580.96
West Sussex County Council,Additional Costs Arising From Covid 19,Covid 19 Costs,Inf Cont 21/22 - Payments To Care Homes,Supported Living,28/05/2021,Revenue Expenditure ,Southdown Housing Association Ltd,2126.39
West Sussex County Council,Additional Costs Arising From Covid 19,Covid 19 Costs,Inf Cont 21/22 - Payments To Care Homes,Supported Living,28/05/2021,Revenue Expenditure ,Southdown Housing Association Ltd,2430.16
West Sussex County Council,Additional Costs Arising From Covid 19,Covid 19 Costs,Inf Cont 21/22 - Payments To Care Homes,Supported Living,28/05/2021,Revenue Expenditure ,Southdown Housing Association Ltd,2430.16
West Sussex County Council,Additional Costs Arising From Covid 19,Covid 19 Costs,Inf Cont 21/22 - Payments To Care Homes,Supported Living,28/05/2021,Revenue Expenditure ,Southdown Housing Association Ltd,1215.08
West Sussex County Council,Additional Costs Arising From Covid 19,Covid 19 Costs,Inf Cont 21/22 - Payments To Care Homes,Supported Living,28/05/2021,Revenue Expenditure ,Southdown Housing Association Ltd,1518.85
West Sussex County Council,Additional Costs Arising From Covid 19,Covid 19 Costs,Inf Cont 21/22 - Payments To Care Homes,Supported Living,28/05/2021,Revenue Expenditure ,Southdown Housing Association Ltd,1215.08
West Sussex County Council,Additional Costs Arising From Covid 19,Covid 19 Costs,Inf Cont 21/22 - Payments To Care Homes,Supported Living,28/05/2021,Revenue Expenditure ,Southdown Housing Association Ltd,1822.62
West Sussex County Council,Additional Costs Arising From Covid 19,Covid 19 Costs,Inf Cont 21/22 - Payments To Care Homes,Supported Living,28/05/2021,Revenue Expenditure ,Southdown Housing Association Ltd,2430.16
West Sussex County Council,Additional Costs Arising From Covid 19,Covid 19 Costs,Inf Cont 21/22 - Payments To Care Homes,Supported Living,28/05/2021,Revenue Expenditure ,Southdown Housing Association Ltd,1822.62
West Sussex County Council,Additional Costs Arising From Covid 19,Covid 19 Costs,Inf Cont 21/22 - Payments To Care Homes,Supported Living,28/05/2021,Revenue Expenditure ,Southdown Housing Association Ltd,2126.39
West Sussex County Council,Additional Costs Arising From Covid 19,Covid 19 Costs,Inf Cont 21/22 - Payments To Care Homes,Supported Living,28/05/2021,Revenue Expenditure ,Southdown Housing Association Ltd,2126.39
West Sussex County Council,Additional Costs Arising From Covid 19,Covid 19 Costs,Inf Cont 21/22 - Payments To Care Homes,Supported Living,28/05/2021,Revenue Expenditure ,Southdown Housing Association Ltd,1518.85
West Sussex County Council,Additional Costs Arising From Covid 19,Covid 19 Costs,Inf Cont 21/22 - Payments To Care Homes,Supported Living,28/05/2021,Revenue Expenditure ,The Aldingbourne Trust,5467.86
West Sussex County Council,Additional Costs Arising From Covid 19,Covid 19 Costs,Inf Cont 21/22 - Payments To Care Homes,Supported Living,28/05/2021,Revenue Expenditure ,The Aldingbourne Trust,607.54
West Sussex County Council,Additional Costs Arising From Covid 19,Covid 19 Costs,Inf Cont 21/22 - Payments To Care Homes,Supported Living,28/05/2021,Revenue Expenditure ,The Aldingbourne Trust,7290.48
West Sussex County Council,Additional Costs Arising From Covid 19,Covid 19 Costs,Inf Cont 21/22 - Payments To Care Homes,Supported Living,28/05/2021,Revenue Expenditure ,Mrs C Brainerd,1215.08
West Sussex County Council,Additional Costs Arising From Covid 19,Covid 19 Costs,Inf Cont 21/22 - Payments To Care Homes,Supported Living,28/05/2021,Revenue Expenditure ,Supporting Independence Ltd,3645.24
West Sussex County Council,Additional Costs Arising From Covid 19,Covid 19 Costs,Inf Cont 21/22 - Payments To Care Homes,Supported Living,28/05/2021,Revenue Expenditure ,The Disabilities Trust,6075.4
West Sussex County Council,Additional Costs Arising From Covid 19,Covid 19 Costs,Inf Cont 21/22 - Payments To Care Homes,Supported Living,28/05/2021,Revenue Expenditure ,Egalite Care Ltd,23997.83
West Sussex County Council,Additional Costs Arising From Covid 19,Covid 19 Costs,Inf Cont 21/22 - Payments To Care Homes,Supported Living,28/05/2021,Revenue Expenditure ,Aspirations Care Ltd,12758.34
West Sussex County Council,Additional Costs Arising From Covid 19,Covid 19 Costs,Inf Cont 21/22 - Payments To Care Homes,Supported Living,28/05/2021,Revenue Expenditure ,Frame Of Mind Vocational Training C,1610.56
West Sussex County Council,Additional Costs Arising From Covid 19,Covid 19 Costs,Internal Send Home To School Transport,Ctrct Hire Plnt/Mach,05/05/2021,Revenue Expenditure ,London Hire Ltd,595
West Sussex County Council,Additional Costs Arising From Covid 19,Covid 19 Costs,Internal Send Home To School Transport,Ctrct Hire Plnt/Mach,05/05/2021,Revenue Expenditure ,London Hire Ltd,894.85
West Sussex County Council,Additional Costs Arising From Covid 19,Covid 19 Costs,Internal Send Home To School Transport,Ctrct Hire Plnt/Mach,05/05/2021,Revenue Expenditure ,London Hire Ltd,894.85
West Sussex County Council,Additional Costs Arising From Covid 19,Covid 19 Costs,Internal Send Home To School Transport,Ctrct Hire Plnt/Mach,05/05/2021,Revenue Expenditure ,London Hire Ltd,894.85
West Sussex County Council,Additional Costs Arising From Covid 19,Covid 19 Costs,Internal Send Home To School Transport,Ctrct Hire Plnt/Mach,05/05/2021,Revenue Expenditure ,London Hire Ltd,894.85
West Sussex County Council,Additional Costs Arising From Covid 19,Covid 19 Costs,Internal Send Home To School Transport,Ctrct Hire Plnt/Mach,05/05/2021,Revenue Expenditure ,London Hire Ltd,595
West Sussex County Council,Additional Costs Arising From Covid 19,Covid 19 Costs,Internal Send Home To School Transport,Ctrct Hire Plnt/Mach,05/05/2021,Revenue Expenditure ,London Hire Ltd,894.85
West Sussex County Council,Additional Costs Arising From Covid 19,Covid 19 Costs,Internal Send Home To School Transport,Ctrct Hire Plnt/Mach,05/05/2021,Revenue Expenditure ,London Hire Ltd,894.85
West Sussex County Council,Additional Costs Arising From Covid 19,Covid 19 Costs,Internal Send Home To School Transport,Ctrct Hire Plnt/Mach,05/05/2021,Revenue Expenditure ,London Hire Ltd,894.85
West Sussex County Council,Additional Costs Arising From Covid 19,Covid 19 Costs,Internal Send Home To School Transport,Ctrct Hire Plnt/Mach,05/05/2021,Revenue Expenditure ,London Hire Ltd,894.85
West Sussex County Council,Additional Costs Arising From Covid 19,Covid 19 Costs,Internal Send Home To School Transport,Ctrct Hire Plnt/Mach,05/05/2021,Revenue Expenditure ,London Hire Ltd,894.85
West Sussex County Council,Additional Costs Arising From Covid 19,Covid 19 Costs,Internal Send Home To School Transport,Ctrct Hire Plnt/Mach,05/05/2021,Revenue Expenditure ,London Hire Ltd,894.85
West Sussex County Council,Additional Costs Arising From Covid 19,Covid 19 Costs,Internal Send Home To School Transport,Ctrct Hire Plnt/Mach,05/05/2021,Revenue Expenditure ,London Hire Ltd,894.85
West Sussex County Council,Additional Costs Arising From Covid 19,Covid 19 Costs,Internal Send Home To School Transport,Ctrct Hire Plnt/Mach,05/05/2021,Revenue Expenditure ,London Hire Ltd,894.85
West Sussex County Council,Additional Costs Arising From Covid 19,Covid 19 Costs,Internal Send Home To School Transport,Ctrct Hire Plnt/Mach,05/05/2021,Revenue Expenditure ,London Hire Ltd,894.85
West Sussex County Council,Additional Costs Arising From Covid 19,Covid 19 Costs,Internal Send Home To School Transport,Ctrct Hire Plnt/Mach,05/05/2021,Revenue Expenditure ,London Hire Ltd,595
West Sussex County Council,Additional Costs Arising From Covid 19,Covid 19 Costs,Internal Send Home To School Transport,Ctrct Hire Plnt/Mach,05/05/2021,Revenue Expenditure ,London Hire Ltd,894.85
West Sussex County Council,Additional Costs Arising From Covid 19,Covid 19 Costs,Emergency Active Travel Fund,Vehicle Acquisition,05/05/2021,Revenue Expenditure ,London Hire Ltd,894.85
West Sussex County Council,Additional Costs Arising From Covid 19,Covid 19 Costs,Emergency Active Travel Fund,Vehicle Acquisition,05/05/2021,Revenue Expenditure ,London Hire Ltd,595
West Sussex County Council,Additional Costs Arising From Covid 19,Covid 19 Costs,Emergency Active Travel Fund,Vehicle Acquisition,05/05/2021,Revenue Expenditure ,London Hire Ltd,595
West Sussex County Council,Additional Costs Arising From Covid 19,Covid 19 Costs,Highways - Local Operations,Consultants Fees,10/05/2021,Revenue Expenditure ,Europcar Group Uk Limited,420
West Sussex County Council,Additional Costs Arising From Covid 19,Covid 19 Costs,Travel Demand Management,Coach: Contract Hire,18/05/2021,Revenue Expenditure ,Wsp Uk Ltd,12684.57
West Sussex County Council,Additional Costs Arising From Covid 19,Covid 19 Costs,Emergency Active Travel Fund,Vehicle Acquisition,25/05/2021,Revenue Expenditure ,London Hire Ltd,590.01
West Sussex County Council,Additional Costs Arising From Covid 19,Covid 19 Costs,Emergency Active Travel Fund,Vehicle Acquisition,10/05/2021,Revenue Expenditure ,London Hire Ltd,894.85
West Sussex County Council,Additional Costs Arising From Covid 19,Covid 19 Costs,Covid Winter Grant Scheme,General Provisions,18/05/2021,Revenue Expenditure ,Edenred Uk Group Ltd,100850
West Sussex County Council,Additional Costs Arising From Covid 19,Covid 19 Costs,Covid Winter Grant Scheme,General Provisions,18/05/2021,Revenue Expenditure ,Wonde Ltd,90000
West Sussex County Council,Additional Costs Arising From Covid 19,Covid 19 Costs,Additional Home To Sch Trans Summer Term,Coach: Contract Hire,17/05/2021,Revenue Expenditure ,Compass Travel,5836.83
West Sussex County Council,Additional Costs Arising From Covid 19,Covid 19 Costs,Additional Home To Sch Trans Summer Term,Coach: Contract Hire,17/05/2021,Revenue Expenditure ,Compass Travel,55100
West Sussex County Council,Additional Costs Arising From Covid 19,Covid 19 Costs,Covid Winter Grant Scheme,Comp Software/Consum,17/05/2021,Revenue Expenditure ,Wonde Ltd,187178.9
West Sussex County Council,Additional Costs Arising From Covid 19,Covid 19 Costs,Additional Home To Sch Trans Spring Term,Coach: Contract Hire,24/05/2021,Revenue Expenditure ,Stagecoach Services Ltd,58748
West Sussex County Council,Additional Costs Arising From Covid 19,Covid 19 Costs,Non-Uasc Placement Costs,Independent Accom.,11/05/2021,Revenue Expenditure ,Cranmead Ltd,13246
West Sussex County Council,Additional Costs Arising From Covid 19,Covid 19 Costs,Out Of Hours/Additional Staffing Costs,Pay - AgcyStff-Care,05/05/2021,Revenue Expenditure ,Manpower Uk Ltd,1695
West Sussex County Council,Additional Costs Arising From Covid 19,Covid 19 Costs,Out Of Hours/Additional Staffing Costs,Pay - AgcyStff-Care,05/05/2021,Revenue Expenditure ,Manpower Uk Ltd,1649.45
West Sussex County Council,Additional Costs Arising From Covid 19,Covid 19 Costs,Unaccompanied Asylum Seeking Children,Short Term Care,25/05/2021,Revenue Expenditure ,Cranmead Ltd,3767.15
West Sussex County Council,Additional Costs Arising From Covid 19,Covid 19 Costs,Out Of Hours/Additional Staffing Costs,Pay - AgcyStff-Care,14/05/2021,Revenue Expenditure ,Manpower Uk Ltd,1071.9
West Sussex County Council,Additional Costs Arising From Covid 19,Covid 19 Costs,Out Of Hours/Additional Staffing Costs,Pay - AgcyStff-Care,14/05/2021,Revenue Expenditure ,Manpower Uk Ltd,1024.34
West Sussex County Council,Additional Costs Arising From Covid 19,Covid 19 Costs,Out Of Hours/Additional Staffing Costs,Pay - AgcyStff-Care,13/05/2021,Revenue Expenditure ,Matrix Scm Limited,321.9
West Sussex County Council,Additional Costs Arising From Covid 19,Covid 19 Costs,Out Of Hours/Additional Staffing Costs,Pay - AgcyStff-Care,18/05/2021,Revenue Expenditure ,Matrix Scm Limited,1588.04
West Sussex County Council,Additional Costs Arising From Covid 19,Covid 19 Costs,Out Of Hours/Additional Staffing Costs,Pay - AgcyStff-Care,18/05/2021,Revenue Expenditure ,Matrix Scm Limited,1655.72
West Sussex County Council,Additional Costs Arising From Covid 19,Covid 19 Costs,Out Of Hours/Additional Staffing Costs,Pay - AgcyStff-Care,19/05/2021,Revenue Expenditure ,Matrix Scm Limited,1620
West Sussex County Council,Additional Costs Arising From Covid 19,Covid 19 Costs,Out Of Hours/Additional Staffing Costs,Pay - AgcyStff-Care,19/05/2021,Revenue Expenditure ,Matrix Scm Limited,1287.6
West Sussex County Council,Additional Costs Arising From Covid 19,Covid 19 Costs,Out Of Hours/Additional Staffing Costs,Pay - AgcyStff-Care,19/05/2021,Revenue Expenditure ,Matrix Scm Limited,1614.92
West Sussex County Council,Additional Costs Arising From Covid 19,Covid 19 Costs,Out Of Hours/Additional Staffing Costs,Pay - AgcyStff-Care,19/05/2021,Revenue Expenditure ,Matrix Scm Limited,1379.85
West Sussex County Council,Additional Costs Arising From Covid 19,Covid 19 Costs,Out Of Hours/Additional Staffing Costs,Pay - AgcyStff-Care,19/05/2021,Revenue Expenditure ,Matrix Scm Limited,643.8
West Sussex County Council,Additional Costs Arising From Covid 19,Covid 19 Costs,Out Of Hours/Additional Staffing Costs,Pay - AgcyStff-Care,19/05/2021,Revenue Expenditure ,Matrix Scm Limited,1287.6
West Sussex County Council,Additional Costs Arising From Covid 19,Covid 19 Costs,Out Of Hours/Additional Staffing Costs,Pay - AgcyStff-Care,19/05/2021,Revenue Expenditure ,Matrix Scm Limited,1646.32
West Sussex County Council,Additional Costs Arising From Covid 19,Covid 19 Costs,Out Of Hours/Additional Staffing Costs,Pay - AgcyStff-Care,19/05/2021,Revenue Expenditure ,Matrix Scm Limited,1588.04
West Sussex County Council,Additional Costs Arising From Covid 19,Covid 19 Costs,Out Of Hours/Additional Staffing Costs,Pay - AgcyStff-Care,25/05/2021,Revenue Expenditure ,Matrix Scm Limited,1632.69
West Sussex County Council,Additional Costs Arising From Covid 19,Covid 19 Costs,Out Of Hours/Additional Staffing Costs,Pay - AgcyStff-Care,25/05/2021,Revenue Expenditure ,Matrix Scm Limited,1709.77
West Sussex County Council,Additional Costs Arising From Covid 19,Covid 19 Costs,Adult Social Care - Additional Demand,Live-in Care,10/05/2021,Revenue Expenditure ,London Care,3220
West Sussex County Council,Additional Costs Arising From Covid 19,Covid 19 Costs,Adult Social Care - Additional Demand,Live-in Care,10/05/2021,Revenue Expenditure ,London Care,980
West Sussex County Council,Additional Costs Arising From Covid 19,Covid 19 Costs,Adult Social Care - Additional Demand,Live-in Care,10/05/2021,Revenue Expenditure ,London Care,3920
West Sussex County Council,Additional Costs Arising From Covid 19,Covid 19 Costs,Dols Additional Assessments,Professional Service,04/05/2021,Revenue Expenditure ,J Lipert Ind Social Worker Ltd,1850
West Sussex County Council,Additional Costs Arising From Covid 19,Covid 19 Costs,Dols Additional Assessments,Professional Service,11/05/2021,Revenue Expenditure ,Ram Kamat Limited,2189
West Sussex County Council,Additional Costs Arising From Covid 19,Covid 19 Costs,Hospital Discharge Contracts,Homecare: Block Cont,05/05/2021,Revenue Expenditure ,Care Outlook Ltd,5941.44
West Sussex County Council,Additional Costs Arising From Covid 19,Covid 19 Costs,Seven Day Working - Agency Costs,Pay - AgcyStff-Care,05/05/2021,Revenue Expenditure ,Manpower Uk Ltd,1313.5
West Sussex County Council,Additional Costs Arising From Covid 19,Covid 19 Costs,Seven Day Working - Agency Costs,Pay - AgcyStff-Care,05/05/2021,Revenue Expenditure ,Manpower Uk Ltd,1055.37
West Sussex County Council,Additional Costs Arising From Covid 19,Covid 19 Costs,Seven Day Working - Agency Costs,Pay - AgcyStff-Care,05/05/2021,Revenue Expenditure ,Manpower Uk Ltd,1429.57
West Sussex County Council,Additional Costs Arising From Covid 19,Covid 19 Costs,Seven Day Working - Agency Costs,Pay - AgcyStff-Care,05/05/2021,Revenue Expenditure ,Manpower Uk Ltd,1313.5
West Sussex County Council,Additional Costs Arising From Covid 19,Covid 19 Costs,Seven Day Working - Agency Costs,Pay - AgcyStff-Care,05/05/2021,Revenue Expenditure ,Manpower Uk Ltd,1414.72
West Sussex County Council,Additional Costs Arising From Covid 19,Covid 19 Costs,Seven Day Working - Agency Costs,Pay - AgcyStff-Care,05/05/2021,Revenue Expenditure ,Manpower Uk Ltd,753.75
West Sussex County Council,Additional Costs Arising From Covid 19,Covid 19 Costs,Additional Social Care Costs - Coastal,Pay - AgcyStff-Care,05/05/2021,Revenue Expenditure ,Manpower Uk Ltd,1237.5
West Sussex County Council,Additional Costs Arising From Covid 19,Covid 19 Costs,Seven Day Working - Agency Costs,Pay - AgcyStff-Care,05/05/2021,Revenue Expenditure ,Manpower Uk Ltd,1313.5
West Sussex County Council,Additional Costs Arising From Covid 19,Covid 19 Costs,Seven Day Working - Agency Costs,Pay - AgcyStff-Care,05/05/2021,Revenue Expenditure ,Manpower Uk Ltd,1189.24
West Sussex County Council,Additional Costs Arising From Covid 19,Covid 19 Costs,Seven Day Working - Agency Costs,Pay - AgcyStff-Care,05/05/2021,Revenue Expenditure ,Manpower Uk Ltd,1132.52
West Sussex County Council,Additional Costs Arising From Covid 19,Covid 19 Costs,Seven Day Working - Agency Costs,Pay - AgcyStff-Care,05/05/2021,Revenue Expenditure ,Manpower Uk Ltd,1260
West Sussex County Council,Additional Costs Arising From Covid 19,Covid 19 Costs,Seven Day Working - Agency Costs,Pay - AgcyStff-Care,05/05/2021,Revenue Expenditure ,Manpower Uk Ltd,1313.5
West Sussex County Council,Additional Costs Arising From Covid 19,Covid 19 Costs,Seven Day Working - Agency Costs,Pay - AgcyStff-Care,05/05/2021,Revenue Expenditure ,Manpower Uk Ltd,1313.5
West Sussex County Council,Additional Costs Arising From Covid 19,Covid 19 Costs,Seven Day Working - Agency Costs,Pay - AgcyStff-Care,05/05/2021,Revenue Expenditure ,Manpower Uk Ltd,1387.5
West Sussex County Council,Additional Costs Arising From Covid 19,Covid 19 Costs,Seven Day Working - Agency Costs,Pay - AgcyStff-Care,05/05/2021,Revenue Expenditure ,Manpower Uk Ltd,1256.25
West Sussex County Council,Additional Costs Arising From Covid 19,Covid 19 Costs,Covid Alternative Accommodation,Relocation Expenses,04/05/2021,Revenue Expenditure ,Hilton Avisford Park,23719.58
West Sussex County Council,Additional Costs Arising From Covid 19,Covid 19 Costs,Hospital Discharge Contracts,Homecare: Block Cont,17/05/2021,Revenue Expenditure ,Assist Care Group Ltd,3468
West Sussex County Council,Additional Costs Arising From Covid 19,Covid 19 Costs,Hospital Discharge Contracts,Homecare: Block Cont,17/05/2021,Revenue Expenditure ,Assist Care Group Ltd,3803.24
West Sussex County Council,Additional Costs Arising From Covid 19,Covid 19 Costs,Seven Day Working - Agency Costs,Pay - AgcyStff-Care,14/05/2021,Revenue Expenditure ,Manpower Uk Ltd,798.75
West Sussex County Council,Additional Costs Arising From Covid 19,Covid 19 Costs,Seven Day Working - Agency Costs,Pay - AgcyStff-Care,14/05/2021,Revenue Expenditure ,Manpower Uk Ltd,588.31
West Sussex County Council,Additional Costs Arising From Covid 19,Covid 19 Costs,Seven Day Working - Agency Costs,Pay - AgcyStff-Care,14/05/2021,Revenue Expenditure ,Manpower Uk Ltd,869.69
West Sussex County Council,Additional Costs Arising From Covid 19,Covid 19 Costs,Seven Day Working - Agency Costs,Pay - AgcyStff-Care,14/05/2021,Revenue Expenditure ,Manpower Uk Ltd,798.75
West Sussex County Council,Additional Costs Arising From Covid 19,Covid 19 Costs,Seven Day Working - Agency Costs,Pay - AgcyStff-Care,14/05/2021,Revenue Expenditure ,Manpower Uk Ltd,251.25
West Sussex County Council,Additional Costs Arising From Covid 19,Covid 19 Costs,Additional Social Care Costs - Coastal,Pay - AgcyStff-Care,14/05/2021,Revenue Expenditure ,Manpower Uk Ltd,742.5
West Sussex County Council,Additional Costs Arising From Covid 19,Covid 19 Costs,Seven Day Working - Agency Costs,Pay - AgcyStff-Care,14/05/2021,Revenue Expenditure ,Manpower Uk Ltd,798.75
West Sussex County Council,Additional Costs Arising From Covid 19,Covid 19 Costs,Seven Day Working - Agency Costs,Pay - AgcyStff-Care,14/05/2021,Revenue Expenditure ,Manpower Uk Ltd,945
West Sussex County Council,Additional Costs Arising From Covid 19,Covid 19 Costs,Seven Day Working - Agency Costs,Pay - AgcyStff-Care,14/05/2021,Revenue Expenditure ,Manpower Uk Ltd,568
West Sussex County Council,Additional Costs Arising From Covid 19,Covid 19 Costs,Seven Day Working - Agency Costs,Pay - AgcyStff-Care,14/05/2021,Revenue Expenditure ,Manpower Uk Ltd,798.75
West Sussex County Council,Additional Costs Arising From Covid 19,Covid 19 Costs,Seven Day Working - Agency Costs,Pay - AgcyStff-Care,14/05/2021,Revenue Expenditure ,Manpower Uk Ltd,670
West Sussex County Council,Additional Costs Arising From Covid 19,Covid 19 Costs,Seven Day Working - Agency Costs,Pay - AgcyStff-Care,21/05/2021,Revenue Expenditure ,Manpower Uk Ltd,866.25
West Sussex County Council,Additional Costs Arising From Covid 19,Covid 19 Costs,Hospital Discharge Contracts,Homecare: Block Cont,26/05/2021,Revenue Expenditure ,Horsham & Crawley Care Ltd,2059.44
West Sussex County Council,Additional Costs Arising From Covid 19,Covid 19 Costs,Hospital Discharge Contracts,Homecare: Block Cont,12/05/2021,Revenue Expenditure ,Agincare Limited,1225
West Sussex County Council,Additional Costs Arising From Covid 19,Covid 19 Costs,Hospital Discharge Contracts,Homecare: Block Cont,12/05/2021,Revenue Expenditure ,Agincare Limited,1225
West Sussex County Council,Additional Costs Arising From Covid 19,Covid 19 Costs,Hospital Discharge Contracts,Homecare: Block Cont,17/05/2021,Revenue Expenditure ,Agincare Limited,1225
West Sussex County Council,Additional Costs Arising From Covid 19,Covid 19 Costs,Hospital Discharge Contracts,Homecare: Block Cont,24/05/2021,Revenue Expenditure ,Agincare Limited,1225
West Sussex County Council,Additional Costs Arising From Covid 19,Covid 19 Costs,Hospital Discharge Contracts,Homecare: Block Cont,28/05/2021,Revenue Expenditure ,Agincare Limited,1225
West Sussex County Council,Additional Costs Arising From Covid 19,Covid 19 Costs,Seven Day Working - Agency Costs,Pay - AgcyStff-Care,13/05/2021,Revenue Expenditure ,Matrix Scm Limited,261.9
West Sussex County Council,Additional Costs Arising From Covid 19,Covid 19 Costs,Seven Day Working - Agency Costs,Pay - AgcyStff-Care,13/05/2021,Revenue Expenditure ,Matrix Scm Limited,261.9
West Sussex County Council,Additional Costs Arising From Covid 19,Covid 19 Costs,Seven Day Working - Agency Costs,Pay - AgcyStff-Care,13/05/2021,Revenue Expenditure ,Matrix Scm Limited,261.9
West Sussex County Council,Additional Costs Arising From Covid 19,Covid 19 Costs,Seven Day Working - Agency Costs,Pay - AgcyStff-Care,13/05/2021,Revenue Expenditure ,Matrix Scm Limited,597.17
West Sussex County Council,Additional Costs Arising From Covid 19,Covid 19 Costs,Seven Day Working - Agency Costs,Pay - AgcyStff-Care,13/05/2021,Revenue Expenditure ,Matrix Scm Limited,261.9
West Sussex County Council,Additional Costs Arising From Covid 19,Covid 19 Costs,Seven Day Working - Agency Costs,Pay - AgcyStff-Care,13/05/2021,Revenue Expenditure ,Matrix Scm Limited,261.9
West Sussex County Council,Additional Costs Arising From Covid 19,Covid 19 Costs,Seven Day Working - Agency Costs,Pay - AgcyStff-Care,13/05/2021,Revenue Expenditure ,Matrix Scm Limited,261.9
West Sussex County Council,Additional Costs Arising From Covid 19,Covid 19 Costs,Seven Day Working - Agency Costs,Pay - AgcyStff-Care,13/05/2021,Revenue Expenditure ,Matrix Scm Limited,148.48
West Sussex County Council,Additional Costs Arising From Covid 19,Covid 19 Costs,Seven Day Working - Agency Costs,Pay - AgcyStff-Care,13/05/2021,Revenue Expenditure ,Matrix Scm Limited,463.8
West Sussex County Council,Additional Costs Arising From Covid 19,Covid 19 Costs,Seven Day Working - Agency Costs,Pay - AgcyStff-Care,13/05/2021,Revenue Expenditure ,Matrix Scm Limited,324.8
West Sussex County Council,Additional Costs Arising From Covid 19,Covid 19 Costs,Seven Day Working - Agency Costs,Pay - AgcyStff-Care,13/05/2021,Revenue Expenditure ,Matrix Scm Limited,269.4
West Sussex County Council,Additional Costs Arising From Covid 19,Covid 19 Costs,Seven Day Working - Agency Costs,Pay - AgcyStff-Care,13/05/2021,Revenue Expenditure ,Matrix Scm Limited,278.4
West Sussex County Council,Additional Costs Arising From Covid 19,Covid 19 Costs,Seven Day Working - Agency Costs,Pay - AgcyStff-Care,18/05/2021,Revenue Expenditure ,Matrix Scm Limited,1059.64
West Sussex County Council,Additional Costs Arising From Covid 19,Covid 19 Costs,Seven Day Working - Agency Costs,Pay - AgcyStff-Care,18/05/2021,Revenue Expenditure ,Matrix Scm Limited,1144.52
West Sussex County Council,Additional Costs Arising From Covid 19,Covid 19 Costs,Seven Day Working - Agency Costs,Pay - AgcyStff-Care,18/05/2021,Revenue Expenditure ,Matrix Scm Limited,1267.42
West Sussex County Council,Additional Costs Arising From Covid 19,Covid 19 Costs,Seven Day Working - Agency Costs,Pay - AgcyStff-Care,18/05/2021,Revenue Expenditure ,Matrix Scm Limited,1292.04
West Sussex County Council,Additional Costs Arising From Covid 19,Covid 19 Costs,Seven Day Working - Agency Costs,Pay - AgcyStff-Care,18/05/2021,Revenue Expenditure ,Matrix Scm Limited,1292.04
West Sussex County Council,Additional Costs Arising From Covid 19,Covid 19 Costs,Seven Day Working - Agency Costs,Pay - AgcyStff-Care,18/05/2021,Revenue Expenditure ,Matrix Scm Limited,1292.04
West Sussex County Council,Additional Costs Arising From Covid 19,Covid 19 Costs,Seven Day Working - Agency Costs,Pay - AgcyStff-Care,18/05/2021,Revenue Expenditure ,Matrix Scm Limited,1292.04
West Sussex County Council,Additional Costs Arising From Covid 19,Covid 19 Costs,Seven Day Working - Agency Costs,Pay - AgcyStff-Care,18/05/2021,Revenue Expenditure ,Matrix Scm Limited,1292.04
West Sussex County Council,Additional Costs Arising From Covid 19,Covid 19 Costs,Seven Day Working - Agency Costs,Pay - AgcyStff-Care,18/05/2021,Revenue Expenditure ,Matrix Scm Limited,1366.04
West Sussex County Council,Additional Costs Arising From Covid 19,Covid 19 Costs,Seven Day Working - Agency Costs,Pay - AgcyStff-Care,18/05/2021,Revenue Expenditure ,Matrix Scm Limited,1373.22
West Sussex County Council,Additional Costs Arising From Covid 19,Covid 19 Costs,Seven Day Working - Agency Costs,Pay - AgcyStff-Care,18/05/2021,Revenue Expenditure ,Matrix Scm Limited,1375.94
West Sussex County Council,Additional Costs Arising From Covid 19,Covid 19 Costs,Seven Day Working - Agency Costs,Pay - AgcyStff-Care,18/05/2021,Revenue Expenditure ,Matrix Scm Limited,1388.4
West Sussex County Council,Additional Costs Arising From Covid 19,Covid 19 Costs,Seven Day Working - Agency Costs,Pay - AgcyStff-Care,18/05/2021,Revenue Expenditure ,Matrix Scm Limited,1418.48
West Sussex County Council,Additional Costs Arising From Covid 19,Covid 19 Costs,Seven Day Working - Agency Costs,Pay - AgcyStff-Care,18/05/2021,Revenue Expenditure ,Matrix Scm Limited,1508.64
West Sussex County Council,Additional Costs Arising From Covid 19,Covid 19 Costs,Seven Day Working - Agency Costs,Homecare: Block Cont,18/05/2021,Revenue Expenditure ,Matrix Scm Limited,1535.76
West Sussex County Council,Additional Costs Arising From Covid 19,Covid 19 Costs,Seven Day Working - Agency Costs,Pay - AgcyStff-Care,18/05/2021,Revenue Expenditure ,Matrix Scm Limited,1580.64
West Sussex County Council,Additional Costs Arising From Covid 19,Covid 19 Costs,Hospital Discharge Contracts,Homecare: Block Cont,24/05/2021,Revenue Expenditure ,Care Outlook Ltd,4419.97
West Sussex County Council,Additional Costs Arising From Covid 19,Covid 19 Costs,Hospital Discharge Contracts,Homecare: Block Cont,24/05/2021,Revenue Expenditure ,Care Outlook Ltd,9969.44
West Sussex County Council,Additional Costs Arising From Covid 19,Covid 19 Costs,Seven Day Working - Agency Costs,Pay - AgcyStff-Care,19/05/2021,Revenue Expenditure ,Matrix Scm Limited,1047.6
West Sussex County Council,Additional Costs Arising From Covid 19,Covid 19 Costs,Seven Day Working - Agency Costs,Pay - AgcyStff-Care,19/05/2021,Revenue Expenditure ,Matrix Scm Limited,1281.6
West Sussex County Council,Additional Costs Arising From Covid 19,Covid 19 Costs,Seven Day Working - Agency Costs,Pay - AgcyStff-Care,19/05/2021,Revenue Expenditure ,Matrix Scm Limited,1047.6
West Sussex County Council,Additional Costs Arising From Covid 19,Covid 19 Costs,Seven Day Working - Agency Costs,Pay - AgcyStff-Care,19/05/2021,Revenue Expenditure ,Matrix Scm Limited,1181.44
West Sussex County Council,Additional Costs Arising From Covid 19,Covid 19 Costs,Seven Day Working - Agency Costs,Pay - AgcyStff-Care,19/05/2021,Revenue Expenditure ,Matrix Scm Limited,987.6
West Sussex County Council,Additional Costs Arising From Covid 19,Covid 19 Costs,Seven Day Working - Agency Costs,Pay - AgcyStff-Care,19/05/2021,Revenue Expenditure ,Matrix Scm Limited,1047.6
West Sussex County Council,Additional Costs Arising From Covid 19,Covid 19 Costs,Seven Day Working - Agency Costs,Homecare: Block Cont,19/05/2021,Revenue Expenditure ,Matrix Scm Limited,1706.4
West Sussex County Council,Additional Costs Arising From Covid 19,Covid 19 Costs,Seven Day Working - Agency Costs,Homecare: Block Cont,19/05/2021,Revenue Expenditure ,Matrix Scm Limited,1422
West Sussex County Council,Additional Costs Arising From Covid 19,Covid 19 Costs,Seven Day Working - Agency Costs,Pay - AgcyStff-Care,19/05/2021,Revenue Expenditure ,Matrix Scm Limited,1047.6
West Sussex County Council,Additional Costs Arising From Covid 19,Covid 19 Costs,Seven Day Working - Agency Costs,Pay - AgcyStff-Care,19/05/2021,Revenue Expenditure ,Matrix Scm Limited,763.3
West Sussex County Council,Additional Costs Arising From Covid 19,Covid 19 Costs,Seven Day Working - Agency Costs,Pay - AgcyStff-Care,19/05/2021,Revenue Expenditure ,Matrix Scm Limited,1159.5
West Sussex County Council,Additional Costs Arising From Covid 19,Covid 19 Costs,Seven Day Working - Agency Costs,Pay - AgcyStff-Care,19/05/2021,Revenue Expenditure ,Matrix Scm Limited,1257.2
West Sussex County Council,Additional Costs Arising From Covid 19,Covid 19 Costs,Seven Day Working - Agency Costs,Pay - AgcyStff-Care,19/05/2021,Revenue Expenditure ,Matrix Scm Limited,1135.32
West Sussex County Council,Additional Costs Arising From Covid 19,Covid 19 Costs,Seven Day Working - Agency Costs,Pay - AgcyStff-Care,19/05/2021,Revenue Expenditure ,Matrix Scm Limited,839.22
West Sussex County Council,Additional Costs Arising From Covid 19,Covid 19 Costs,Seven Day Working - Agency Costs,Pay - AgcyStff-Care,19/05/2021,Revenue Expenditure ,Matrix Scm Limited,682.56
West Sussex County Council,Additional Costs Arising From Covid 19,Covid 19 Costs,Seven Day Working - Agency Costs,Pay - AgcyStff-Care,19/05/2021,Revenue Expenditure ,Matrix Scm Limited,910.08
West Sussex County Council,Additional Costs Arising From Covid 19,Covid 19 Costs,Seven Day Working - Agency Costs,Pay - AgcyStff-Care,19/05/2021,Revenue Expenditure ,Matrix Scm Limited,1047.6
West Sussex County Council,Additional Costs Arising From Covid 19,Covid 19 Costs,Seven Day Working - Agency Costs,Pay - AgcyStff-Care,19/05/2021,Revenue Expenditure ,Matrix Scm Limited,261.9
West Sussex County Council,Additional Costs Arising From Covid 19,Covid 19 Costs,Seven Day Working - Agency Costs,Pay - AgcyStff-Care,19/05/2021,Revenue Expenditure ,Matrix Scm Limited,1260.24
West Sussex County Council,Additional Costs Arising From Covid 19,Covid 19 Costs,Seven Day Working - Agency Costs,Pay - AgcyStff-Care,19/05/2021,Revenue Expenditure ,Matrix Scm Limited,1047.6
West Sussex County Council,Additional Costs Arising From Covid 19,Covid 19 Costs,Seven Day Working - Agency Costs,Pay - AgcyStff-Care,19/05/2021,Revenue Expenditure ,Matrix Scm Limited,535.34
West Sussex County Council,Additional Costs Arising From Covid 19,Covid 19 Costs,Seven Day Working - Agency Costs,Pay - AgcyStff-Care,19/05/2021,Revenue Expenditure ,Matrix Scm Limited,1366.04
West Sussex County Council,Additional Costs Arising From Covid 19,Covid 19 Costs,Seven Day Working - Agency Costs,Pay - AgcyStff-Care,19/05/2021,Revenue Expenditure ,Matrix Scm Limited,987.6
West Sussex County Council,Additional Costs Arising From Covid 19,Covid 19 Costs,Seven Day Working - Agency Costs,Pay - AgcyStff-Care,19/05/2021,Revenue Expenditure ,Matrix Scm Limited,246.9
West Sussex County Council,Additional Costs Arising From Covid 19,Covid 19 Costs,Seven Day Working - Agency Costs,Pay - AgcyStff-Care,19/05/2021,Revenue Expenditure ,Matrix Scm Limited,1047.6
West Sussex County Council,Additional Costs Arising From Covid 19,Covid 19 Costs,Seven Day Working - Agency Costs,Pay - AgcyStff-Care,19/05/2021,Revenue Expenditure ,Matrix Scm Limited,1047.6
West Sussex County Council,Additional Costs Arising From Covid 19,Covid 19 Costs,Seven Day Working - Agency Costs,Homecare: Block Cont,19/05/2021,Revenue Expenditure ,Matrix Scm Limited,891.12
West Sussex County Council,Additional Costs Arising From Covid 19,Covid 19 Costs,Seven Day Working - Agency Costs,Homecare: Block Cont,19/05/2021,Revenue Expenditure ,Matrix Scm Limited,1990.8
West Sussex County Council,Additional Costs Arising From Covid 19,Covid 19 Costs,Seven Day Working - Agency Costs,Pay - AgcyStff-Care,19/05/2021,Revenue Expenditure ,Matrix Scm Limited,1047.6
West Sussex County Council,Additional Costs Arising From Covid 19,Covid 19 Costs,Seven Day Working - Agency Costs,Pay - AgcyStff-Care,19/05/2021,Revenue Expenditure ,Matrix Scm Limited,775.32
West Sussex County Council,Additional Costs Arising From Covid 19,Covid 19 Costs,Seven Day Working - Agency Costs,Pay - AgcyStff-Care,19/05/2021,Revenue Expenditure ,Matrix Scm Limited,529.82
West Sussex County Council,Additional Costs Arising From Covid 19,Covid 19 Costs,Seven Day Working - Agency Costs,Pay - AgcyStff-Care,19/05/2021,Revenue Expenditure ,Matrix Scm Limited,143.68
West Sussex County Council,Additional Costs Arising From Covid 19,Covid 19 Costs,Seven Day Working - Agency Costs,Pay - AgcyStff-Care,19/05/2021,Revenue Expenditure ,Matrix Scm Limited,1159.5
West Sussex County Council,Additional Costs Arising From Covid 19,Covid 19 Costs,Seven Day Working - Agency Costs,Pay - AgcyStff-Care,19/05/2021,Revenue Expenditure ,Matrix Scm Limited,969.84
West Sussex County Council,Additional Costs Arising From Covid 19,Covid 19 Costs,Seven Day Working - Agency Costs,Pay - AgcyStff-Care,19/05/2021,Revenue Expenditure ,Matrix Scm Limited,314.3
West Sussex County Council,Additional Costs Arising From Covid 19,Covid 19 Costs,Seven Day Working - Agency Costs,Pay - AgcyStff-Care,19/05/2021,Revenue Expenditure ,Matrix Scm Limited,1172.54
West Sussex County Council,Additional Costs Arising From Covid 19,Covid 19 Costs,Seven Day Working - Agency Costs,Pay - AgcyStff-Care,19/05/2021,Revenue Expenditure ,Matrix Scm Limited,269.4
West Sussex County Council,Additional Costs Arising From Covid 19,Covid 19 Costs,Seven Day Working - Agency Costs,Pay - AgcyStff-Care,19/05/2021,Revenue Expenditure ,Matrix Scm Limited,1193.05
West Sussex County Council,Additional Costs Arising From Covid 19,Covid 19 Costs,Hospital Discharge Contracts,Homecare: Block Cont,20/05/2021,Revenue Expenditure ,Horsham & Crawley Care Ltd,2421.44
West Sussex County Council,Additional Costs Arising From Covid 19,Covid 19 Costs,Hospital Discharge Contracts,Homecare: Block Cont,20/05/2021,Revenue Expenditure ,Horsham & Crawley Care Ltd,2302.53
West Sussex County Council,Additional Costs Arising From Covid 19,Covid 19 Costs,Hospital Discharge Contracts,Homecare: Block Cont,20/05/2021,Revenue Expenditure ,Horsham & Crawley Care Ltd,2432.25
West Sussex County Council,Additional Costs Arising From Covid 19,Covid 19 Costs,Seven Day Working - Agency Costs,Pay - AgcyStff-Care,19/05/2021,Revenue Expenditure ,Matrix Scm Limited,-324.8
West Sussex County Council,Additional Costs Arising From Covid 19,Covid 19 Costs,Seven Day Working - Agency Costs,Pay - AgcyStff-Care,19/05/2021,Revenue Expenditure ,Matrix Scm Limited,-148.48
West Sussex County Council,Additional Costs Arising From Covid 19,Covid 19 Costs,Seven Day Working - Agency Costs,Pay - AgcyStff-Care,19/05/2021,Revenue Expenditure ,Matrix Scm Limited,-278.4
West Sussex County Council,Additional Costs Arising From Covid 19,Covid 19 Costs,Seven Day Working - Agency Costs,Pay - AgcyStff-Care,19/05/2021,Revenue Expenditure ,Matrix Scm Limited,-255.15
West Sussex County Council,Additional Costs Arising From Covid 19,Covid 19 Costs,Seven Day Working - Agency Costs,Pay - AgcyStff-Care,19/05/2021,Revenue Expenditure ,Matrix Scm Limited,1366.04
West Sussex County Council,Additional Costs Arising From Covid 19,Covid 19 Costs,Seven Day Working - Agency Costs,Pay - AgcyStff-Care,19/05/2021,Revenue Expenditure ,Matrix Scm Limited,1375.94
West Sussex County Council,Additional Costs Arising From Covid 19,Covid 19 Costs,Seven Day Working - Agency Costs,Pay - AgcyStff-Care,19/05/2021,Revenue Expenditure ,Matrix Scm Limited,1257.2
West Sussex County Council,Additional Costs Arising From Covid 19,Covid 19 Costs,Seven Day Working - Agency Costs,Pay - AgcyStff-Care,19/05/2021,Revenue Expenditure ,Matrix Scm Limited,1292.04
West Sussex County Council,Additional Costs Arising From Covid 19,Covid 19 Costs,Seven Day Working - Agency Costs,Pay - AgcyStff-Care,19/05/2021,Revenue Expenditure ,Matrix Scm Limited,1039.75
West Sussex County Council,Additional Costs Arising From Covid 19,Covid 19 Costs,Seven Day Working - Agency Costs,Pay - AgcyStff-Care,19/05/2021,Revenue Expenditure ,Matrix Scm Limited,987.6
West Sussex County Council,Additional Costs Arising From Covid 19,Covid 19 Costs,Seven Day Working - Agency Costs,Pay - AgcyStff-Care,19/05/2021,Revenue Expenditure ,Matrix Scm Limited,1409.83
West Sussex County Council,Additional Costs Arising From Covid 19,Covid 19 Costs,Seven Day Working - Agency Costs,Pay - AgcyStff-Care,19/05/2021,Revenue Expenditure ,Matrix Scm Limited,1107.6
West Sussex County Council,Additional Costs Arising From Covid 19,Covid 19 Costs,Seven Day Working - Agency Costs,Pay - AgcyStff-Care,19/05/2021,Revenue Expenditure ,Matrix Scm Limited,1281.6
West Sussex County Council,Additional Costs Arising From Covid 19,Covid 19 Costs,Seven Day Working - Agency Costs,Pay - AgcyStff-Care,19/05/2021,Revenue Expenditure ,Matrix Scm Limited,1378.02
West Sussex County Council,Additional Costs Arising From Covid 19,Covid 19 Costs,Seven Day Working - Agency Costs,Pay - AgcyStff-Care,19/05/2021,Revenue Expenditure ,Matrix Scm Limited,1292.04
West Sussex County Council,Additional Costs Arising From Covid 19,Covid 19 Costs,Seven Day Working - Agency Costs,Pay - AgcyStff-Care,19/05/2021,Revenue Expenditure ,Matrix Scm Limited,1292.04
West Sussex County Council,Additional Costs Arising From Covid 19,Covid 19 Costs,Seven Day Working - Agency Costs,Pay - AgcyStff-Care,19/05/2021,Revenue Expenditure ,Matrix Scm Limited,1292.04
West Sussex County Council,Additional Costs Arising From Covid 19,Covid 19 Costs,Seven Day Working - Agency Costs,Pay - AgcyStff-Care,19/05/2021,Revenue Expenditure ,Matrix Scm Limited,1292.04
West Sussex County Council,Additional Costs Arising From Covid 19,Covid 19 Costs,Hospital Discharge Contracts,Homecare: Block Cont,26/05/2021,Revenue Expenditure ,Classic Care Services Ltd,4500
West Sussex County Council,Additional Costs Arising From Covid 19,Covid 19 Costs,Seven Day Working - Agency Costs,Pay - AgcyStff-Care,25/05/2021,Revenue Expenditure ,Matrix Scm Limited,1366.04
West Sussex County Council,Additional Costs Arising From Covid 19,Covid 19 Costs,Seven Day Working - Agency Costs,Pay - AgcyStff-Care,25/05/2021,Revenue Expenditure ,Matrix Scm Limited,1375.94
West Sussex County Council,Additional Costs Arising From Covid 19,Covid 19 Costs,Seven Day Working - Agency Costs,Pay - AgcyStff-Care,25/05/2021,Revenue Expenditure ,Matrix Scm Limited,1257.2
West Sussex County Council,Additional Costs Arising From Covid 19,Covid 19 Costs,Seven Day Working - Agency Costs,Pay - AgcyStff-Care,25/05/2021,Revenue Expenditure ,Matrix Scm Limited,1292.04
West Sussex County Council,Additional Costs Arising From Covid 19,Covid 19 Costs,Seven Day Working - Agency Costs,Pay - AgcyStff-Care,25/05/2021,Revenue Expenditure ,Matrix Scm Limited,1036.88
West Sussex County Council,Additional Costs Arising From Covid 19,Covid 19 Costs,Seven Day Working - Agency Costs,Pay - AgcyStff-Care,25/05/2021,Revenue Expenditure ,Matrix Scm Limited,1234.5
West Sussex County Council,Additional Costs Arising From Covid 19,Covid 19 Costs,Seven Day Working - Agency Costs,Pay - AgcyStff-Care,25/05/2021,Revenue Expenditure ,Matrix Scm Limited,1405.19
West Sussex County Council,Additional Costs Arising From Covid 19,Covid 19 Costs,Seven Day Working - Agency Costs,Pay - AgcyStff-Care,25/05/2021,Revenue Expenditure ,Matrix Scm Limited,1052.22
West Sussex County Council,Additional Costs Arising From Covid 19,Covid 19 Costs,Seven Day Working - Agency Costs,Pay - AgcyStff-Care,25/05/2021,Revenue Expenditure ,Matrix Scm Limited,1386.48
West Sussex County Council,Additional Costs Arising From Covid 19,Covid 19 Costs,Seven Day Working - Agency Costs,Pay - AgcyStff-Care,25/05/2021,Revenue Expenditure ,Matrix Scm Limited,1292.04
West Sussex County Council,Additional Costs Arising From Covid 19,Covid 19 Costs,Seven Day Working - Agency Costs,Pay - AgcyStff-Care,25/05/2021,Revenue Expenditure ,Matrix Scm Limited,1292.04
West Sussex County Council,Additional Costs Arising From Covid 19,Covid 19 Costs,Seven Day Working - Agency Costs,Pay - AgcyStff-Care,25/05/2021,Revenue Expenditure ,Matrix Scm Limited,1292.04
West Sussex County Council,Additional Costs Arising From Covid 19,Covid 19 Costs,Seven Day Working - Agency Costs,Pay - AgcyStff-Care,25/05/2021,Revenue Expenditure ,Matrix Scm Limited,1292.04
West Sussex County Council,Additional Costs Arising From Covid 19,Covid 19 Costs,Extremely Clinically Vulnerable,Sundry Office Expens,04/05/2021,Revenue Expenditure ,P Card Royal Bank Of Scotland Plc,483
West Sussex County Council,Additional Costs Arising From Covid 19,Covid 19 Costs,Extremely Clinically Vulnerable,Sundry Office Expens,04/05/2021,Revenue Expenditure ,P Card Royal Bank Of Scotland Plc,483
West Sussex County Council,Additional Costs Arising From Covid 19,Covid 19 Costs,Extremely Clinically Vulnerable,General Provisions,04/05/2021,Revenue Expenditure ,P Card Royal Bank Of Scotland Plc,483
West Sussex County Council,Additional Costs Arising From Covid 19,Covid 19 Costs,Extremely Clinically Vulnerable,General Provisions,04/05/2021,Revenue Expenditure ,P Card Royal Bank Of Scotland Plc,483
West Sussex County Council,Additional Costs Arising From Covid 19,Covid 19 Costs,Extremely Clinically Vulnerable,General Provisions,04/05/2021,Revenue Expenditure ,P Card Royal Bank Of Scotland Plc,483
West Sussex County Council,Additional Costs Arising From Covid 19,Covid 19 Costs,Extremely Clinically Vulnerable,Sundry Office Expens,04/05/2021,Revenue Expenditure ,P Card Royal Bank Of Scotland Plc,700
West Sussex County Council,Additional Costs Arising From Covid 19,Covid 19 Costs,Extremely Clinically Vulnerable,Sundry Office Expens,04/05/2021,Revenue Expenditure ,P Card Royal Bank Of Scotland Plc,517.46
West Sussex County Council,Additional Costs Arising From Covid 19,Covid 19 Costs,Extremely Clinically Vulnerable,Sundry Office Expens,04/05/2021,Revenue Expenditure ,P Card Royal Bank Of Scotland Plc,455.76
West Sussex County Council,Additional Costs Arising From Covid 19,Covid 19 Costs,Extremely Clinically Vulnerable,Office Equipment,04/05/2021,Revenue Expenditure ,P Card Royal Bank Of Scotland Plc,5093.6
West Sussex County Council,Additional Costs Arising From Covid 19,Covid 19 Costs,Winter Grant Sch - Food & Assistance,Grants to Ext Bodies,05/05/2021,Revenue Expenditure ,Age Uk West Sussex Brighton & Hove,24375
West Sussex County Council,Additional Costs Arising From Covid 19,Covid 19 Costs,Communities,Rent: Room/Building,05/05/2021,Revenue Expenditure ,Carrier Rental Systems Uk Ltd,13477.6
West Sussex County Council,Additional Costs Arising From Covid 19,Covid 19 Costs,Food And Supplies,General Provisions,27/05/2021,Revenue Expenditure ,Apetito Ltd,1219
West Sussex County Council,Additional Costs Arising From Covid 19,Covid 19 Costs,Food And Supplies,General Provisions,27/05/2021,Revenue Expenditure ,Apetito Ltd,952
West Sussex County Council,Additional Costs Arising From Covid 19,Covid 19 Costs,Extremely Clinically Vulnerable,Computer Maintenance,05/05/2021,Revenue Expenditure ,Capita Business Services Ltd,3851
West Sussex County Council,Additional Costs Arising From Covid 19,Covid 19 Costs,Food And Supplies,Meals on Wheels,04/05/2021,Revenue Expenditure ,Adams Wholesale West Sussex Limited,600.8
West Sussex County Council,Additional Costs Arising From Covid 19,Covid 19 Costs,Lateral Flow Test,Pay - Agency Staff,05/05/2021,Revenue Expenditure ,Manpower Uk Ltd,4024.5
West Sussex County Council,Additional Costs Arising From Covid 19,Covid 19 Costs,Communities,Rent: Room/Building,25/05/2021,Revenue Expenditure ,Carrier Rental Systems Uk Ltd,21156.24
West Sussex County Council,Additional Costs Arising From Covid 19,Covid 19 Costs,Extremely Clinically Vulnerable,Pymnts to other L.A.,25/05/2021,Revenue Expenditure ,East Sussex County Council,110000
West Sussex County Council,Additional Costs Arising From Covid 19,Covid 19 Costs,Customer Experience,Sundry Office Expens,04/05/2021,Revenue Expenditure ,Nomad Plc,1517.5
West Sussex County Council,Additional Costs Arising From Covid 19,Covid 19 Costs,Grant For Food And Essential Supplies,Pay: Private Cntrctr,11/05/2021,Revenue Expenditure ,Arun & Chichester Cab,68000
West Sussex County Council,Additional Costs Arising From Covid 19,Covid 19 Costs,Extremely Clinically Vulnerable,Pymnts to other L.A.,25/05/2021,Revenue Expenditure ,East Sussex County Council,220000
West Sussex County Council,Additional Costs Arising From Covid 19,Covid 19 Costs,Customer Experience,Sundry Office Expens,20/05/2021,Revenue Expenditure ,Nomad Plc,1517.5
West Sussex County Council,Additional Costs Arising From Covid 19,Covid 19 Costs,Food And Supplies,Meals on Wheels,26/05/2021,Revenue Expenditure ,Adams Wholesale West Sussex Limited,641.25
West Sussex County Council,Additional Costs Arising From Covid 19,Covid 19 Costs,Food And Supplies,Meals on Wheels,26/05/2021,Revenue Expenditure ,Adams Wholesale West Sussex Limited,720.2
West Sussex County Council,Additional Costs Arising From Covid 19,Covid 19 Costs,Food And Supplies,Meals on Wheels,25/05/2021,Revenue Expenditure ,Adams Wholesale West Sussex Limited,607.5
West Sussex County Council,Additional Costs Arising From Covid 19,Covid 19 Costs,Food And Supplies,Meals on Wheels,25/05/2021,Revenue Expenditure ,Adams Wholesale West Sussex Limited,652.7
West Sussex County Council,Additional Costs Arising From Covid 19,Covid 19 Costs,Lft Community Collect,Gen Client Expenses,28/05/2021,Revenue Expenditure ,Greenham Trading Ltd,416.98
West Sussex County Council,Additional Costs Arising From Covid 19,Covid 19 Costs,Lft Community Collect,Gen Client Expenses,28/05/2021,Revenue Expenditure ,Greenham Trading Ltd,416.98
West Sussex County Council,Additional Costs Arising From Covid 19,Covid 19 Costs,Lft Community Collect,Gen Client Expenses,28/05/2021,Revenue Expenditure ,Greenham Trading Ltd,416.98
West Sussex County Council,Additional Costs Arising From Covid 19,Covid 19 Costs,Lateral Flow Test,Pay - Agency Staff,19/05/2021,Revenue Expenditure ,Matrix Scm Limited,385.84
West Sussex County Council,Additional Costs Arising From Covid 19,Covid 19 Costs,Lateral Flow Test,Pay - Agency Staff,19/05/2021,Revenue Expenditure ,Matrix Scm Limited,196.08
West Sussex County Council,Additional Costs Arising From Covid 19,Covid 19 Costs,Covid Mortuary Costs,Furniture & Fittings,24/05/2021,Revenue Expenditure ,Portsdown Office Ltd,3947.57
West Sussex County Council,Additional Costs Arising From Covid 19,Covid 19 Costs,Lateral Flow Test,Pay: Private Cntrctr,24/05/2021,Revenue Expenditure ,Day Lewis Plc,610
West Sussex County Council,Additional Costs Arising From Covid 19,Covid 19 Costs,Communications,Advertis'g/Publicity,27/05/2021,Revenue Expenditure ,Air Social Digital Marketing,3500
West Sussex County Council,Additional Costs Arising From Covid 19,Covid 19 Costs,Communications,Advertis'g/Publicity,27/05/2021,Revenue Expenditure ,Air Social Digital Marketing,3000
West Sussex County Council,Additional Costs Arising From Covid 19,Covid 19 Costs,Chief Fire And Rescue Services,Pay - Agency Staff,05/05/2021,Revenue Expenditure ,Manpower Uk Ltd,515.41
West Sussex County Council,Additional Costs Arising From Covid 19,Covid 19 Costs,Chief Fire And Rescue Services,Pay - Agency Staff,05/05/2021,Revenue Expenditure ,Manpower Uk Ltd,509.12
West Sussex County Council,Additional Costs Arising From Covid 19,Covid 19 Costs,Chief Fire And Rescue Services,Ctrct Hire Plnt/Mach,07/05/2021,Revenue Expenditure ,Enterprise Flex E Rent,522.86
West Sussex County Council,Additional Costs Arising From Covid 19,Covid 19 Costs,Chief Fire And Rescue Services,Ctrct Hire Plnt/Mach,07/05/2021,Revenue Expenditure ,Enterprise Flex E Rent,630
West Sussex County Council,Additional Costs Arising From Covid 19,Covid 19 Costs,Chief Fire And Rescue Services,Computer Maintenance,25/05/2021,Revenue Expenditure ,Capita Business Services Ltd,574
West Sussex County Council,Additional Costs Arising From Covid 19,Covid 19 Costs,Chief Fire And Rescue Services,Computer Maintenance,25/05/2021,Revenue Expenditure ,Capita Business Services Ltd,10862.5
West Sussex County Council,Additional Costs Arising From Covid 19,Covid 19 Costs,Chief Fire And Rescue Services,Pay - Agency Staff,14/05/2021,Revenue Expenditure ,Manpower Uk Ltd,313.43
West Sussex County Council,Additional Costs Arising From Covid 19,Covid 19 Costs,Chief Fire And Rescue Services,Pay - Agency Staff,14/05/2021,Revenue Expenditure ,Manpower Uk Ltd,309.6
West Sussex County Council,Additional Costs Arising From Covid 19,Covid 19 Costs,Chief Fire And Rescue Services,Car Hire,17/05/2021,Revenue Expenditure ,Enterprise Flex E Rent,651
West Sussex County Council,Additional Costs Arising From Covid 19,Covid 19 Costs,Chief Fire And Rescue Services,Car Hire,17/05/2021,Revenue Expenditure ,Enterprise Flex E Rent,588
West Sussex County Council,Additional Costs Arising From Covid 19,Covid 19 Costs,Chief Fire And Rescue Services,Pay - Agency Staff,13/05/2021,Revenue Expenditure ,Matrix Scm Limited,102.68
West Sussex County Council,Additional Costs Arising From Covid 19,Covid 19 Costs,Chief Fire And Rescue Services,Pay - Agency Staff,18/05/2021,Revenue Expenditure ,Matrix Scm Limited,418.84
West Sussex County Council,Additional Costs Arising From Covid 19,Covid 19 Costs,Chief Fire And Rescue Services,Pay - Agency Staff,18/05/2021,Revenue Expenditure ,Matrix Scm Limited,512.47
West Sussex County Council,Additional Costs Arising From Covid 19,Covid 19 Costs,Chief Fire And Rescue Services,Pay - Agency Staff,19/05/2021,Revenue Expenditure ,Matrix Scm Limited,401.67
West Sussex County Council,Additional Costs Arising From Covid 19,Covid 19 Costs,Chief Fire And Rescue Services,Pay - Agency Staff,19/05/2021,Revenue Expenditure ,Matrix Scm Limited,333.94
West Sussex County Council,Additional Costs Arising From Covid 19,Covid 19 Costs,Chief Fire And Rescue Services,Pay - Agency Staff,19/05/2021,Revenue Expenditure ,Matrix Scm Limited,418.84
West Sussex County Council,Additional Costs Arising From Covid 19,Covid 19 Costs,Chief Fire And Rescue Services,Pay - Agency Staff,19/05/2021,Revenue Expenditure ,Matrix Scm Limited,512.47
West Sussex County Council,Additional Costs Arising From Covid 19,Covid 19 Costs,Chief Fire And Rescue Services,Pay - Agency Staff,19/05/2021,Revenue Expenditure ,Matrix Scm Limited,418.84
West Sussex County Council,Additional Costs Arising From Covid 19,Covid 19 Costs,Chief Fire And Rescue Services,Pay - Agency Staff,19/05/2021,Revenue Expenditure ,Matrix Scm Limited,512.47
West Sussex County Council,Additional Costs Arising From Covid 19,Covid 19 Costs,Chief Fire And Rescue Services,Pay - Agency Staff,25/05/2021,Revenue Expenditure ,Matrix Scm Limited,418.84
West Sussex County Council,Additional Costs Arising From Covid 19,Covid 19 Costs,Chief Fire And Rescue Services,Pay - Agency Staff,25/05/2021,Revenue Expenditure ,Matrix Scm Limited,512.47
West Sussex County Council,Additional Costs Arising From Covid 19,Covid 19 Costs,Human Resources,Pay - Agency Staff,05/05/2021,Revenue Expenditure ,Manpower Uk Ltd,796.25
West Sussex County Council,Additional Costs Arising From Covid 19,Covid 19 Costs,Human Resources,Pay - Agency Staff,14/05/2021,Revenue Expenditure ,Manpower Uk Ltd,318.5
West Sussex County Council,Additional Costs Arising From Covid 19,Covid 19 Costs,Human Resources,Pay - Agency Staff,14/05/2021,Revenue Expenditure ,Manpower Uk Ltd,477.75
West Sussex County Council,Additional Costs Arising From Covid 19,Covid 19 Costs,Human Resources,Pay - Agency Staff,19/05/2021,Revenue Expenditure ,Matrix Scm Limited,2882.52
West Sussex County Council,Additional Costs Arising From Covid 19,Covid 19 Costs,Human Resources,Pay - Agency Staff,19/05/2021,Revenue Expenditure ,Matrix Scm Limited,320.28
West Sussex County Council,Additional Costs Arising From Covid 19,Covid 19 Costs,Human Resources,Pay - Agency Staff,19/05/2021,Revenue Expenditure ,Matrix Scm Limited,800.7
West Sussex County Council,Additional Costs Arising From Covid 19,Covid 19 Costs,Human Resources,Pay - Agency Staff,19/05/2021,Revenue Expenditure ,Matrix Scm Limited,800.7
West Sussex County Council,Additional Costs Arising From Covid 19,Covid 19 Costs,Human Resources,Pay - Agency Staff,19/05/2021,Revenue Expenditure ,Matrix Scm Limited,-2882.52
West Sussex County Council,Additional Costs Arising From Covid 19,Covid 19 Costs,Human Resources,Pay - Agency Staff,25/05/2021,Revenue Expenditure ,Matrix Scm Limited,800.7
West Sussex County Council,Additional Costs Arising From Covid 19,Covid 19 Costs,Nurseries And Early Years Support,Grants to Ext Bodies,25/05/2021,Revenue Expenditure ,Willow Tree Pre-School,3522.91
West Sussex County Council,Additional Costs Arising From Covid 19,Covid 19 Costs,Nurseries And Early Years Support,Grants to Ext Bodies,25/05/2021,Revenue Expenditure ,The Childcare Club,3522.91
West Sussex County Council,Additional Costs Arising From Covid 19,Covid 19 Costs,Nurseries And Early Years Support,Grants to Ext Bodies,25/05/2021,Revenue Expenditure ,Jack & Jill Pre-School,3139.76
West Sussex County Council,Additional Costs Arising From Covid 19,Covid 19 Costs,Nurseries And Early Years Support,Grants to Ext Bodies,25/05/2021,Revenue Expenditure ,Kiddie Capers Childcare,2673.09
West Sussex County Council,Additional Costs Arising From Covid 19,Covid 19 Costs,Nurseries And Early Years Support,Grants to Ext Bodies,25/05/2021,Revenue Expenditure ,Elan Nursery Steyning,2673.09
West Sussex County Council,Additional Costs Arising From Covid 19,Covid 19 Costs,Nurseries And Early Years Support,Grants to Ext Bodies,25/05/2021,Revenue Expenditure ,Community Playcentre @ Walberton,2432.01
West Sussex County Council,Additional Costs Arising From Covid 19,Covid 19 Costs,Nurseries And Early Years Support,Grants to Ext Bodies,25/05/2021,Revenue Expenditure ,Albourne Under Fives,2237.24
West Sussex County Council,Additional Costs Arising From Covid 19,Covid 19 Costs,Nurseries And Early Years Support,Grants to Ext Bodies,25/05/2021,Revenue Expenditure ,The Childcare Club,1582.19
West Sussex County Council,Additional Costs Arising From Covid 19,Covid 19 Costs,Nurseries And Early Years Support,Grants to Ext Bodies,25/05/2021,Revenue Expenditure ,The Childcare Club,1582.19
West Sussex County Council,Additional Costs Arising From Covid 19,Covid 19 Costs,Nurseries And Early Years Support,Grants to Ext Bodies,25/05/2021,Revenue Expenditure ,The Childcare Club,1582.19
West Sussex County Council,Additional Costs Arising From Covid 19,Covid 19 Costs,Nurseries And Early Years Support,Grants to Ext Bodies,25/05/2021,Revenue Expenditure ,Southeast Kids Camps,1271.72
West Sussex County Council,Additional Costs Arising From Covid 19,Covid 19 Costs,Nurseries And Early Years Support,Grants to Ext Bodies,25/05/2021,Revenue Expenditure ,Greenway Nursery & Rainbow Club Ltd,1271.72
West Sussex County Council,Additional Costs Arising From Covid 19,Covid 19 Costs,Nurseries And Early Years Support,Grants to Ext Bodies,25/05/2021,Revenue Expenditure ,Shalom Childcare Ltd,1076.07
West Sussex County Council,Additional Costs Arising From Covid 19,Covid 19 Costs,Nurseries And Early Years Support,Grants to Ext Bodies,25/05/2021,Revenue Expenditure ,The Springboard Project,849.82
West Sussex County Council,Additional Costs Arising From Covid 19,Covid 19 Costs,Nurseries And Early Years Support,Grants to Ext Bodies,25/05/2021,Revenue Expenditure ,Mrs Valerie Ann Hall,742.4
West Sussex County Council,Additional Costs Arising From Covid 19,Covid 19 Costs,Nurseries And Early Years Support,Grants to Ext Bodies,25/05/2021,Revenue Expenditure ,Alison Sizmur,742.4
West Sussex County Council,Additional Costs Arising From Covid 19,Covid 19 Costs,Nurseries And Early Years Support,Grants to Ext Bodies,25/05/2021,Revenue Expenditure ,Sandra Stace,742.4
West Sussex County Council,Additional Costs Arising From Covid 19,Covid 19 Costs,Nurseries And Early Years Support,Grants to Ext Bodies,25/05/2021,Revenue Expenditure ,Niki Barnard,742.4
West Sussex County Council,Additional Costs Arising From Covid 19,Covid 19 Costs,Nurseries And Early Years Support,Grants to Ext Bodies,25/05/2021,Revenue Expenditure ,Jeli Childrens Club,721.9
West Sussex County Council,Additional Costs Arising From Covid 19,Covid 19 Costs,Nurseries And Early Years Support,Grants to Ext Bodies,25/05/2021,Revenue Expenditure ,Kids Like Us,721.9
West Sussex County Council,Additional Costs Arising From Covid 19,Covid 19 Costs,Nurseries And Early Years Support,Grants to Ext Bodies,25/05/2021,Revenue Expenditure ,Southeast Kids Camps,549.82
West Sussex County Council,Additional Costs Arising From Covid 19,Covid 19 Costs,Nurseries And Early Years Support,Grants to Ext Bodies,25/05/2021,Revenue Expenditure ,Natural Nurture Nursery,549.82
West Sussex County Council,Additional Costs Arising From Covid 19,Covid 19 Costs,Nurseries And Early Years Support,Grants to Ext Bodies,25/05/2021,Revenue Expenditure ,Chichester College,549.82
West Sussex County Council,Additional Costs Arising From Covid 19,Covid 19 Costs,Comf Payments To D & Bs,Pymnts to other L.A.,27/05/2021,Revenue Expenditure ,Adur District Council,234063
West Sussex County Council,Additional Costs Arising From Covid 19,Covid 19 Costs,Comf Payments To D & Bs,Pymnts to other L.A.,27/05/2021,Revenue Expenditure ,Arun District Council,604961
West Sussex County Council,Additional Costs Arising From Covid 19,Covid 19 Costs,Comf Payments To D & Bs,Pymnts to other L.A.,27/05/2021,Revenue Expenditure ,Chichester District Council,414681
West Sussex County Council,Additional Costs Arising From Covid 19,Covid 19 Costs,Comf Payments To D & Bs,Pymnts to other L.A.,27/05/2021,Revenue Expenditure ,Crawley Borough Council,472808
West Sussex County Council,Additional Costs Arising From Covid 19,Covid 19 Costs,Comf Payments To D & Bs,Pymnts to other L.A.,27/05/2021,Revenue Expenditure ,Horsham District Council,415997
West Sussex County Council,Additional Costs Arising From Covid 19,Covid 19 Costs,Comf Payments To D & Bs,Pymnts to other L.A.,27/05/2021,Revenue Expenditure ,Mid Sussex District Council,390635
West Sussex County Council,Additional Costs Arising From Covid 19,Covid 19 Costs,Comf Payments To D & Bs,Pymnts to other L.A.,27/05/2021,Revenue Expenditure ,Worthing Borough Council,400218
West Sussex County Council,Additional Costs Arising From Covid 19,Covid 19 Costs,Test And Trace Service,Staff Recruitment,04/05/2021,Revenue Expenditure ,Baltimore Consulting Ltd,1053
West Sussex County Council,Additional Costs Arising From Covid 19,Covid 19 Costs,Test And Trace Service,Staff Recruitment,10/05/2021,Revenue Expenditure ,Baltimore Consulting Ltd,1053
West Sussex County Council,Additional Costs Arising From Covid 19,Covid 19 Costs,Uasc New Arrival Costs,Independent Accom.,11/05/2021,Revenue Expenditure ,Cranmead Ltd,4504
West Sussex County Council,Additional Costs Arising From Covid 19,Covid 19 Costs,Public Health,Advertis'g/Publicity,10/05/2021,Revenue Expenditure ,Clear Channel Uk Ltd,3900
West Sussex County Council,Additional Costs Arising From Covid 19,Covid 19 Costs,Public Health,Advertis'g/Publicity,10/05/2021,Revenue Expenditure ,Clear Channel Uk Ltd,688.88
West Sussex County Council,Additional Costs Arising From Covid 19,Covid 19 Costs,Test And Trace Service,Staff Recruitment,17/05/2021,Revenue Expenditure ,Baltimore Consulting Ltd,526.5
West Sussex County Council,Additional Costs Arising From Covid 19,Covid 19 Costs,Public Health,Pay - Agency Staff,05/05/2021,Revenue Expenditure ,Manpower Uk Ltd,2537
West Sussex County Council,Additional Costs Arising From Covid 19,Covid 19 Costs,Test And Trace Service,Staff Recruitment,24/05/2021,Revenue Expenditure ,Baltimore Consulting Ltd,1053
West Sussex County Council,Additional Costs Arising From Covid 19,Covid 19 Costs,Public Health,Advertis'g/Publicity,24/05/2021,Revenue Expenditure ,Clear Channel Uk Ltd,1808.95
West Sussex County Council,Additional Costs Arising From Covid 19,Covid 19 Costs,Uasc New Arrival Costs,Independent Accom.,25/05/2021,Revenue Expenditure ,Cranmead Ltd,17328.97
West Sussex County Council,Additional Costs Arising From Covid 19,Covid 19 Costs,Test And Trace Service,Staff Recruitment,05/05/2021,Revenue Expenditure ,Soline Jerram,2250
West Sussex County Council,Additional Costs Arising From Covid 19,Covid 19 Costs,Public Health,Advertis'g/Publicity,06/05/2021,Revenue Expenditure ,Clear Channel Uk Ltd,938.28
West Sussex County Council,Additional Costs Arising From Covid 19,Covid 19 Costs,Public Health,Pay - Agency Staff,14/05/2021,Revenue Expenditure ,Manpower Uk Ltd,1522.2
West Sussex County Council,Additional Costs Arising From Covid 19,Covid 19 Costs,Public Health,Pay - Agency Staff,13/05/2021,Revenue Expenditure ,Matrix Scm Limited,515.51
West Sussex County Council,Additional Costs Arising From Covid 19,Covid 19 Costs,Public Health,Pay - Agency Staff,18/05/2021,Revenue Expenditure ,Matrix Scm Limited,2643.12
West Sussex County Council,Additional Costs Arising From Covid 19,Covid 19 Costs,Public Health,Pay - Agency Staff,19/05/2021,Revenue Expenditure ,Matrix Scm Limited,716.04
West Sussex County Council,Additional Costs Arising From Covid 19,Covid 19 Costs,Public Health,Pay - Agency Staff,19/05/2021,Revenue Expenditure ,Matrix Scm Limited,2148.12
West Sussex County Council,Additional Costs Arising From Covid 19,Covid 19 Costs,Public Health,Pay - Agency Staff,19/05/2021,Revenue Expenditure ,Matrix Scm Limited,2505.2
West Sussex County Council,Additional Costs Arising From Covid 19,Covid 19 Costs,Public Health,Pay - Agency Staff,19/05/2021,Revenue Expenditure ,Matrix Scm Limited,2505.2
West Sussex County Council,Additional Costs Arising From Covid 19,Covid 19 Costs,Public Health,Pay - Agency Staff,19/05/2021,Revenue Expenditure ,Matrix Scm Limited,2004.16
West Sussex County Council,Additional Costs Arising From Covid 19,Covid 19 Costs,Public Health,Pay - Agency Staff,19/05/2021,Revenue Expenditure ,Matrix Scm Limited,2643.12
West Sussex County Council,Additional Costs Arising From Covid 19,Covid 19 Costs,Public Health,Pay - Agency Staff,19/05/2021,Revenue Expenditure ,Matrix Scm Limited,1762.08
West Sussex County Council,Additional Costs Arising From Covid 19,Covid 19 Costs,Public Health,Pay - Agency Staff,19/05/2021,Revenue Expenditure ,Matrix Scm Limited,3992.7
West Sussex County Council,Additional Costs Arising From Covid 19,Covid 19 Costs,Public Health,Pay - Agency Staff,19/05/2021,Revenue Expenditure ,Matrix Scm Limited,3992.7
West Sussex County Council,Additional Costs Arising From Covid 19,Covid 19 Costs,Public Health,Pay - Agency Staff,19/05/2021,Revenue Expenditure ,Matrix Scm Limited,2505.2
West Sussex County Council,Additional Costs Arising From Covid 19,Covid 19 Costs,Public Health,Pay - Agency Staff,19/05/2021,Revenue Expenditure ,Matrix Scm Limited,501.04
West Sussex County Council,Additional Costs Arising From Covid 19,Covid 19 Costs,Public Health,Pay - Agency Staff,19/05/2021,Revenue Expenditure ,Matrix Scm Limited,798.54
West Sussex County Council,Additional Costs Arising From Covid 19,Covid 19 Costs,Test And Trace Service,Staff Recruitment,21/05/2021,Revenue Expenditure ,Soline Jerram,1800
West Sussex County Council,Additional Costs Arising From Covid 19,Covid 19 Costs,Public Health,Pay - Agency Staff,19/05/2021,Revenue Expenditure ,Matrix Scm Limited,-515.51
West Sussex County Council,Additional Costs Arising From Covid 19,Covid 19 Costs,Public Health,Pay - Agency Staff,19/05/2021,Revenue Expenditure ,Matrix Scm Limited,2864.16
West Sussex County Council,Additional Costs Arising From Covid 19,Covid 19 Costs,Public Health,Pay - Agency Staff,19/05/2021,Revenue Expenditure ,Matrix Scm Limited,1762.08
West Sussex County Council,Additional Costs Arising From Covid 19,Covid 19 Costs,Public Health,Pay - Agency Staff,19/05/2021,Revenue Expenditure ,Matrix Scm Limited,3403.31
West Sussex County Council,Additional Costs Arising From Covid 19,Covid 19 Costs,Public Health,Pay - Agency Staff,19/05/2021,Revenue Expenditure ,Matrix Scm Limited,2643.12
West Sussex County Council,Additional Costs Arising From Covid 19,Covid 19 Costs,Public Health,Pay - Agency Staff,19/05/2021,Revenue Expenditure ,Matrix Scm Limited,3194.16
West Sussex County Council,Additional Costs Arising From Covid 19,Covid 19 Costs,Public Health,Pay - Agency Staff,19/05/2021,Revenue Expenditure ,Matrix Scm Limited,2505.2
West Sussex County Council,Additional Costs Arising From Covid 19,Covid 19 Costs,Public Health,Pay - Agency Staff,25/05/2021,Revenue Expenditure ,Matrix Scm Limited,4106.44
West Sussex County Council,Additional Costs Arising From Covid 19,Covid 19 Costs,Nurseries And Early Years Support,Grants to Ext Bodies,25/05/2021,Revenue Expenditure ,Blackbird Fun For Kids,3522.91
West Sussex County Council,Additional Costs Arising From Covid 19,Covid 19 Costs,Nurseries And Early Years Support,Grants to Ext Bodies,25/05/2021,Revenue Expenditure ,Zigzag Childcare Ltd,2673.09
West Sussex County Council,Additional Costs Arising From Covid 19,Covid 19 Costs,Nurseries And Early Years Support,Grants to Ext Bodies,25/05/2021,Revenue Expenditure ,Up And Out Childcare,2362.62
West Sussex County Council,Additional Costs Arising From Covid 19,Covid 19 Costs,Nurseries And Early Years Support,Grants to Ext Bodies,25/05/2021,Revenue Expenditure ,Mrs S A Hale,2362.62
West Sussex County Council,Additional Costs Arising From Covid 19,Covid 19 Costs,Nurseries And Early Years Support,Grants to Ext Bodies,25/05/2021,Revenue Expenditure ,Treehouse Childrens Club Ltd,1936.36
West Sussex County Council,Additional Costs Arising From Covid 19,Covid 19 Costs,Nurseries And Early Years Support,Grants to Ext Bodies,25/05/2021,Revenue Expenditure ,Cherrytree Childcare Ltd,1748.86
West Sussex County Council,Additional Costs Arising From Covid 19,Covid 19 Costs,Nurseries And Early Years Support,Grants to Ext Bodies,25/05/2021,Revenue Expenditure ,Nadia Karen Bate,1357.82
West Sussex County Council,Additional Costs Arising From Covid 19,Covid 19 Costs,Nurseries And Early Years Support,Grants to Ext Bodies,25/05/2021,Revenue Expenditure ,Pioneer Childcare,1271.72
West Sussex County Council,Additional Costs Arising From Covid 19,Covid 19 Costs,Nurseries And Early Years Support,Grants to Ext Bodies,25/05/2021,Revenue Expenditure ,Pioneer Childcare Limited,1271.72
West Sussex County Council,Additional Costs Arising From Covid 19,Covid 19 Costs,Nurseries And Early Years Support,Grants to Ext Bodies,25/05/2021,Revenue Expenditure ,Pioneer Limited,1271.72
West Sussex County Council,Additional Costs Arising From Covid 19,Covid 19 Costs,Nurseries And Early Years Support,Grants to Ext Bodies,25/05/2021,Revenue Expenditure ,Downsbrook Out Of School Club,1271.72
West Sussex County Council,Additional Costs Arising From Covid 19,Covid 19 Costs,Nurseries And Early Years Support,Grants to Ext Bodies,25/05/2021,Revenue Expenditure ,Mr K E Saunders,742.4
West Sussex County Council,Additional Costs Arising From Covid 19,Covid 19 Costs,Nurseries And Early Years Support,Grants to Ext Bodies,25/05/2021,Revenue Expenditure ,Zoe Brown Manger,742.4
West Sussex County Council,Additional Costs Arising From Covid 19,Covid 19 Costs,Nurseries And Early Years Support,Grants to Ext Bodies,25/05/2021,Revenue Expenditure ,Happy Steps,1084.22
West Sussex County Council,Additional Costs Arising From Covid 19,Covid 19 Costs,Nurseries And Early Years Support,Grants to Ext Bodies,25/05/2021,Revenue Expenditure ,T Jackson,1084.22
West Sussex County Council,Additional Costs Arising From Covid 19,Covid 19 Costs,Nurseries And Early Years Support,Grants to Ext Bodies,25/05/2021,Revenue Expenditure ,Kids Like Us Ltd,957.19
West Sussex County Council,Additional Costs Arising From Covid 19,Covid 19 Costs,Nurseries And Early Years Support,Grants to Ext Bodies,25/05/2021,Revenue Expenditure ,Wild Life Day Camps Ltd,888.57
West Sussex County Council,Additional Costs Arising From Covid 19,Covid 19 Costs,Nurseries And Early Years Support,Grants to Ext Bodies,25/05/2021,Revenue Expenditure ,K L Tidey,742.4
West Sussex County Council,Additional Costs Arising From Covid 19,Covid 19 Costs,Nurseries And Early Years Support,Grants to Ext Bodies,25/05/2021,Revenue Expenditure ,Sarah Yusuf,742.4
West Sussex County Council,Additional Costs Arising From Covid 19,Covid 19 Costs,Nurseries And Early Years Support,Grants to Ext Bodies,25/05/2021,Revenue Expenditure ,Mrs A Ballard,742.4
West Sussex County Council,Additional Costs Arising From Covid 19,Covid 19 Costs,Nurseries And Early Years Support,Grants to Ext Bodies,25/05/2021,Revenue Expenditure ,Mrs Carole A Lewandowski,742.4
West Sussex County Council,Additional Costs Arising From Covid 19,Covid 19 Costs,Nurseries And Early Years Support,Grants to Ext Bodies,25/05/2021,Revenue Expenditure ,Mrs Susan E Penton,742.4
West Sussex County Council,Additional Costs Arising From Covid 19,Covid 19 Costs,Nurseries And Early Years Support,Grants to Ext Bodies,25/05/2021,Revenue Expenditure ,Lisa Barnard,742.4
West Sussex County Council,Additional Costs Arising From Covid 19,Covid 19 Costs,Nurseries And Early Years Support,Grants to Ext Bodies,25/05/2021,Revenue Expenditure ,Sally Hayward,742.4
West Sussex County Council,Additional Costs Arising From Covid 19,Covid 19 Costs,Nurseries And Early Years Support,Grants to Ext Bodies,25/05/2021,Revenue Expenditure ,Lindsey Burnell,742.4
West Sussex County Council,Additional Costs Arising From Covid 19,Covid 19 Costs,Nurseries And Early Years Support,Grants to Ext Bodies,25/05/2021,Revenue Expenditure ,Mrs Sylvia Eaton,742.4
West Sussex County Council,Additional Costs Arising From Covid 19,Covid 19 Costs,Nurseries And Early Years Support,Grants to Ext Bodies,25/05/2021,Revenue Expenditure ,Corinne Aldous,697.76
West Sussex County Council,Additional Costs Arising From Covid 19,Covid 19 Costs,Nurseries And Early Years Support,Grants to Ext Bodies,25/05/2021,Revenue Expenditure ,Judith R Jennings,697.76
West Sussex County Council,Additional Costs Arising From Covid 19,Covid 19 Costs,Nurseries And Early Years Support,Grants to Ext Bodies,25/05/2021,Revenue Expenditure ,Caroline Wells,697.76
West Sussex County Council,Additional Costs Arising From Covid 19,Covid 19 Costs,Nurseries And Early Years Support,Grants to Ext Bodies,25/05/2021,Revenue Expenditure ,Mrs C Stevens,697.76
West Sussex County Council,Additional Costs Arising From Covid 19,Covid 19 Costs,Nurseries And Early Years Support,Grants to Ext Bodies,25/05/2021,Revenue Expenditure ,Mrs Olga A Thorpe,697.76
West Sussex County Council,Additional Costs Arising From Covid 19,Covid 19 Costs,Nurseries And Early Years Support,Grants to Ext Bodies,25/05/2021,Revenue Expenditure ,Amal Bakhtiari,697.76
West Sussex County Council,Additional Costs Arising From Covid 19,Covid 19 Costs,Nurseries And Early Years Support,Grants to Ext Bodies,25/05/2021,Revenue Expenditure ,Kegra Ltd T/A Rocketeers Childcare,721.9
West Sussex County Council,Additional Costs Arising From Covid 19,Covid 19 Costs,Nurseries And Early Years Support,Grants to Ext Bodies,25/05/2021,Revenue Expenditure ,Kegra Ltd,721.9
West Sussex County Council,Additional Costs Arising From Covid 19,Covid 19 Costs,Nurseries And Early Years Support,Grants to Ext Bodies,25/05/2021,Revenue Expenditure ,Kegra Limited,721.9
West Sussex County Council,Additional Costs Arising From Covid 19,Covid 19 Costs,Nurseries And Early Years Support,Grants to Ext Bodies,25/05/2021,Revenue Expenditure ,Kegra,721.9
West Sussex County Council,Additional Costs Arising From Covid 19,Covid 19 Costs,Nurseries And Early Years Support,Grants to Ext Bodies,25/05/2021,Revenue Expenditure ,Kegra Limited Ltd,721.9
West Sussex County Council,Additional Costs Arising From Covid 19,Covid 19 Costs,Nurseries And Early Years Support,Grants to Ext Bodies,25/05/2021,Revenue Expenditure ,Pioneer Childcare,721.9
West Sussex County Council,Additional Costs Arising From Covid 19,Covid 19 Costs,Nurseries And Early Years Support,Grants to Ext Bodies,25/05/2021,Revenue Expenditure ,Pioneer Childcare Ltd,721.9
West Sussex County Council,Additional Costs Arising From Covid 19,Covid 19 Costs,Nurseries And Early Years Support,Grants to Ext Bodies,25/05/2021,Revenue Expenditure ,Pioneer Childcare Limited,721.9
West Sussex County Council,Additional Costs Arising From Covid 19,Covid 19 Costs,Nurseries And Early Years Support,Grants to Ext Bodies,26/05/2021,Revenue Expenditure ,Pioneer Childcare,721.9
West Sussex County Council,Additional Costs Arising From Covid 19,Covid 19 Costs,Nurseries And Early Years Support,Grants to Ext Bodies,26/05/2021,Revenue Expenditure ,Breakfast Buddies,721.9
West Sussex County Council,Additional Costs Arising From Covid 19,Covid 19 Costs,Nurseries And Early Years Support,Grants to Ext Bodies,26/05/2021,Revenue Expenditure ,The Hub Kids Club,721.9
West Sussex County Council,Additional Costs Arising From Covid 19,Covid 19 Costs,Nurseries And Early Years Support,Grants to Ext Bodies,26/05/2021,Revenue Expenditure ,The Hub Kids Club Limited,721.9
West Sussex County Council,Additional Costs Arising From Covid 19,Covid 19 Costs,Nurseries And Early Years Support,Grants to Ext Bodies,26/05/2021,Revenue Expenditure ,Zigzag Childcare Ltd,721.9
West Sussex County Council,Additional Costs Arising From Covid 19,Covid 19 Costs,Nurseries And Early Years Support,Grants to Ext Bodies,26/05/2021,Revenue Expenditure ,Odette Mussell,612.24
West Sussex County Council,Additional Costs Arising From Covid 19,Covid 19 Costs,Nurseries And Early Years Support,Grants to Ext Bodies,26/05/2021,Revenue Expenditure ,Pioneer Childcare Ltd,612.24
West Sussex County Council,Additional Costs Arising From Covid 19,Covid 19 Costs,Nurseries And Early Years Support,Grants to Ext Bodies,26/05/2021,Revenue Expenditure ,Pioneer Childcare Limited,612.24
West Sussex County Council,Additional Costs Arising From Covid 19,Covid 19 Costs,Nurseries And Early Years Support,Grants to Ext Bodies,26/05/2021,Revenue Expenditure ,The Man In The Moon,549.82
West Sussex County Council,Additional Costs Arising From Covid 19,Covid 19 Costs,Covid-19,Professional Service,04/05/2021,Revenue Expenditure ,P Card Royal Bank Of Scotland Plc,924.5
West Sussex County Council,Planning & Development Services,Community Development,Community Ops Budget Dr,Teaching Materials,04/05/2021,Revenue Expenditure ,P Card Royal Bank Of Scotland Plc,561.75
West Sussex County Council,Education Services,School Capital Works,Order_ Plaistow & Kirdford School,Pymnts-main contr.,11/05/2021,Capital Expenditure,Falcon Homes (Sussex) Ltd,820
West Sussex County Council,Education Services,School Capital Works,Order_ Plaistow & Kirdford School,Pymnts-main contr.,04/05/2021,Capital Expenditure,R H Insulation Services Ltd,1040
West Sussex County Council,Education Services,School Capital Works,Order_Southway Junior,Pymnts-main contr.,13/05/2021,Capital Expenditure,Perry Analytical Ltd,427.5
West Sussex County Council,Education Services,School Capital Works,Order_Southway Junior,Pymnts-main contr.,19/05/2021,Capital Expenditure,Blue Building Contractors Ltd,1262
West Sussex County Council,Education Services,School Capital Works,"Order_St Peters Ce Primary Sch, Ardingly",Pymnts-main contr.,25/05/2021,Capital Expenditure,Perry Analytical Ltd,1040
West Sussex County Council,Education Services,School Capital Works,Order_Warnham Primary School,Pymnts-main contr.,17/05/2021,Capital Expenditure,Sse Contracting Limited,43847.29
West Sussex County Council,Support Service And Management Costs,Capital Works,M&E,Pymnts-main contr.,05/05/2021,Capital Expenditure,Fire Risk Uk Ltd,3676.07
West Sussex County Council,Support Service And Management Costs,Capital Works,Mdc,Client PM Fees,25/05/2021,Capital Expenditure,Faithful & Gould,1289.46
West Sussex County Council,Support Service And Management Costs,Capital Works,Building,Pymnts-main contr.,28/05/2021,Capital Expenditure,Spindler Builders E&P Ltd,12000
West Sussex County Council,Support Service And Management Costs,Capital Works,Asbestos Analyst,Pymnts-main contr.,14/05/2021,Capital Expenditure,Perry Analytical Ltd,510
West Sussex County Council,Support Service And Management Costs,Capital Works,Mdc,Client PM Fees,25/05/2021,Capital Expenditure,Faithful & Gould,1288.74
West Sussex County Council,Support Service And Management Costs,Capital Works,Asbestos Analyst,Pymnts-main contr.,24/05/2021,Capital Expenditure,Perry Analytical Ltd,984.99
West Sussex County Council,Support Service And Management Costs,Capital Works,Mdc,Client PM Fees,25/05/2021,Capital Expenditure,Faithful & Gould,855.87
West Sussex County Council,Support Service And Management Costs,Capital Works,Asbestos Analyst,Pymnts-main contr.,28/05/2021,Capital Expenditure,Perry Analytical Ltd,610
West Sussex County Council,Support Service And Management Costs,Capital Works,Mdc,Client PM Fees,25/05/2021,Capital Expenditure,Faithful & Gould,5710.68
West Sussex County Council,Support Service And Management Costs,Capital Works,Mdc,Client PM Fees,25/05/2021,Capital Expenditure,Faithful & Gould,1289.46
West Sussex County Council,Support Service And Management Costs,Capital Works,Mdc,Client PM Fees,28/05/2021,Capital Expenditure,Faithful & Gould,796.13
West Sussex County Council,Support Service And Management Costs,Capital Works,Asbestos Analyst,Pymnts-main contr.,25/05/2021,Capital Expenditure,Perry Analytical Ltd,494.99
West Sussex County Council,Support Service And Management Costs,Capital Works,Asbestos Analyst,Pymnts-main contr.,07/05/2021,Capital Expenditure,Perry Analytical Ltd,509.99
West Sussex County Council,Support Service And Management Costs,Capital Works,Asbestos Analyst,Pymnts-main contr.,11/05/2021,Capital Expenditure,Perry Analytical Ltd,1194.99
West Sussex County Council,Support Service And Management Costs,Capital Works,Mdc,Client PM Fees,25/05/2021,Capital Expenditure,Faithful & Gould,1289.46
West Sussex County Council,Support Service And Management Costs,Capital Works,Mdc,Client PM Fees,05/05/2021,Capital Expenditure,Faithful & Gould,3888.16
West Sussex County Council,Support Service And Management Costs,Capital Works,Asbestos Analyst,Pymnts-main contr.,11/05/2021,Capital Expenditure,Perry Analytical Ltd,924.99
West Sussex County Council,Support Service And Management Costs,Capital Works,Mdc,Client PM Fees,28/05/2021,Capital Expenditure,Faithful & Gould,10182.72
West Sussex County Council,Support Service And Management Costs,Capital Works,Asbestos Analyst,Pymnts-main contr.,05/05/2021,Capital Expenditure,Perry Analytical Ltd,925
West Sussex County Council,Support Service And Management Costs,Capital Works,Mdc,Client PM Fees,28/05/2021,Capital Expenditure,Faithful & Gould,2429.92
West Sussex County Council,Support Service And Management Costs,Capital Works,Asbestos Analyst,Pymnts-main contr.,05/05/2021,Capital Expenditure,Perry Analytical Ltd,425
West Sussex County Council,Support Service And Management Costs,Capital Works,Mdc,Client PM Fees,28/05/2021,Capital Expenditure,Faithful & Gould,6865.99
West Sussex County Council,Support Service And Management Costs,Capital Works,Mdc,Client PM Fees,28/05/2021,Capital Expenditure,Faithful & Gould,8184.97
West Sussex County Council,Support Service And Management Costs,Capital Works,Mdc,Client PM Fees,28/05/2021,Capital Expenditure,Faithful & Gould,2603.13
West Sussex County Council,Support Service And Management Costs,Capital Works,Asbestos Analyst,Pymnts-main contr.,11/05/2021,Capital Expenditure,Perry Analytical Ltd,594.99
West Sussex County Council,Support Service And Management Costs,Capital Works,Mdc,Client PM Fees,25/05/2021,Capital Expenditure,Faithful & Gould,1289.46
West Sussex County Council,Support Service And Management Costs,Capital Works,Mdc,Client PM Fees,25/05/2021,Capital Expenditure,Faithful & Gould,1289.46
West Sussex County Council,Support Service And Management Costs,Capital Works,Mdc,Client PM Fees,28/05/2021,Capital Expenditure,Faithful & Gould,2760.66
West Sussex County Council,Support Service And Management Costs,Capital Works,Mdc,Client PM Fees,25/05/2021,Capital Expenditure,Faithful & Gould,1289.46
West Sussex County Council,Support Service And Management Costs,Capital Works,Mdc,Client PM Fees,25/05/2021,Capital Expenditure,Faithful & Gould,1289.46
West Sussex County Council,Support Service And Management Costs,Capital Works,M&E,Pymnts-main contr.,25/05/2021,Capital Expenditure,Sse Contracting Limited,4159.5
West Sussex County Council,Support Service And Management Costs,Capital Works,Mdc,Client PM Fees,25/05/2021,Capital Expenditure,Faithful & Gould,2256.55
West Sussex County Council,Support Service And Management Costs,Capital Works,Building,Pymnts-main contr.,28/05/2021,Capital Expenditure,Falcon Homes (Sussex) Ltd,15842.38
West Sussex County Council,Support Service And Management Costs,Capital Works,Asbestos Analyst,Feasibility Studies,27/05/2021,Capital Expenditure,Perry Analytical Ltd,745
West Sussex County Council,Support Service And Management Costs,Capital Works,M&E,Pymnts-main contr.,12/05/2021,Capital Expenditure,Sse Contracting Limited,7866
West Sussex County Council,Support Service And Management Costs,Capital Works,M&E,Pymnts-main contr.,27/05/2021,Capital Expenditure,P And R Services Sussex Ltd,6132.15
West Sussex County Council,Support Service And Management Costs,Capital Works,Asbestos Analyst,Pymnts-main contr.,17/05/2021,Capital Expenditure,Perry Analytical Ltd,855
West Sussex County Council,Support Service And Management Costs,Capital Works,Asbestos Analyst,Pymnts-main contr.,07/05/2021,Capital Expenditure,Perry Analytical Ltd,1140
West Sussex County Council,Support Service And Management Costs,Capital Works,Building,Pymnts-main contr.,20/05/2021,Capital Expenditure,Falcon Homes (Sussex) Ltd,479
West Sussex County Council,Support Service And Management Costs,Capital Works,Asbestos Analyst,Pymnts-main contr.,24/05/2021,Capital Expenditure,Perry Analytical Ltd,1019.99
West Sussex County Council,Support Service And Management Costs,Capital Works,Mdc,Client PM Fees,20/05/2021,Capital Expenditure,Faithful & Gould,1934.18
West Sussex County Council,Support Service And Management Costs,Capital Works,Mdc,Client PM Fees,20/05/2021,Capital Expenditure,Faithful & Gould,1934.18
West Sussex County Council,Support Service And Management Costs,Capital Works,M&E,Pymnts-main contr.,04/05/2021,Capital Expenditure,Sse Contracting Limited,38107.9
West Sussex County Council,Support Service And Management Costs,Capital Works,Building,Pymnts-main contr.,05/05/2021,Capital Expenditure,Joe Ryan Limited,22173.97
West Sussex County Council,Support Service And Management Costs,Capital Works,Building,Pymnts-main contr.,05/05/2021,Capital Expenditure,Joe Ryan Limited,25622.67
West Sussex County Council,Support Service And Management Costs,Capital Works,Building,Pymnts-main contr.,05/05/2021,Capital Expenditure,Inspire Contract Services Ltd,1073.57
West Sussex County Council,Support Service And Management Costs,Capital Works,Building,Pymnts-main contr.,12/05/2021,Capital Expenditure,Blue Building Contractors Ltd,32487.5
West Sussex County Council,Support Service And Management Costs,Capital Works,Mdc,Client PM Fees,25/05/2021,Capital Expenditure,Faithful & Gould,1035.97
West Sussex County Council,Support Service And Management Costs,Capital Works,Mdc,Client PM Fees,25/05/2021,Capital Expenditure,Faithful & Gould,2595.55
West Sussex County Council,Support Service And Management Costs,Capital Works,Building,Pymnts-main contr.,18/05/2021,Capital Expenditure,Wessex Window Systems Plc,8912.96
West Sussex County Council,Support Service And Management Costs,Capital Works,Building,Pymnts-main contr.,18/05/2021,Capital Expenditure,Wessex Window Systems Plc,55952.46
West Sussex County Council,Support Service And Management Costs,Capital Works,Building,Pymnts-main contr.,05/05/2021,Capital Expenditure,Trojan Rose Ltd,30045.85
West Sussex County Council,Adult Social Care,Capital Works,Building Tozer House - Wet Room,Pymnts-main contr.,26/05/2021,Capital Expenditure,Oglieve & Chapman,7812.5
West Sussex County Council,Central Services To The Public,Capital Works,M&E Parkside - Plant Room Redesign,Pymnts-main contr.,04/05/2021,Capital Expenditure,Sse Contracting Limited,128296.86
West Sussex County Council,Central Services To The Public,Capital Works,Mdc Parkside - Plant Room Redesign,Client PM Fees,04/05/2021,Capital Expenditure,Faithful & Gould,2985.15
West Sussex County Council,Cultural & Related Services,Archives,Mdc Record Office - Roof,Feasibility Studies,04/05/2021,Capital Expenditure,Faithful & Gould,1085.41
West Sussex County Council,Support Service And Management Costs,Capital Works,Building Ch - Peglar & Reception - Roofi,Pymnts-main contr.,12/05/2021,Capital Expenditure,Southern Counties Roofing Contrctrs,19941.35
West Sussex County Council,Fire & Rescue Services,Capital Works,Mdc Worthing Fire Station Cladding,Feasibility Studies,04/05/2021,Capital Expenditure,Faithful & Gould,3452.06
West Sussex County Council,Support Service And Management Costs,Capital Works,Sca 18/19 Sompting Windows & Doors Works,Pymnts-main contr.,20/05/2021,Capital Expenditure,Fowler Building Contractors Ltd,4609.62
West Sussex County Council,Support Service And Management Costs,Capital Works,"Order_45 Fairfield Road,Burgess Hill",Pymnts-main contr.,11/05/2021,Capital Expenditure,Economic Insulations (Portsmouth) L,11083
West Sussex County Council,Support Service And Management Costs,Capital Works,Main Works,Pymnts-main contr.,28/05/2021,Capital Expenditure,St Philip Howard Catholic High Scho,74262
West Sussex County Council,Support Service And Management Costs,Capital Works,Project Manager,Client PM Fees,18/05/2021,Capital Expenditure,Faithful & Gould,10805.28
West Sussex County Council,Education Services,School Capital Works,Forest School,Client PM Fees,18/05/2021,Capital Expenditure,Faithful & Gould,43140.22
West Sussex County Council,Support Service And Management Costs,Capital Works,Main Works,Pymnts-main contr.,07/05/2021,Capital Expenditure,Perry Analytical Ltd,1020
West Sussex County Council,Support Service And Management Costs,Capital Works,Main Works,Pymnts-main contr.,11/05/2021,Capital Expenditure,Portakabin Limited,200850.9
West Sussex County Council,Education Services,School Capital Works,Southway Junior Sch - S106 Funded Improv,Pymnts-main contr.,21/05/2021,Capital Expenditure,Fibre Management Ltd,640
West Sussex County Council,Support Service And Management Costs,Capital Works,Fishbourne Pri - S106 Funded Improvement,Client PM Fees,04/05/2021,Capital Expenditure,Faithful & Gould,8319.3
West Sussex County Council,Support Service And Management Costs,Capital Works,Main Works,Pymnts-main contr.,24/05/2021,Capital Expenditure,Capita Business Services Ltd,8338.89
West Sussex County Council,Support Service And Management Costs,Capital Works,Adur,Sprvsn Consultant,17/05/2021,Capital Expenditure,Adur District Council,13268
West Sussex County Council,Support Service And Management Costs,Capital Works,Adur,Sprvsn Consultant,17/05/2021,Capital Expenditure,Adur District Council,43497
West Sussex County Council,Support Service And Management Costs,Capital Works,Works,Pymnts-main contr.,04/05/2021,Capital Expenditure,Faithful & Gould,8476.98
West Sussex County Council,Support Service And Management Costs,Capital Works,Works,Pymnts-main contr.,05/05/2021,Capital Expenditure,Dds Demolition Ltd,118465.69
West Sussex County Council,Children Social Care,Capital Works,Main Works Seaside Children'S Home,Pymnts-main contr.,05/05/2021,Capital Expenditure,A & F Pilbeam Construction Ltd,129639.51
West Sussex County Council,Support Service And Management Costs,Capital Works,Ancillary,Pymnts-main contr.,27/05/2021,Capital Expenditure,Churchill Contract Services Ltd,589.74
West Sussex County Council,Children Social Care,Capital Works,Main Works May House,Pymnts-main contr.,05/05/2021,Capital Expenditure,A & F Pilbeam Construction Ltd,38989.15
West Sussex County Council,Support Service And Management Costs,Capital Works,Ancillary,Pymnts-main contr.,18/05/2021,Capital Expenditure,Churchill Contract Services Ltd,465.74
West Sussex County Council,Education Services,School Capital Works,Fees Safeguarding And Security In School,Pymnts-main contr.,27/05/2021,Capital Expenditure,Securafit,23861.87
West Sussex County Council,Education Services,School Capital Works,Fees Safeguarding And Security In School,Pymnts-main contr.,27/05/2021,Capital Expenditure,Securafit,13009.93
West Sussex County Council,Education Services,School Capital Works,Fees Safeguarding And Security In School,Pymnts-main contr.,27/05/2021,Capital Expenditure,Securafit,626.37
West Sussex County Council,Education Services,School Capital Works,Fees Safeguarding And Security In School,Pymnts-main contr.,27/05/2021,Capital Expenditure,Securafit,13351.16
West Sussex County Council,Support Service And Management Costs,Capital Works,Sheddingdean,Pymnts-main contr.,05/05/2021,Capital Expenditure,J Cheesmur & Sons (Lewes) Ltd,60938.49
West Sussex County Council,Support Service And Management Costs,Capital Works,North Heath,Pymnts-main contr.,24/05/2021,Capital Expenditure,Securafit,9973.4
West Sussex County Council,Support Service And Management Costs,Capital Works,Supplies / Ict Renovation Of Cissbury Lo,Pymnts-main contr.,05/05/2021,Capital Expenditure,Capita Business Services Ltd,8427.94
West Sussex County Council,Children Social Care,Capital Works,Main Works Renovation Of Cissbury Lodge,Pymnts-main contr.,14/05/2021,Capital Expenditure,Westridge Construction Ltd,211804.71
West Sussex County Council,Support Service And Management Costs,Capital Works,Ancillary,Pymnts-main contr.,27/05/2021,Capital Expenditure,Churchill Contract Services Ltd,1189.78
West Sussex County Council,Support Service And Management Costs,Capital Works,Victoria Estate,Feasibility Studies,18/05/2021,Capital Expenditure,Wsp Uk Ltd,5875.24
West Sussex County Council,Support Service And Management Costs,Capital Works,Victoria Estate,Feasibility Studies,18/05/2021,Capital Expenditure,Wsp Uk Ltd,3924.91
West Sussex County Council,Support Service And Management Costs,Capital Works,Town Centre,Feasibility Studies,18/05/2021,Capital Expenditure,Wsp Uk Ltd,9368.88
West Sussex County Council,Support Service And Management Costs,Capital Works,Town Centre,Feasibility Studies,18/05/2021,Capital Expenditure,Wsp Uk Ltd,2156.57
West Sussex County Council,Support Service And Management Costs,Capital Works,Town Centre,Feasibility Studies,18/05/2021,Capital Expenditure,Wsp Uk Ltd,3319.35
West Sussex County Council,Support Service And Management Costs,Capital Works,Main Works,Pymnts-main contr.,04/05/2021,Capital Expenditure,Logan Construction South East Ltd,386199.74
West Sussex County Council,Support Service And Management Costs,Capital Works,Architect,Feasibility Studies,04/05/2021,Capital Expenditure,Faithful & Gould,4810.53
